PAYMENT DATE,DEPARTMENT,SUPPLIER NAME,PAY GROUP,ACCOUNT DESCRIPTION,NET AMOUNT
06-APR-2022,Environment & Transport (P),Inspectorate Ltd T/A Roch Ndt Services,TRADE SUPPLIER,4901-Other Expenditure,818.00
06-APR-2022,Environment & Transport (P),Yotta Ltd,TRADE SUPPLIER,4603-IT Software Licenses/Subscription,"9,950.00"
07-APR-2022,Balance Sheet Cost Centres (P),RNIB Charity,TRADE SUPPLIER,9642-Reserved Debtors - Non Public Sector,"1,800.00"
22-APR-2022,C&FS (P),VE Psychological Solutions Ltd T/A The Purple House Clinic,TRADE SUPPLIER,5445-Adoption Support,"2,600.00"
28-APR-2022,C&FS (P),T Junction Childrens Services Ltd,TRADE SUPPLIER,5411-Private Contractors - General,"39,857.01"
29-APR-2022,C&FS (P),REDACTED PERSONAL DATA,EARLY YEARS,4908-Grants,"1,494.00"
29-APR-2022,C&FS (P),REDACTED PERSONAL DATA,EARLY YEARS,4908-Grants,594.98
29-APR-2022,C&FS (P),REDACTED PERSONAL DATA,EARLY YEARS,4908-Grants,"1,290.64"
29-APR-2022,Adults & Communities (P),GREEN LEAF HEALTHCARE LTD T/A LIVESEY LODGE CARE HOME&&SSAROE40457,S/S HOMES,5502-Residential,"1,142.14"
29-APR-2022,Adults & Communities (P),GREEN LEAF HEALTHCARE LTD T/A LIVESEY LODGE CARE HOME&&SSAROE40457,S/S HOMES,5502-Residential,"1,932.86"
29-APR-2022,Adults & Communities (P),HC ONE C/O ACACIA CARE HOME&&SSARO3299,S/S HOMES,5502-Residential,"1,404.93"
29-APR-2022,Adults & Communities (P),KNIGHTON MANOR LTD&&SSAROE68249,S/S HOMES,5502-Residential,"5,332.11"
29-APR-2022,Adults & Communities (P),MEDINA VIEW LTD T/A WOLLATON PARK CARE HOME&&SSARO3342,S/S HOMES,5502-Residential,"5,261.47"
29-APR-2022,Adults & Communities (P),MEDINA VIEW LTD T/A WOLLATON PARK CARE HOME&&SSARO3342,S/S HOMES,5502-Residential,"1,537.97"
29-APR-2022,Adults & Communities (P),MEDINA VIEW LTD T/A WOLLATON PARK CARE HOME&&SSARO3342,S/S HOMES,5502-Residential,890.40
01-APR-2022,Corporate Resources (CR) (P),Ellesmere College,OTHER LOCAL AUTHORITIES,4908-Grants,"2,550.00"
01-APR-2022,Environment & Transport (P),REDACTED PERSONAL DATA,NON TRADE,3303-Taxi Hire,"1,627.50"
01-APR-2022,Corporate Resources (CR) (P),Nether Hall School,OTHER LOCAL AUTHORITIES,4908-Grants,"2,550.00"
01-APR-2022,C&FS (P),Nether Hall School,OTHER LOCAL AUTHORITIES,5212-OLEA Recoupment,"18,766.64"
05-APR-2022,Environment & Transport (P),Castle Donington Volunteer Centre,TRADE SUPPLIER,5428-Minimum Cost Contracts,"10,585.00"
12-APR-2022,Corporate Resources (CR) (P),Harborough District Council,OTHER LOCAL AUTHORITIES,2311-Rates,"7,511.67"
12-APR-2022,Balance Sheet Cost Centres (P),Personalized Care,GENERAL,9642-Reserved Debtors - Non Public Sector,"33,070.00"
29-APR-2022,Adults & Communities (P),Proquest Information & Learning Ltd,TRADE SUPPLIER,4909-Subscriptions,"15,039.65"
01-APR-2022,Adults & Communities (P),2M HEATH & HOMECARE SERVICES LTD&&ISHC3873,HOME CARE,5505-Homecare,"5,838.86"
01-APR-2022,Adults & Communities (P),ABSOLUTE CARE AGENCY&&ISHC2620,HOME CARE,5505-Homecare,"8,402.98"
01-APR-2022,Adults & Communities (P),ABUNDANT CARE LIMITED&&ISHC6217,HOME CARE,5505-Homecare,"3,390.10"
01-APR-2022,Adults & Communities (P),ACCREDO SUPPORT AND DEVELOPMENT LTD&&CLCD3325,CLC,5504-Day/CLC Services,"1,248.89"
01-APR-2022,Adults & Communities (P),ACCREDO SUPPORT AND DEVELOPMENT LTD&&CLCD3325,CLC,5504-Day/CLC Services,"1,370.00"
01-APR-2022,Adults & Communities (P),ACCREDO SUPPORT AND DEVELOPMENT LTD&&CLCD3325,CLC,5504-Day/CLC Services,"1,248.89"
01-APR-2022,Adults & Communities (P),ADAPTUS CARES LTD&&ISHC5289,HOME CARE,5505-Homecare,714.38
01-APR-2022,Adults & Communities (P),ADAPTUS CARES LTD&&ISHC5289,HOME CARE,5505-Homecare,714.38
01-APR-2022,Adults & Communities (P),ADAPTUS CARES LTD&&ISHC5289,HOME CARE,5505-Homecare,714.38
01-APR-2022,Adults & Communities (P),ADAPTUS CARES LTD&&ISHC5289,HOME CARE,5505-Homecare,"1,428.75"
01-APR-2022,Adults & Communities (P),ADAPTUS CARES LTD&&ISHC5289,HOME CARE,5505-Homecare,714.38
01-APR-2022,Adults & Communities (P),ADAPTUS CARES LTD&&ISHC5289,HOME CARE,5505-Homecare,"1,414.47"
01-APR-2022,Adults & Communities (P),ADAPTUS CARES LTD&&ISHC5289,HOME CARE,5505-Homecare,"1,428.75"
01-APR-2022,Adults & Communities (P),ADAPTUS CARES LTD&&ISHC5289,HOME CARE,5505-Homecare,714.38
01-APR-2022,Adults & Communities (P),ADAPTUS CARES LTD&&ISHC5289,HOME CARE,5505-Homecare,"1,414.47"
01-APR-2022,Adults & Communities (P),ADAPTUS CARES LTD&&ISHC5289,HOME CARE,5505-Homecare,714.38
01-APR-2022,Adults & Communities (P),ADAPTUS CARES LTD&&ISHC5289,HOME CARE,5505-Homecare,714.38
01-APR-2022,Adults & Communities (P),ADAPTUS CARES LTD&&ISHC5289,HOME CARE,5505-Homecare,"1,557.35"
01-APR-2022,Adults & Communities (P),AGE UK LEICESTERSHIRE AND RUTLAND&&CLCD3314,CLC,5504-Day/CLC Services,"2,887.90"
01-APR-2022,Adults & Communities (P),ALLIANCE SC LTD&&ISHC6700,HOME CARE,5505-Homecare,"2,143.14"
01-APR-2022,Adults & Communities (P),AMICARE DOMICILIRY CARE SERVICES LTD&&ISHC2524,HOME CARE,5505-Homecare,"9,508.41"
01-APR-2022,Adults & Communities (P),ANYTIME CARE 2020&&ISHC6533,HOME CARE,5505-Homecare,"2,646.46"
01-APR-2022,Adults & Communities (P),ASHRAY CARE SERVICES LTD T/A SURECARE LEICESTER&&ISHC6337,HOME CARE,5505-Homecare,"1,056.04"
01-APR-2022,Adults & Communities (P),ATHENA CARE LTD&&ISHCHC673,HOME CARE,5505-Homecare,"1,118.88"
01-APR-2022,Adults & Communities (P),BLUEWOOD RECRUITMENT LTD&&ISHC3933,HOME CARE,5505-Homecare,"2,819.42"
01-APR-2022,Adults & Communities (P),BREAKING THE CYCLE CONSULTANCY LTD&&CLCD3093-20-6038,SUPPORTED LIVING,5504-Day/CLC Services,570.00
01-APR-2022,Adults & Communities (P),BRIGHT INTERGRATED CARE LTD&&ISHC3324,HOME CARE,5505-Homecare,"6,824.71"
01-APR-2022,Adults & Communities (P),BURBAGE HOMECARE LTD&&ISHCHC455,HOME CARE,5505-Homecare,"4,990.34"
01-APR-2022,Adults & Communities (P),CARE 4 U (LEICESTERSHIRE) LTD&&ISHC2529,HOME CARE,5505-Homecare,"10,963.33"
01-APR-2022,Adults & Communities (P),CARE AT HOME (MIDLANDS) LTD&&ISHC2753,HOME CARE,5505-Homecare,"16,494.54"
01-APR-2022,Adults & Communities (P),CARE STAFFING LTD&&ISHC6650,HOME CARE,5505-Homecare,"7,823.20"
01-APR-2022,Adults & Communities (P),CARELINK HEALTHCARE PROFESSIONALS LTD&&ISHC3871,HOME CARE,5505-Homecare,"14,050.19"
01-APR-2022,Adults & Communities (P),CAREMARK HINCKLEY BOSWORTH & BLABY&&ISHC3015,HOME CARE,5505-Homecare,"13,168.31"
01-APR-2022,Adults & Communities (P),CARING HANDS DOMICILIARY CARE LTD&&ISHC3229,HOME CARE,5505-Homecare,"19,067.37"
01-APR-2022,Adults & Communities (P),CARING HANDS LEICESTER LTD&&ISHC3209,HOME CARE,5505-Homecare,"24,122.44"
01-APR-2022,Adults & Communities (P),CARING HANDS LEICESTER LTD&&ISHC3209,HOME CARE,5505-Homecare,993.27
01-APR-2022,Adults & Communities (P),CITY & COUNTY CARE SERVICES LTD&&ISHCHC486,HOME CARE,5505-Homecare,"6,705.00"
01-APR-2022,Adults & Communities (P),COMMUNITY CARELINE NORTHWEST LEICESTERSHIRE LTD&&ISHCHC1514,HOME CARE,5505-Homecare,"5,646.02"
01-APR-2022,Adults & Communities (P),CONTINUITY HEALTHCARE SERVICES LTD&&ISHC6572,HOME CARE,5505-Homecare,"9,205.96"
01-APR-2022,Adults & Communities (P),CSN CARE GROUP LTD&&ISHC6573,HOME CARE,5505-Homecare,"1,493.30"
01-APR-2022,Adults & Communities (P),D&H COMMUNITY SUPPORT LTD&&CLCD3309,CLC,5504-Day/CLC Services,"24,346.85"
01-APR-2022,Adults & Communities (P),DIRECT CARE WORKS LTD&&CLCD3327,CLC,5504-Day/CLC Services,"2,791.24"
01-APR-2022,Adults & Communities (P),EMSA HOMEHELP LTD T/A BLUEBIRD CARE LEICS&&ISHC3983,HOME CARE,5505-Homecare,"3,671.61"
01-APR-2022,Adults & Communities (P),ENRYCH&&CLCD3315,SUPPORTED LIVING,5504-Day/CLC Services,"8,618.32"
01-APR-2022,Adults & Communities (P),EVERYDAY LIVING CARE LTD&&ISHC6574,HOME CARE,5505-Homecare,"4,918.65"
01-APR-2022,Adults & Communities (P),EVERYDAY LIVING LIMITED&&CLCD6862,CLC,5504-Day/CLC Services,610.20
01-APR-2022,Adults & Communities (P),EVOLVING CARE&&ISHC2825,HOME CARE,5505-Homecare,"2,200.29"
01-APR-2022,Adults & Communities (P),FIRST CHOICE CARE AGENCY LTD&&ISHC3934,HOME CARE,5505-Homecare,"5,613.85"
01-APR-2022,Adults & Communities (P),FOSSE HEALTHCARE LTD&&&&ISHC3231,HOME CARE,5505-Homecare,"8,611.19"
01-APR-2022,Adults & Communities (P),FREEDOM ACTIVE LTD&&CLCD3320,CLC,5504-Day/CLC Services,"2,274.26"
01-APR-2022,Adults & Communities (P),FTM DANCE&&CLCD3324,CLC,5504-Day/CLC Services,694.41
01-APR-2022,Adults & Communities (P),GLEBE HOUSE (CHARNWOOD) LTD&&CLCD3308,CLC,5504-Day/CLC Services,"8,140.20"
01-APR-2022,Adults & Communities (P),HALES GROUP LTD&&ISHC3228,HOME CARE,5505-Homecare,"8,204.77"
01-APR-2022,Adults & Communities (P),HELP AT HOME LTD&&ISHC3234,HOME CARE,5505-Homecare,"39,433.65"
01-APR-2022,Adults & Communities (P),IBC QUALITY SOLUTIONS&&CLCD6783,CLC,5504-Day/CLC Services,960.80
01-APR-2022,Adults & Communities (P),IBC QUALITY SOLUTIONS&&CLCD6783,CLC,5504-Day/CLC Services,754.04
01-APR-2022,Adults & Communities (P),REDACTED PERSONAL DATA,CLC,5504-Day/CLC Services,861.17
01-APR-2022,Adults & Communities (P),REDACTED PERSONAL DATA,HOME CARE,5505-Homecare,"18,138.68"
01-APR-2022,Adults & Communities (P),REDACTED PERSONAL DATA,HOME CARE,5505-Homecare,"1,027.18"
01-APR-2022,Adults & Communities (P),REDACTED PERSONAL DATA,HOME CARE,5505-Homecare,526.92
01-APR-2022,Adults & Communities (P),KEY 2 CARE LTD T/A DERBYSHIRE CARE SERVICES&&ISHC6569,HOME CARE,5505-Homecare,"3,580.04"
01-APR-2022,Adults & Communities (P),KRIS CARERS LTD&&ISHC3937,HOME CARE,5505-Homecare,"17,841.97"
01-APR-2022,Adults & Communities (P),LEICESTERSHIRE LEICESTER AND RUTLAND HEADWAY&&CLCD3328,CLC,5504-Day/CLC Services,549.45
01-APR-2022,Adults & Communities (P),MARCHA SOLUTIONS LTD T/A BLUEBIRD CARE LOUGHBOROUGH&&ISHC6008,HOME CARE,5505-Homecare,"3,243.14"
01-APR-2022,Adults & Communities (P),MEADOW BARN VIEW LTD&&CLCD5236,CLC,5504-Day/CLC Services,788.12
01-APR-2022,Adults & Communities (P),MEDACS HEALTHCARE&&ISHC3235,HOME CARE,5505-Homecare,"25,988.40"
01-APR-2022,Adults & Communities (P),MEDACS HEALTHCARE&&ISHC3235,HOME CARE,5505-Homecare,534.19
01-APR-2022,Adults & Communities (P),MEDACS HEALTHCARE&&ISHC3235,HOME CARE,5505-Homecare,"23,442.20"
01-APR-2022,Adults & Communities (P),MEDACS HEALTHCARE&&ISHC3235,HOME CARE,5505-Homecare,634.37
01-APR-2022,Adults & Communities (P),MEDACS HEALTHCARE&&ISHC3235,HOME CARE,5505-Homecare,"25,680.82"
01-APR-2022,Adults & Communities (P),MELTON CARE SERVICES LTD&&ISHC2246,HOME CARE,5505-Homecare,"15,241.29"
01-APR-2022,Adults & Communities (P),MERIDIAN HEALTH & SOCIAL CARE LTD&&ISHC4626,HOME CARE,5505-Homecare,"9,915.51"
01-APR-2022,Adults & Communities (P),MIDSHIRES CARE LTD T/A HELPING HANDS&&ISHC6596,HOME CARE,5505-Homecare,"1,443.49"
01-APR-2022,Adults & Communities (P),MILIFE CARE SERVICE LTD&&ISHC3782,HOME CARE,5505-Homecare,"3,324.24"
01-APR-2022,Adults & Communities (P),MOBILE CARE SERVICES LTD&&ISHCHC443,HOME CARE,5505-Homecare,"4,381.08"
01-APR-2022,Adults & Communities (P),NEW HOPE SPECIALIST CARE LTD&&ISHC3161,HOME CARE,5505-Homecare,"1,201.13"
01-APR-2022,Adults & Communities (P),PANASHE HOME CARE SERVICES LTD&&ISHC3952,HOME CARE,5505-Homecare,"15,987.71"
01-APR-2022,Adults & Communities (P),PASSION HEALTHCARE LIMITED&&ISHC2772,HOME CARE,5505-Homecare,"18,206.54"
01-APR-2022,Adults & Communities (P),PASSIONATE HOMECARE LTD T/A MY HOMECARE&&ISHC6335,HOME CARE,5505-Homecare,"8,877.94"
01-APR-2022,Adults & Communities (P),PRACTICAL CARE SOLUTIONS LTD&&ISHC3327,HOME CARE,5505-Homecare,"9,664.92"
01-APR-2022,Adults & Communities (P),PRECIOUS HOPE HEALTH & HOME CARE&&ISHC3233,HOME CARE,5505-Homecare,600.08
01-APR-2022,Adults & Communities (P),PRECIOUS HOPE HEALTH & HOME CARE&&ISHC3233,HOME CARE,5505-Homecare,"24,034.51"
01-APR-2022,Adults & Communities (P),PRESTIGE NURSING LTD&&ISHC5475,HOME CARE,5505-Homecare,"2,883.60"
01-APR-2022,Adults & Communities (P),PRO HELP LTD&&ISHC5331,HOME CARE,5505-Homecare,684.25
01-APR-2022,Adults & Communities (P),PRO HELP LTD&&ISHC5331,HOME CARE,5505-Homecare,"6,603.76"
01-APR-2022,Adults & Communities (P),PURE HOMECARE LTD&&ISHC3745,HOME CARE,5505-Homecare,"2,325.32"
01-APR-2022,Adults & Communities (P),RELIANCE COMMUNITY CARE LTD&&ISHC3815,HOME CARE,5505-Homecare,"12,395.21"
01-APR-2022,Adults & Communities (P),SELECT CARE SERVICES LTD&&ISHC3984,HOME CARE,5505-Homecare,966.80
01-APR-2022,Adults & Communities (P),SELECT CARE SERVICES LTD&&ISHC3984,HOME CARE,5505-Homecare,990.61
01-APR-2022,Adults & Communities (P),SELECT CARE SERVICES LTD&&ISHC3984,HOME CARE,5505-Homecare,990.61
01-APR-2022,Adults & Communities (P),SENSE&&CLCD3311,CLC,5504-Day/CLC Services,"4,005.65"
01-APR-2022,Adults & Communities (P),SHEPSHED CARERS LTD&&ISHCHC405,HOME CARE,5505-Homecare,"7,811.84"
01-APR-2022,Adults & Communities (P),SOVA HEALTHCARE LEICESTER LTD&&ISHC3195,HOME CARE,5505-Homecare,"5,857.88"
01-APR-2022,Adults & Communities (P),SUPPORT & CONNECTIONS LTD&&CLCD3316,CLC,5504-Day/CLC Services,"3,300.74"
01-APR-2022,Adults & Communities (P),SURECARE CHARNWOOD & RUSHCLIFFE&&ISHC6189,HOME CARE,5505-Homecare,"3,057.15"
01-APR-2022,Adults & Communities (P),TLR HEALTH CARE SERVICES LTD&&ISHC5887,HOME CARE,5505-Homecare,"7,447.60"
01-APR-2022,Adults & Communities (P),TRINITY TOWERS LTD T/A KARE PLUS&&ISHC5642,HOME CARE,5505-Homecare,"9,334.79"
01-APR-2022,Adults & Communities (P),VALLAND CARE AND SUPPPORT LTD &&ISHC6892,HOME CARE,5505-Homecare,597.86
01-APR-2022,Adults & Communities (P),VILLAGE HOMECARE LTD&&ISHC2754,HOME CARE,5505-Homecare,"8,108.59"
01-APR-2022,Adults & Communities (P),VISTA&&CLCD3329,CLC,5504-Day/CLC Services,726.24
01-APR-2022,Adults & Communities (P),VISTA&&CLCD3329,CLC,5504-Day/CLC Services,673.53
01-APR-2022,Adults & Communities (P),VOYAGE 1 LTD T/A VOYAGE CARE&&CLCD3317,CLC,5504-Day/CLC Services,610.20
01-APR-2022,Adults & Communities (P),VOYAGE 1 LTD T/A VOYAGE CARE&&CLCD3317,CLC,5504-Day/CLC Services,610.20
01-APR-2022,Adults & Communities (P),VOYAGE 1 LTD T/A VOYAGE CARE&&CLCD3317,CLC,5504-Day/CLC Services,610.20
01-APR-2022,Adults & Communities (P),VOYAGE 1 LTD T/A VOYAGE CARE&&CLCD3317,CLC,5504-Day/CLC Services,610.20
01-APR-2022,Adults & Communities (P),VOYAGE 1 LTD T/A VOYAGE CARE&&CLCD3317,CLC,5504-Day/CLC Services,610.20
01-APR-2022,Adults & Communities (P),VOYAGE 1 LTD T/A VOYAGE CARE&&CLCD3317,CLC,5504-Day/CLC Services,"10,521.08"
01-APR-2022,Adults & Communities (P),VOYAGE 1 LTD T/A VOYAGE CARE&&CLCD3317,CLC,5504-Day/CLC Services,610.20
01-APR-2022,Adults & Communities (P),WHM WORK CONNECTIONS LTD&&CLCD3312,CLC,5504-Day/CLC Services,"15,269.83"
01-APR-2022,Adults & Communities (P),WYVILLE HOMECARE SERVICES LTD&&ISHC6062,HOME CARE,5505-Homecare,"1,700.22"
01-APR-2022,Adults & Communities (P),XPERIENCE RECRUITMENT LTD MARKETING&&ISH6578,HOME CARE,5505-Homecare,"3,396.47"
01-APR-2022,C&FS (P),ABSOLUTE HEALTHCARE LTD T/A WESTWARDS NURSERY&&EYRSEY553923,EARLY YEARS,4908-Grants,"21,915.97"
01-APR-2022,C&FS (P),ACORN UNDER FIVES (BIRSTALL)&&EYRS1632,EARLY YEARS,4908-Grants,"26,842.64"
01-APR-2022,C&FS (P),ACORN UNDER FIVES (BIRSTALL)&&EYRS1632,EARLY YEARS,4908-Grants,"1,124.82"
01-APR-2022,C&FS (P),REDACTED PERSONAL DATA,EARLY YEARS,4908-Grants,"2,133.45"
01-APR-2022,C&FS (P),ADVENTURE PLAYSCHOOL LTD T/A ADVENTURE PLAYSCHOOL&&EYRS2577932,EARLY YEARS,4908-Grants,"18,301.14"
01-APR-2022,C&FS (P),ALBERT VILLAGE PRIMARY SCHOOL NURSERY&&EYRS1698,EARLY YEARS,4908-Grants,"21,522.27"
01-APR-2022,C&FS (P),REDACTED PERSONAL DATA,EARLY YEARS,4908-Grants,"17,210.66"
01-APR-2022,C&FS (P),REDACTED PERSONAL DATA,EARLY YEARS,4908-Grants,"4,266.90"
01-APR-2022,C&FS (P),REDACTED PERSONAL DATA,EARLY YEARS,4908-Grants,"2,844.60"
01-APR-2022,C&FS (P),REDACTED PERSONAL DATA,EARLY YEARS,4908-Grants,"25,172.95"
01-APR-2022,C&FS (P),REDACTED PERSONAL DATA,EARLY YEARS,4908-Grants,857.40
01-APR-2022,C&FS (P),ALLSORTS NURSERY SCHOOL&&EYRS1711,EARLY YEARS,4908-Grants,"15,513.68"
01-APR-2022,C&FS (P),ALLSORTS NURSERY SCHOOL&&EYRS1711,EARLY YEARS,4908-Grants,"1,587.81"
01-APR-2022,C&FS (P),REDACTED PERSONAL DATA,EARLY YEARS,4908-Grants,"26,389.77"
01-APR-2022,C&FS (P),REDACTED PERSONAL DATA,EARLY YEARS,4908-Grants,"3,792.80"
01-APR-2022,C&FS (P),REDACTED PERSONAL DATA,EARLY YEARS,4908-Grants,"1,312.78"
01-APR-2022,C&FS (P),REDACTED PERSONAL DATA,EARLY YEARS,4908-Grants,"8,245.35"
01-APR-2022,C&FS (P),REDACTED PERSONAL DATA,EARLY YEARS,4908-Grants,853.38
01-APR-2022,C&FS (P),REDACTED PERSONAL DATA,EARLY YEARS,4908-Grants,"2,284.17"
01-APR-2022,C&FS (P),REDACTED PERSONAL DATA,EARLY YEARS,4908-Grants,"7,459.02"
01-APR-2022,C&FS (P),REDACTED PERSONAL DATA,EARLY YEARS,4908-Grants,"6,558.75"
01-APR-2022,C&FS (P),REDACTED PERSONAL DATA,EARLY YEARS,4908-Grants,"3,330.56"
01-APR-2022,C&FS (P),REDACTED PERSONAL DATA,EARLY YEARS,4908-Grants,"6,802.27"
01-APR-2022,C&FS (P),ANSTEY EARLY LEARNING PRE SCHOOL LTD&&EYRS1737,EARLY YEARS,4908-Grants,"37,184.47"
01-APR-2022,C&FS (P),ANSTEY EARLY LEARNING PRE SCHOOL LTD&&EYRS1737,EARLY YEARS,4908-Grants,"2,138.40"
01-APR-2022,C&FS (P),ASHBY PRESCHOOL ACADEMY&&EYRS2665072,EARLY YEARS,4908-Grants,"2,690.68"
01-APR-2022,C&FS (P),ASHBY PRESCHOOL ACADEMY&&EYRS2665072,EARLY YEARS,4908-Grants,"58,417.69"
01-APR-2022,C&FS (P),BABBLEBROOKE LTD&&EYRS1772,EARLY YEARS,4908-Grants,"22,455.72"
01-APR-2022,C&FS (P),BABBLEBROOKE LTD&&EYRS1772,EARLY YEARS,4908-Grants,"1,966.69"
01-APR-2022,C&FS (P),BABBLEBROOKE LTD&&EYRS1772,EARLY YEARS,4908-Grants,"4,917.29"
01-APR-2022,C&FS (P),REDACTED PERSONAL DATA,EARLY YEARS,4908-Grants,746.71
01-APR-2022,C&FS (P),BARROW PRE SCHOOL PLAYGROUPSS&&EYRS1565,EARLY YEARS,4908-Grants,"2,211.63"
01-APR-2022,C&FS (P),BARROW PRE SCHOOL PLAYGROUPSS&&EYRS1565,EARLY YEARS,4908-Grants,"18,875.42"
01-APR-2022,C&FS (P),BARWELL VILLAGE HALL PLAYGROUP&&EYRS1694,EARLY YEARS,4908-Grants,"15,820.28"
01-APR-2022,C&FS (P),BEACON ACADEMY NURSERY&&EYRS1751,EARLY YEARS,4908-Grants,"56,380.13"
01-APR-2022,C&FS (P),BEACON ACADEMY NURSERY&&EYRS1751,EARLY YEARS,4908-Grants,"2,139.06"
01-APR-2022,C&FS (P),BEAVER CHILDCARE LTD T/A CHARNWOOD  PRE SCHOOL & OUT OF SCHOOL CLUB&&EYRS2598042,EARLY YEARS,4908-Grants,"52,819.80"
01-APR-2022,C&FS (P),BEAVER CHILDCARE LTD T/A CHARNWOOD NURSERY  & PRE SCHOOL&&EYRS1519,EARLY YEARS,4908-Grants,"74,535.75"
01-APR-2022,C&FS (P),BEAVER CHILDCARE LTD T/A CHARNWOOD NURSERY  & PRE SCHOOL&&EYRS1519,EARLY YEARS,4908-Grants,"2,508.70"
01-APR-2022,C&FS (P),BEAVER CHILDCARE LTD T/A CHARNWOOD PRESCHOOL&&EYRSEY562091,EARLY YEARS,4908-Grants,"28,805.98"
01-APR-2022,C&FS (P),BEAVER CHILDCARE LTD T/A CHARNWOOD PRESCHOOL&&EYRSEY562091,EARLY YEARS,4908-Grants,"1,326.50"
01-APR-2022,C&FS (P),BEAVER CHILDCARE T/A CHARNWOOD NURSERY AND PRE SCHOOL (ROTHLEY)&&EYRS2633577,EARLY YEARS,4908-Grants,"25,252.79"
01-APR-2022,C&FS (P),BEAVER CHILDCARE T/A CHARNWOOD NURSERY AND PRE SCHOOL (ROTHLEY)&&EYRS2633577,EARLY YEARS,4908-Grants,"1,186.82"
01-APR-2022,C&FS (P),BELTON PLAYGROUP&&EYRS1562,EARLY YEARS,4908-Grants,"13,298.89"
01-APR-2022,C&FS (P),BELTON PLAYGROUP&&EYRS1562,EARLY YEARS,4908-Grants,636.88
01-APR-2022,C&FS (P),BETH RICHARDS&&EYRS2583541,EARLY YEARS,4908-Grants,"1,573.15"
01-APR-2022,C&FS (P),BHFS LTD T/A WINDMILL DAY NURSERY&&EYRSEY281008,EARLY YEARS,4908-Grants,"44,016.17"
01-APR-2022,C&FS (P),BHFS LTD T/A WINDMILL DAY NURSERY&&EYRSEY281008,EARLY YEARS,4908-Grants,"1,160.46"
01-APR-2022,C&FS (P),BIG ADVENTURES CHILDRENS NURSERY LTD T/A DAISY CHAIN CHILDRENS NURSERY&&EYRS1731,EARLY YEARS,4908-Grants,"34,934.05"
01-APR-2022,C&FS (P),BIG ADVENTURES CHILDRENS NURSERY T/A DAISY CHAIN&&EYRS1587,EARLY YEARS,4908-Grants,"21,275.25"
01-APR-2022,C&FS (P),BILINGUAL DAY NURSERY ASHBY&&EYRSEY551087,EARLY YEARS,4908-Grants,"22,151.80"
01-APR-2022,C&FS (P),BILINGUAL DAY NURSERY ASHBY&&EYRSEY551087,EARLY YEARS,4908-Grants,"1,395.16"
01-APR-2022,C&FS (P),BIRSTALL RAINBOW NURSERY&&EYRS1480,EARLY YEARS,4908-Grants,"42,773.71"
01-APR-2022,C&FS (P),BIZZY BEES PRESCHOOL&&EYRSEY558811,EARLY YEARS,4908-Grants,"26,929.71"
01-APR-2022,C&FS (P),BIZZY BEES PRESCHOOL&&EYRSEY558811,EARLY YEARS,4908-Grants,547.92
01-APR-2022,C&FS (P),BLABY PRE SCHOOL&&EYRS1517,EARLY YEARS,4908-Grants,"25,569.59"
01-APR-2022,C&FS (P),BLABY PRE SCHOOL&&EYRS1517,EARLY YEARS,4908-Grants,"1,437.57"
01-APR-2022,C&FS (P),BLUEBELL NURSERY SCHOOL&&EYRS1748,EARLY YEARS,4908-Grants,"15,831.26"
01-APR-2022,C&FS (P),BLUEBELLS OF RATBY LTD&&EYRS2649491,EARLY YEARS,4908-Grants,"32,783.51"
01-APR-2022,C&FS (P),BLUEBERRY BUSH T/A BUSH BABIES CHILDRENS NURSERIES LTD&&EYRS1567,EARLY YEARS,4908-Grants,"3,141.63"
01-APR-2022,C&FS (P),BLUEBERRY BUSH T/A BUSH BABIES CHILDRENS NURSERIES LTD&&EYRS1567,EARLY YEARS,4908-Grants,"25,545.18"
01-APR-2022,C&FS (P),BOSWORTH ACADEMY (BA SERVICES)&&EYRS1743,EARLY YEARS,4908-Grants,"12,749.00"
01-APR-2022,C&FS (P),BOTTESFORD PRE SCHOOL PLAYGROUP&&EYRS1102,EARLY YEARS,4908-Grants,"23,752.41"
01-APR-2022,C&FS (P),BOTTESFORD PRE SCHOOL PLAYGROUP&&EYRS1102,EARLY YEARS,4908-Grants,909.90
01-APR-2022,C&FS (P),BRADGATE CHILDCARE KARA UNWIN&&EYRS2038,EARLY YEARS,4908-Grants,"7,111.50"
01-APR-2022,C&FS (P),BRADGATE EDUCATION PARTNERSHIP EASTFIELD PRIMARY SCHOOL TIDDLYWINKS&&EYRS1353,EARLY YEARS,4908-Grants,"6,969.27"
01-APR-2022,C&FS (P),BRIGHT SPARKS DAY NURSERY&&EYRS1385,EARLY YEARS,4908-Grants,"9,309.20"
01-APR-2022,C&FS (P),BRIGHT SPARKS DAY NURSERY&&EYRS1385,EARLY YEARS,4908-Grants,923.33
01-APR-2022,C&FS (P),BRITANNIA FIELDS PLAYGROUP&&EYRS1387,EARLY YEARS,4908-Grants,"14,876.22"
01-APR-2022,C&FS (P),BRITANNIA FIELDS PLAYGROUP&&EYRS1387,EARLY YEARS,4908-Grants,829.05
01-APR-2022,C&FS (P),BROAD STREET PLAYGROUP&&EYRS1388,EARLY YEARS,4908-Grants,"17,053.57"
01-APR-2022,C&FS (P),BROAD STREET PLAYGROUP&&EYRS1388,EARLY YEARS,4908-Grants,596.49
01-APR-2022,C&FS (P),BUBBLES ACTIVE PLAY AND BLUE BUBBLES PRE-SCHOOL LTD&&EYRS497949,EARLY YEARS,4908-Grants,"46,736.76"
01-APR-2022,C&FS (P),BUCKMINSTER PRE SCHOOL&&EYRSEXMT0076,EARLY YEARS,4908-Grants,"6,969.27"
01-APR-2022,C&FS (P),BURBAGE PRESCHOOL&&EYRS2529002,EARLY YEARS,4908-Grants,"30,418.68"
01-APR-2022,C&FS (P),BURTON ON THE WOLDS PRE SCHOOL&&EYRS1640,EARLY YEARS,4908-Grants,"22,160.83"
01-APR-2022,C&FS (P),BUSH BABIES CHILDRENS NURSERIES LTD T/A LILAC BUSH NURSERY&&EYRS1739,EARLY YEARS,4908-Grants,"19,249.99"
01-APR-2022,C&FS (P),BUSY BEES AT MARKET HARBOROUGH&&EYRS1656,EARLY YEARS,4908-Grants,"25,793.43"
01-APR-2022,C&FS (P),BUSY BEES DAY NURSERY AT LOUGHBOROUGH&&EYRS1334,EARLY YEARS,4908-Grants,"14,017.44"
01-APR-2022,C&FS (P),BUSY BEES DAY NURSERY&&EYRS1599,EARLY YEARS,4908-Grants,"44,437.08"
01-APR-2022,C&FS (P),BUSY BEES DAY NURSERY&&EYRS1599,EARLY YEARS,4908-Grants,"1,562.29"
01-APR-2022,C&FS (P),BUSY BEES DAY NURSERY&&EYRS1617,EARLY YEARS,4908-Grants,"28,672.48"
01-APR-2022,C&FS (P),BUSY BEES DAY NURSERY&&EYRS1617,EARLY YEARS,4908-Grants,782.30
01-APR-2022,C&FS (P),BUSY BEES NURSERIES LTD T/A BLACKBERRY BUSH DAY NURSERY&&EYRS223194,EARLY YEARS,4908-Grants,"28,099.48"
01-APR-2022,C&FS (P),BUSY BEES NURSERIES LTD T/A BUSY BEES DAY NURSERY AT BITTESWELL&&EYRSEY482339,EARLY YEARS,4908-Grants,"39,046.90"
01-APR-2022,C&FS (P),BUSY BEES NURSERIES LTD T/A BUSY BEES DAY NURSERY AT BITTESWELL&&EYRSEY482339,EARLY YEARS,4908-Grants,"1,177.81"
01-APR-2022,C&FS (P),BUSY BUGS&&EYRS1661,EARLY YEARS,4908-Grants,"22,808.50"
01-APR-2022,C&FS (P),REDACTED PERSONAL DATA,EARLY YEARS,4908-Grants,"2,417.91"
01-APR-2022,C&FS (P),CADEBY LANE STEPPING STONES&&EYRS1609,EARLY YEARS,4908-Grants,"24,345.86"
01-APR-2022,C&FS (P),CAPTAINS CABIN PRE-SCHOOL&&EXMT0138,EARLY YEARS,4908-Grants,"8,040.18"
01-APR-2022,C&FS (P),CARMEN DASAOLU&&EYRSCMA00014,EARLY YEARS,4908-Grants,"3,508.34"
01-APR-2022,C&FS (P),CARMEN DASAOLU&&EYRSCMA00014,EARLY YEARS,4908-Grants,638.82
01-APR-2022,C&FS (P),REDACTED PERSONAL DATA,EARLY YEARS,4908-Grants,"2,521.09"
01-APR-2022,C&FS (P),REDACTED PERSONAL DATA,EARLY YEARS,4908-Grants,"5,238.82"
01-APR-2022,C&FS (P),REDACTED PERSONAL DATA,EARLY YEARS,4908-Grants,"20,623.35"
01-APR-2022,C&FS (P),REDACTED PERSONAL DATA,EARLY YEARS,4908-Grants,600.48
01-APR-2022,C&FS (P),REDACTED PERSONAL DATA,EARLY YEARS,4908-Grants,"1,422.30"
01-APR-2022,C&FS (P),REDACTED PERSONAL DATA,EARLY YEARS,4908-Grants,"1,154.01"
01-APR-2022,C&FS (P),CASTLE LANE DAY NURSERY&&EYRS1393,EARLY YEARS,4908-Grants,"61,099.34"
01-APR-2022,C&FS (P),CASTLE LANE DAY NURSERY&&EYRS1393,EARLY YEARS,4908-Grants,828.60
01-APR-2022,C&FS (P),CASTLE PLAYGROUP&&EYRS1394,EARLY YEARS,4908-Grants,"21,718.57"
01-APR-2022,C&FS (P),CASTLE VIEW DAY NURSERY&&EYRS1758,EARLY YEARS,4908-Grants,"27,895.46"
01-APR-2022,C&FS (P),CASTLE VIEW DAY NURSERY&&EYRS1758,EARLY YEARS,4908-Grants,"1,501.32"
01-APR-2022,C&FS (P),CATERPILLA DAY NURSERY&&EYRS1708,EARLY YEARS,4908-Grants,"33,458.70"
01-APR-2022,C&FS (P),CATERPILLA DAY NURSERY&&EYRS1708,EARLY YEARS,4908-Grants,"1,419.60"
01-APR-2022,C&FS (P),CATERPILLAR PRE SCHOOL&&EYRS1789,EARLY YEARS,4908-Grants,"24,483.53"
01-APR-2022,C&FS (P),REDACTED PERSONAL DATA,EARLY YEARS,4908-Grants,"3,129.06"
01-APR-2022,C&FS (P),REDACTED PERSONAL DATA,EARLY YEARS,4908-Grants,896.40
01-APR-2022,C&FS (P),CATHERINE NADINE MORTIMER&&EYRS2561090,EARLY YEARS,4908-Grants,845.20
01-APR-2022,C&FS (P),CATHERINE NADINE MORTIMER&&EYRS2561090,EARLY YEARS,4908-Grants,887.25
01-APR-2022,C&FS (P),CE HENDERSON T/A LITTLE BADGERS PLAYGROUP&&EYRS1589,EARLY YEARS,4908-Grants,"12,612.71"
01-APR-2022,C&FS (P),CHAPEL LANE PLAYGROUP&&EYRSEY562225,EARLY YEARS,4908-Grants,"14,328.05"
01-APR-2022,C&FS (P),CHAPEL LANE PLAYGROUP&&EYRSEY562225,EARLY YEARS,4908-Grants,924.45
01-APR-2022,C&FS (P),REDACTED PERSONAL DATA,EARLY YEARS,4908-Grants,"2,583.85"
01-APR-2022,C&FS (P),REDACTED PERSONAL DATA,EARLY YEARS,4908-Grants,"1,991.22"
01-APR-2022,C&FS (P),REDACTED PERSONAL DATA,EARLY YEARS,4908-Grants,"3,849.90"
01-APR-2022,C&FS (P),REDACTED PERSONAL DATA,EARLY YEARS,4908-Grants,"3,492.72"
01-APR-2022,C&FS (P),REDACTED PERSONAL DATA,EARLY YEARS,4908-Grants,853.38
01-APR-2022,C&FS (P),CHARNWOOD FOREST NURSERY&&EYRSEY496442,EARLY YEARS,4908-Grants,"33,024.20"
01-APR-2022,C&FS (P),CHARNWOOD FOREST NURSERY&&EYRSEY496442,EARLY YEARS,4908-Grants,968.37
01-APR-2022,C&FS (P),CHEEKY MONKEYS PRE SCHOOL&&EYRS1689,EARLY YEARS,4908-Grants,"15,153.05"
01-APR-2022,C&FS (P),CHILDREN 1ST @ BIRSTALL&&EYRSEY561767,EARLY YEARS,4908-Grants,"73,446.10"
01-APR-2022,C&FS (P),CHILDREN 1ST @ BIRSTALL&&EYRSEY561767,EARLY YEARS,4908-Grants,921.05
01-APR-2022,C&FS (P),CHILDREN 1ST @ HATHERN &&EYRSEY561772,EARLY YEARS,4908-Grants,"54,469.97"
01-APR-2022,C&FS (P),CHILDREN 1ST @ SYSTON&&EYRSEY561773,EARLY YEARS,4908-Grants,"82,521.08"
01-APR-2022,C&FS (P),CHILDREN 1ST AT SHEPSHED&&EYRS1705,EARLY YEARS,4908-Grants,"47,127.09"
01-APR-2022,C&FS (P),CHILDREN 1ST AT SHEPSHED&&EYRS1705,EARLY YEARS,4908-Grants,"1,645.50"
01-APR-2022,C&FS (P),CHILDRENS CO (LEICESTER) LTD&&EYRS1601,EARLY YEARS,4908-Grants,"1,906.23"
01-APR-2022,C&FS (P),CHILDRENS CO (LEICESTER) LTD&&EYRS1601,EARLY YEARS,4908-Grants,"47,266.81"
01-APR-2022,C&FS (P),CHILDS TIME LTD T/A HANDKERCHIEF NURSERY&&EYRS1426,EARLY YEARS,4908-Grants,"59,748.85"
01-APR-2022,C&FS (P),CHILDS TIME LTD T/A HANDKERCHIEF NURSERY&&EYRS1426,EARLY YEARS,4908-Grants,"1,618.17"
01-APR-2022,C&FS (P),CHURCH HALL PLAYGROUP&&EYRS1399,EARLY YEARS,4908-Grants,"35,857.60"
01-APR-2022,C&FS (P),CLAIRE ELIZABETH MIDDLETON&&EYRS2691,EARLY YEARS,4908-Grants,"1,422.30"
01-APR-2022,C&FS (P),CLAIRE EMMA MASON&&EYRS2738,EARLY YEARS,4908-Grants,"3,477.10"
01-APR-2022,C&FS (P),REDACTED PERSONAL DATA,EARLY YEARS,4908-Grants,"1,422.30"
01-APR-2022,C&FS (P),REDACTED PERSONAL DATA,EARLY YEARS,4908-Grants,"3,581.35"
01-APR-2022,C&FS (P),REDACTED PERSONAL DATA,EARLY YEARS,4908-Grants,"1,539.73"
01-APR-2022,C&FS (P),REDACTED PERSONAL DATA,EARLY YEARS,4908-Grants,"3,129.06"
01-APR-2022,C&FS (P),REDACTED PERSONAL DATA,EARLY YEARS,4908-Grants,"1,312.78"
01-APR-2022,C&FS (P),REDACTED PERSONAL DATA,EARLY YEARS,4908-Grants,"1,070.70"
01-APR-2022,C&FS (P),REDACTED PERSONAL DATA,EARLY YEARS,4908-Grants,"2,348.95"
01-APR-2022,C&FS (P),REDACTED PERSONAL DATA,EARLY YEARS,4908-Grants,"2,663.58"
01-APR-2022,C&FS (P),REDACTED PERSONAL DATA,EARLY YEARS,4908-Grants,"1,706.76"
01-APR-2022,C&FS (P),CLARENDON PLAYGROUP&&EYRS1564,EARLY YEARS,4908-Grants,"26,260.81"
01-APR-2022,C&FS (P),CLARENDON PLAYGROUP&&EYRS1564,EARLY YEARS,4908-Grants,546.45
01-APR-2022,C&FS (P),COBDEN PRESCHOOL&&EYRS1784,EARLY YEARS,4908-Grants,"60,049.95"
01-APR-2022,C&FS (P),COBDEN PRESCHOOL&&EYRS1784,EARLY YEARS,4908-Grants,961.47
01-APR-2022,C&FS (P),COLETTE NEILSON&&EYRS225349,EARLY YEARS,4908-Grants,"1,137.84"
01-APR-2022,C&FS (P),COMMUNITY CENTRE PLAYGROUP (STONEY STANTON)&&EYRS1402,EARLY YEARS,4908-Grants,"10,755.36"
01-APR-2022,C&FS (P),CORAL BOOTH&&EYRSEY551441,EARLY YEARS,4908-Grants,"1,380.89"
01-APR-2022,C&FS (P),COSBY PRIMARY SCHOOL PRE-SCHOOL&&EYRSEXMT0107,EARLY YEARS,4908-Grants,"32,069.82"
01-APR-2022,C&FS (P),CROFT C OF E COMMUNITY PLAYGROUP&&EYRS1405,EARLY YEARS,4908-Grants,"18,747.99"
01-APR-2022,C&FS (P),CROFT C OF E COMMUNITY PLAYGROUP&&EYRS1405,EARLY YEARS,4908-Grants,785.43
01-APR-2022,C&FS (P),REDACTED PERSONAL DATA,EARLY YEARS,4908-Grants,"1,785.99"
01-APR-2022,C&FS (P),REDACTED PERSONAL DATA,EARLY YEARS,4908-Grants,"2,441.62"
01-APR-2022,C&FS (P),REDACTED PERSONAL DATA,EARLY YEARS,4908-Grants,"9,410.89"
01-APR-2022,C&FS (P),DAIRY FARM DAY NURSERY&&EYRS1813,EARLY YEARS,4908-Grants,"12,516.27"
01-APR-2022,C&FS (P),REDACTED PERSONAL DATA,EARLY YEARS,4908-Grants,"1,045.80"
01-APR-2022,C&FS (P),REDACTED PERSONAL DATA,EARLY YEARS,4908-Grants,995.61
01-APR-2022,C&FS (P),REDACTED PERSONAL DATA,EARLY YEARS,4908-Grants,"7,210.50"
01-APR-2022,C&FS (P),REDACTED PERSONAL DATA,EARLY YEARS,4908-Grants,"3,003.00"
01-APR-2022,C&FS (P),REDACTED PERSONAL DATA,EARLY YEARS,4908-Grants,"3,413.52"
01-APR-2022,C&FS (P),REDACTED PERSONAL DATA,EARLY YEARS,4908-Grants,"3,635.50"
01-APR-2022,C&FS (P),DE VERDUN CHILDRENS NURSERY&&EYRS1718,EARLY YEARS,4908-Grants,"22,821.48"
01-APR-2022,C&FS (P),DE VERDUN CHILDRENS NURSERY&&EYRS1718,EARLY YEARS,4908-Grants,"1,639.14"
01-APR-2022,C&FS (P),REDACTED PERSONAL DATA,EARLY YEARS,4908-Grants,"2,631.26"
01-APR-2022,C&FS (P),REDACTED PERSONAL DATA,EARLY YEARS,4908-Grants,641.07
01-APR-2022,C&FS (P),REDACTED PERSONAL DATA,EARLY YEARS,4908-Grants,"1,170.30"
01-APR-2022,C&FS (P),REDACTED PERSONAL DATA,EARLY YEARS,4908-Grants,"1,540.83"
01-APR-2022,C&FS (P),REDACTED PERSONAL DATA,EARLY YEARS,4908-Grants,"1,444.58"
01-APR-2022,C&FS (P),REDACTED PERSONAL DATA,EARLY YEARS,4908-Grants,"2,197.03"
01-APR-2022,C&FS (P),DEN FARMSIDE&&EYRSEY556945,EARLY YEARS,4908-Grants,"43,124.29"
01-APR-2022,C&FS (P),REDACTED PERSONAL DATA,EARLY YEARS,4908-Grants,"1,991.22"
01-APR-2022,C&FS (P),REDACTED PERSONAL DATA,EARLY YEARS,4908-Grants,"4,195.79"
01-APR-2022,C&FS (P),DISCOVER OUTDOORS LTD T/A NATURES WAY FOREST KINDERGARTEN&&EYRS2636719,EARLY YEARS,4908-Grants,"5,364.32"
01-APR-2022,C&FS (P),DISCOVER OUTDOORS LTD T/A NATURES WAY FOREST KINDERGARTEN&&EYRS2636719,EARLY YEARS,4908-Grants,"1,037.62"
01-APR-2022,C&FS (P),DISCOVERY SCHOOLS AC T/A WOOLDEN FERNS PRESCHOOL&&EYRSEXMT0137,EARLY YEARS,4908-Grants,"1,380.03"
01-APR-2022,C&FS (P),DISCOVERY SCHOOLS AC T/A WOOLDEN FERNS PRESCHOOL&&EYRSEXMT0137,EARLY YEARS,4908-Grants,"31,759.08"
01-APR-2022,C&FS (P),REDACTED PERSONAL DATA,EARLY YEARS,4908-Grants,"3,424.30"
01-APR-2022,C&FS (P),EARLY YEARS NURSERY&&EYRS1679,EARLY YEARS,4908-Grants,"34,430.72"
01-APR-2022,C&FS (P),EARLY YEARS NURSERY&&EYRS1679,EARLY YEARS,4908-Grants,704.08
01-APR-2022,C&FS (P),EARLY YEARS NURSERY&&EYRS1697,EARLY YEARS,4908-Grants,"57,328.46"
01-APR-2022,C&FS (P),EARLY YEARS NURSERY&&EYRS1697,EARLY YEARS,4908-Grants,"1,859.48"
01-APR-2022,C&FS (P),REDACTED PERSONAL DATA,EARLY YEARS,4908-Grants,"1,667.97"
01-APR-2022,C&FS (P),REDACTED PERSONAL DATA,EARLY YEARS,4908-Grants,"9,720.15"
01-APR-2022,C&FS (P),REDACTED PERSONAL DATA,EARLY YEARS,4908-Grants,"3,382.28"
01-APR-2022,C&FS (P),ELEANOR CURTIS&&EYRSEY406507,EARLY YEARS,4908-Grants,"2,007.85"
01-APR-2022,C&FS (P),ELEANOR CURTIS&&EYRSEY406507,EARLY YEARS,4908-Grants,747.72
01-APR-2022,C&FS (P),REDACTED PERSONAL DATA,EARLY YEARS,4908-Grants,"2,133.45"
01-APR-2022,C&FS (P),REDACTED PERSONAL DATA,EARLY YEARS,4908-Grants,906.01
01-APR-2022,C&FS (P),REDACTED PERSONAL DATA,EARLY YEARS,4908-Grants,713.80
01-APR-2022,C&FS (P),REDACTED PERSONAL DATA,EARLY YEARS,4908-Grants,"1,422.30"
01-APR-2022,C&FS (P),REDACTED PERSONAL DATA,EARLY YEARS,4908-Grants,"2,291.85"
01-APR-2022,C&FS (P),REDACTED PERSONAL DATA,EARLY YEARS,4908-Grants,529.82
01-APR-2022,C&FS (P),ELLISTOWN PLAYGROUP&&EYRS1585,EARLY YEARS,4908-Grants,"15,840.47"
01-APR-2022,C&FS (P),ELLISTOWN PLAYGROUP&&EYRS1585,EARLY YEARS,4908-Grants,"1,081.02"
01-APR-2022,C&FS (P),REDACTED PERSONAL DATA,EARLY YEARS,4908-Grants,"2,924.13"
01-APR-2022,C&FS (P),REDACTED PERSONAL DATA,EARLY YEARS,4908-Grants,"3,079.08"
01-APR-2022,C&FS (P),REDACTED PERSONAL DATA,EARLY YEARS,4908-Grants,"1,580.70"
01-APR-2022,C&FS (P),REDACTED PERSONAL DATA,EARLY YEARS,4908-Grants,"2,536.44"
01-APR-2022,C&FS (P),REDACTED PERSONAL DATA,EARLY YEARS,4908-Grants,"4,187.59"
01-APR-2022,C&FS (P),REDACTED PERSONAL DATA,EARLY YEARS,4908-Grants,"13,453.62"
01-APR-2022,C&FS (P),REDACTED PERSONAL DATA,EARLY YEARS,4908-Grants,680.88
01-APR-2022,C&FS (P),ENDERBY DANEMILL PRE SCHOOL&&EYRS140316,EARLY YEARS,4908-Grants,"28,446.00"
01-APR-2022,C&FS (P),ERICA ANN BACKHOUSE&&EYRSEY561573,EARLY YEARS,4908-Grants,"4,509.87"
01-APR-2022,C&FS (P),REDACTED PERSONAL DATA,EARLY YEARS,4908-Grants,"4,314.31"
01-APR-2022,C&FS (P),FAIRFIELD SCHOOL NURSERY&&EYRS1201,EARLY YEARS,4908-Grants,"77,792.73"
01-APR-2022,C&FS (P),FAZILA LATIF&&EYRSEY542166,EARLY YEARS,4908-Grants,"4,978.05"
01-APR-2022,C&FS (P),FAZILA LATIF&&EYRSEY542166,EARLY YEARS,4908-Grants,754.20
01-APR-2022,C&FS (P),FELICITY ANN JACOBS&&EYRS2574,EARLY YEARS,4908-Grants,971.91
01-APR-2022,C&FS (P),REDACTED PERSONAL DATA,EARLY YEARS,4908-Grants,"1,137.84"
01-APR-2022,C&FS (P),FIRST STEPS PLAYGROUP (BARLESTONE)&&EYRS1109,EARLY YEARS,4908-Grants,"32,107.25"
01-APR-2022,C&FS (P),FLECKNEY BAPTIST PRESCHOOL&&EYRS1782,EARLY YEARS,4908-Grants,"25,295.24"
01-APR-2022,C&FS (P),FLECKNEY BAPTIST PRESCHOOL&&EYRS1782,EARLY YEARS,4908-Grants,"1,419.30"
01-APR-2022,C&FS (P),FLUTTERBIES PRE SCHOOL&&EYRS2505727,EARLY YEARS,4908-Grants,"15,122.14"
01-APR-2022,C&FS (P),FOOTSTEPS DAY NURSERY&&EYRS1693,EARLY YEARS,4908-Grants,"36,437.06"
01-APR-2022,C&FS (P),FOOTSTEPS DAY NURSERY&&EYRS1693,EARLY YEARS,4908-Grants,"3,740.55"
01-APR-2022,C&FS (P),FRANCES BUTLIN&&EYRSEY471145,EARLY YEARS,4908-Grants,663.74
01-APR-2022,C&FS (P),FRISBY PRESCHOOL&&EYRS1112,EARLY YEARS,4908-Grants,"8,929.80"
01-APR-2022,C&FS (P),FRISBY PRESCHOOL&&EYRS1112,EARLY YEARS,4908-Grants,"9,552.96"
01-APR-2022,C&FS (P),GADDESBY SCHOOL COMMUNITY LTD&&EYRS1355,EARLY YEARS,4908-Grants,"24,061.15"
01-APR-2022,C&FS (P),GADDESBY SCHOOL COMMUNITY LTD&&EYRS1355,EARLY YEARS,4908-Grants,510.65
01-APR-2022,C&FS (P),GAYNOR PARKER&&EYRSEY414763,EARLY YEARS,4908-Grants,"1,659.35"
01-APR-2022,C&FS (P),GD HODGSON T/A ASHBY CASTLE DAY NURSERY&&EYRS1375,EARLY YEARS,4908-Grants,"91,813.88"
01-APR-2022,C&FS (P),REDACTED PERSONAL DATA,EARLY YEARS,4908-Grants,"5,689.20"
01-APR-2022,C&FS (P),REDACTED PERSONAL DATA,EARLY YEARS,4908-Grants,"2,844.60"
01-APR-2022,C&FS (P),REDACTED PERSONAL DATA,EARLY YEARS,4908-Grants,"1,422.30"
01-APR-2022,C&FS (P),GILLIAN BECKETT&&EYRS2263,EARLY YEARS,4908-Grants,"2,844.60"
01-APR-2022,C&FS (P),GINGERBREAD 2 NURSERY&&EYRS1729,EARLY YEARS,4908-Grants,"49,421.72"
01-APR-2022,C&FS (P),GINGERBREAD 2 NURSERY&&EYRS1729,EARLY YEARS,4908-Grants,"1,068.45"
01-APR-2022,C&FS (P),GINGERBREAD COTTAGE PLAYGROUP&&EYRS1342,EARLY YEARS,4908-Grants,"43,486.31"
01-APR-2022,C&FS (P),GINGERBREAD COTTAGE PLAYGROUP&&EYRS1342,EARLY YEARS,4908-Grants,"1,068.45"
01-APR-2022,C&FS (P),GLENFIELD METHODIST PLAYGROUP GENERAL ACCOUNT TRUST&&EYRS1420,EARLY YEARS,4908-Grants,"13,974.66"
01-APR-2022,C&FS (P),GLENHILLS PRE-SCHOOL&&EYRSEY558542,EARLY YEARS,4908-Grants,"20,538.87"
01-APR-2022,C&FS (P),GOOSEBERRY BUSH T/A BUSH BABIES CHILDRENS NURSERIES LTD&&EYRS1343,EARLY YEARS,4908-Grants,"16,551.27"
01-APR-2022,C&FS (P),GRASSHOPPER CLUB&&EYRS1500,EARLY YEARS,4908-Grants,"57,650.29"
01-APR-2022,C&FS (P),GRASSHOPPER CLUB&&EYRS1500,EARLY YEARS,4908-Grants,891.00
01-APR-2022,C&FS (P),GREAT BOWDEN PLAYGROUP&&EYRS1113,EARLY YEARS,4908-Grants,"27,736.54"
01-APR-2022,C&FS (P),GREAT BOWDEN PLAYGROUP&&EYRS1113,EARLY YEARS,4908-Grants,832.50
01-APR-2022,C&FS (P),GREAT DALBY PRE SCHOOL PLAYGROUP&&EYRS1531,EARLY YEARS,4908-Grants,"13,369.62"
01-APR-2022,C&FS (P),GREEN ACRES CHILDCARE&&EYRS1807,EARLY YEARS,4908-Grants,"39,378.48"
01-APR-2022,C&FS (P),GREENFIELD PRIMARY SCHOOL&&EYRSEXMT0026,EARLY YEARS,4908-Grants,"43,532.85"
01-APR-2022,C&FS (P),GREENFIELD PRIMARY SCHOOL&&EYRSEXMT0026,EARLY YEARS,4908-Grants,"4,751.51"
01-APR-2022,C&FS (P),GREYSTOKE CHILDCARE LTD&&EYRS1759,EARLY YEARS,4908-Grants,"18,034.26"
01-APR-2022,C&FS (P),GREYSTOKE CHILDCARE LTD&&EYRS1759,EARLY YEARS,4908-Grants,"19,035.24"
01-APR-2022,C&FS (P),GUTHLAXTON COLLEGE&&EYRS1776,EARLY YEARS,4908-Grants,"25,710.42"
01-APR-2022,C&FS (P),HALL LANE METHODIST PLAYGROUP&&EYRS1516,EARLY YEARS,4908-Grants,"16,155.93"
01-APR-2022,C&FS (P),HALL ORCHARD EXTENDED SERVICES LTD&&EYRS1425,EARLY YEARS,4908-Grants,"34,408.94"
01-APR-2022,C&FS (P),HALL ORCHARD EXTENDED SERVICES LTD&&EYRS1425,EARLY YEARS,4908-Grants,693.94
01-APR-2022,C&FS (P),HANDPRINTS@THEBAPTISTCHURCH&&EYRS1794,EARLY YEARS,4908-Grants,"24,977.70"
01-APR-2022,C&FS (P),REDACTED PERSONAL DATA,EARLY YEARS,4908-Grants,"1,422.30"
01-APR-2022,C&FS (P),HAPPY HEDGEHOGS PRE SCHOOL&&EYRS1115,EARLY YEARS,4908-Grants,"20,766.68"
01-APR-2022,C&FS (P),HAPPY HEDGEHOGS PRE SCHOOL&&EYRS1115,EARLY YEARS,4908-Grants,"1,521.00"
01-APR-2022,C&FS (P),HARBOROUGH MONTESSORI PRE SCHOOL&&EYRS1538,EARLY YEARS,4908-Grants,"13,265.80"
01-APR-2022,C&FS (P),HEATHER MICHELLE CHAPMAN&&EYRS2621818,EARLY YEARS,4908-Grants,"1,116.63"
01-APR-2022,C&FS (P),REDACTED PERSONAL DATA,EARLY YEARS,4908-Grants,"25,704.43"
01-APR-2022,C&FS (P),REDACTED PERSONAL DATA,EARLY YEARS,4908-Grants,"2,844.60"
01-APR-2022,C&FS (P),REDACTED PERSONAL DATA,EARLY YEARS,4908-Grants,"4,266.90"
01-APR-2022,C&FS (P),HERMITAGE DAY NURSERY & PRE-SCHOOL&&EYRS223217,EARLY YEARS,4908-Grants,"44,399.93"
01-APR-2022,C&FS (P),HILL TOP DAY NURSERY LTD T/A KINGFISHER DAY NURSERY&&EYRS1722,EARLY YEARS,4908-Grants,"48,251.47"
01-APR-2022,C&FS (P),HILL TOP DAY NURSERY LTD T/A KINGFISHER DAY NURSERY&&EYRS1722,EARLY YEARS,4908-Grants,"1,872.79"
01-APR-2022,C&FS (P),HIND LEYS PRE SCHOOL&&EYRS1119,EARLY YEARS,4908-Grants,"47,893.66"
01-APR-2022,C&FS (P),HIND LEYS PRE SCHOOL&&EYRS1119,EARLY YEARS,4908-Grants,"1,181.71"
01-APR-2022,C&FS (P),REDACTED PERSONAL DATA,EARLY YEARS,4908-Grants,"1,142.02"
01-APR-2022,C&FS (P),REDACTED PERSONAL DATA,EARLY YEARS,4908-Grants,"63,226.38"
01-APR-2022,C&FS (P),REDACTED PERSONAL DATA,EARLY YEARS,4908-Grants,"17,352.06"
01-APR-2022,C&FS (P),REDACTED PERSONAL DATA,EARLY YEARS,4908-Grants,"34,476.67"
01-APR-2022,C&FS (P),REDACTED PERSONAL DATA,EARLY YEARS,4908-Grants,996.96
01-APR-2022,C&FS (P),HOMESTEAD ROAD PLAYGROUP&&EYRS1433,EARLY YEARS,4908-Grants,"9,554.90"
01-APR-2022,C&FS (P),HONEY BEES PAVILION&&EYRSEY340714,EARLY YEARS,4908-Grants,"21,575.40"
01-APR-2022,C&FS (P),HONEY BEES PAVILION&&EYRSEY340714,EARLY YEARS,4908-Grants,"1,587.60"
01-APR-2022,C&FS (P),HOPE COMMUNITY CHURCH & FAMILY CENTRE&&EYRS1624,EARLY YEARS,4908-Grants,"28,503.90"
01-APR-2022,C&FS (P),HOPE COMMUNITY CHURCH & FAMILY CENTRE&&EYRS1624,EARLY YEARS,4908-Grants,615.00
01-APR-2022,C&FS (P),HOPSCOTCH PRE SCHOOL&&EYRS1528,EARLY YEARS,4908-Grants,"9,295.83"
01-APR-2022,C&FS (P),HUGGLESCOTE PLAYGROUP&&EYRS1569,EARLY YEARS,4908-Grants,"32,559.93"
01-APR-2022,C&FS (P),HUNCOTE COMMUNITY PRE SCHOOL&&EYRS2630422,EARLY YEARS,4908-Grants,"19,964.84"
01-APR-2022,C&FS (P),HUNCOTE COMMUNITY PRE SCHOOL&&EYRS2630422,EARLY YEARS,4908-Grants,"1,282.14"
01-APR-2022,C&FS (P),HUNNY BEAR DAY NURSERY&&EYRS1788,EARLY YEARS,4908-Grants,"53,907.01"
01-APR-2022,C&FS (P),HUNNY COMB DAY NURSERY&&EYRS2550213,EARLY YEARS,4908-Grants,"42,916.44"
01-APR-2022,C&FS (P),HUNNY HIVE DAY NURSERY&&EYRS539726,EARLY YEARS,4908-Grants,"34,060.61"
01-APR-2022,C&FS (P),HUNNY HIVE DAY NURSERY&&EYRS539726,EARLY YEARS,4908-Grants,698.13
01-APR-2022,C&FS (P),HUNNY POT DAY NURSERY&&EYRS1662,EARLY YEARS,4908-Grants,"57,635.20"
01-APR-2022,C&FS (P),INCREDIBLE KIDS&&EYRS501475,EARLY YEARS,4908-Grants,"63,101.03"
01-APR-2022,C&FS (P),INCY WINCYS PRESCHOOL&&EYRS2653722,EARLY YEARS,4908-Grants,"6,872.58"
01-APR-2022,C&FS (P),INCY WINCYS PRESCHOOL&&EYRS2653722,EARLY YEARS,4908-Grants,"4,486.08"
01-APR-2022,C&FS (P),REDACTED PERSONAL DATA,EARLY YEARS,4908-Grants,"1,422.30"
01-APR-2022,C&FS (P),REDACTED PERSONAL DATA,EARLY YEARS,4908-Grants,512.94
01-APR-2022,C&FS (P),REDACTED PERSONAL DATA,EARLY YEARS,4908-Grants,"3,714.15"
01-APR-2022,C&FS (P),REDACTED PERSONAL DATA,EARLY YEARS,4908-Grants,568.92
01-APR-2022,C&FS (P),REDACTED PERSONAL DATA,EARLY YEARS,4908-Grants,"2,125.39"
01-APR-2022,C&FS (P),REDACTED PERSONAL DATA,EARLY YEARS,4908-Grants,"4,978.05"
01-APR-2022,C&FS (P),REDACTED PERSONAL DATA,EARLY YEARS,4908-Grants,568.92
01-APR-2022,C&FS (P),REDACTED PERSONAL DATA,EARLY YEARS,4908-Grants,"2,749.78"
01-APR-2022,C&FS (P),REDACTED PERSONAL DATA,EARLY YEARS,4908-Grants,"9,529.41"
01-APR-2022,C&FS (P),REDACTED PERSONAL DATA,EARLY YEARS,4908-Grants,"1,731.09"
01-APR-2022,C&FS (P),REDACTED PERSONAL DATA,EARLY YEARS,4908-Grants,"5,318.28"
01-APR-2022,C&FS (P),REDACTED PERSONAL DATA,EARLY YEARS,4908-Grants,"10,292.15"
01-APR-2022,C&FS (P),REDACTED PERSONAL DATA,EARLY YEARS,4908-Grants,"4,266.90"
01-APR-2022,C&FS (P),REDACTED PERSONAL DATA,EARLY YEARS,4908-Grants,"2,228.27"
01-APR-2022,C&FS (P),REDACTED PERSONAL DATA,EARLY YEARS,4908-Grants,568.92
01-APR-2022,C&FS (P),REDACTED PERSONAL DATA,EARLY YEARS,4908-Grants,"20,468.25"
01-APR-2022,C&FS (P),REDACTED PERSONAL DATA,EARLY YEARS,4908-Grants,695.64
01-APR-2022,C&FS (P),REDACTED PERSONAL DATA,EARLY YEARS,4908-Grants,853.38
01-APR-2022,C&FS (P),REDACTED PERSONAL DATA,EARLY YEARS,4908-Grants,"1,406.79"
01-APR-2022,C&FS (P),REDACTED PERSONAL DATA,EARLY YEARS,4908-Grants,"15,242.34"
01-APR-2022,C&FS (P),REDACTED PERSONAL DATA,EARLY YEARS,4908-Grants,622.50
01-APR-2022,C&FS (P),REDACTED PERSONAL DATA,EARLY YEARS,4908-Grants,853.38
01-APR-2022,C&FS (P),REDACTED PERSONAL DATA,EARLY YEARS,4908-Grants,"2,855.38"
01-APR-2022,C&FS (P),REDACTED PERSONAL DATA,EARLY YEARS,4908-Grants,869.55
01-APR-2022,C&FS (P),REDACTED PERSONAL DATA,EARLY YEARS,4908-Grants,"1,422.30"
01-APR-2022,C&FS (P),REDACTED PERSONAL DATA,EARLY YEARS,4908-Grants,"2,327.27"
01-APR-2022,C&FS (P),REDACTED PERSONAL DATA,EARLY YEARS,4908-Grants,"1,156.44"
01-APR-2022,C&FS (P),REDACTED PERSONAL DATA,EARLY YEARS,4908-Grants,"3,508.34"
01-APR-2022,C&FS (P),REDACTED PERSONAL DATA,EARLY YEARS,4908-Grants,"4,366.50"
01-APR-2022,C&FS (P),REDACTED PERSONAL DATA,EARLY YEARS,4908-Grants,853.38
01-APR-2022,C&FS (P),REDACTED PERSONAL DATA,EARLY YEARS,4908-Grants,616.33
01-APR-2022,C&FS (P),REDACTED PERSONAL DATA,EARLY YEARS,4908-Grants,971.91
01-APR-2022,C&FS (P),REDACTED PERSONAL DATA,EARLY YEARS,4908-Grants,"1,621.10"
01-APR-2022,C&FS (P),REDACTED PERSONAL DATA,EARLY YEARS,4908-Grants,"1,374.89"
01-APR-2022,C&FS (P),KIBWORTH METHODIST PRE SCHOOL&&EYRS1441,EARLY YEARS,4908-Grants,"17,460.18"
01-APR-2022,C&FS (P),KIBWORTH METHODIST PRE SCHOOL&&EYRS1441,EARLY YEARS,4908-Grants,"1,064.70"
01-APR-2022,C&FS (P),KIDAROO CHILDCARE LTD&&EYRS1304,EARLY YEARS,4908-Grants,"59,033.03"
01-APR-2022,C&FS (P),KIDAROO CHILDCARE LTD&&EYRS1304,EARLY YEARS,4908-Grants,"1,283.04"
01-APR-2022,C&FS (P),KIDDY KAPERS&&EYRS1607,EARLY YEARS,4908-Grants,"40,960.71"
01-APR-2022,C&FS (P),KILBY ST MARYS 3+UNIT&&EYRSEXMT0125,EARLY YEARS,4908-Grants,"8,391.57"
01-APR-2022,C&FS (P),KIMBRA LEIGH SMITH&&EYRS226067,EARLY YEARS,4908-Grants,"3,063.15"
01-APR-2022,C&FS (P),KINGSCLIFFE DAY NURSERY LTD&&EYRS1560,EARLY YEARS,4908-Grants,"14,193.13"
01-APR-2022,C&FS (P),KIRKBY MALLORY PLAYGROUP&&EYRS1122,EARLY YEARS,4908-Grants,"8,589.57"
01-APR-2022,C&FS (P),REDACTED PERSONAL DATA,EARLY YEARS,4908-Grants,"5,120.28"
01-APR-2022,C&FS (P),REDACTED PERSONAL DATA,EARLY YEARS,4908-Grants,"1,991.22"
01-APR-2022,C&FS (P),KNOSSINGTON & SOMERBY PRE SCHOOL&&EYRS1683,EARLY YEARS,4908-Grants,"16,705.15"
01-APR-2022,C&FS (P),REDACTED PERSONAL DATA,EARLY YEARS,4908-Grants,"11,535.90"
01-APR-2022,C&FS (P),LANGMOOR PRE SCHOOL&&EYRS1525,EARLY YEARS,4908-Grants,"16,310.30"
01-APR-2022,C&FS (P),LANGMOOR PRE SCHOOL&&EYRS1525,EARLY YEARS,4908-Grants,616.75
01-APR-2022,C&FS (P),REDACTED PERSONAL DATA,EARLY YEARS,4908-Grants,"4,266.90"
01-APR-2022,C&FS (P),LAURELS NURSERY SCHOOL&&EYRS1804,EARLY YEARS,4908-Grants,"36,557.78"
01-APR-2022,C&FS (P),LAURELS NURSERY SCHOOL&&EYRS1804,EARLY YEARS,4908-Grants,529.82
01-APR-2022,C&FS (P),LAVENDER BUSH&&EYRS1602,EARLY YEARS,4908-Grants,"2,197.93"
01-APR-2022,C&FS (P),LAVENDER BUSH&&EYRS1602,EARLY YEARS,4908-Grants,"62,320.12"
01-APR-2022,C&FS (P),LCC NEWBOLD VERDON  PRIMARY SCHOOL&&EYRS1588,EARLY YEARS,4908-Grants,"10,173.63"
01-APR-2022,C&FS (P),LCC NEWLANDS PRIMARY SCHOOL MINI METOEORITES&&EYRSEXMT0132,EARLY YEARS,4908-Grants,"25,059.21"
01-APR-2022,C&FS (P),LCC OADBY WOODLAND GRANGE PRIMARY SCHOOL&&EXMT0074,EARLY YEARS,4908-Grants,"51,459.06"
01-APR-2022,C&FS (P),LCC WHITWICK CE PRIMARY SCHOOL T/A PENGUIN PRE SCHOOL&&EYRS1706,EARLY YEARS,4908-Grants,"40,867.58"
01-APR-2022,C&FS (P),LCC WHITWICK CE PRIMARY SCHOOL T/A PENGUIN PRE SCHOOL&&EYRS1706,EARLY YEARS,4908-Grants,"1,189.75"
01-APR-2022,C&FS (P),LEICESTER GRAMMAR JUNIOR SCHOOL&&EYRS1692,EARLY YEARS,4908-Grants,"27,983.85"
01-APR-2022,C&FS (P),LEIRE PRESCHOOL COMMUNITY INTEREST T/A ASHBY & LEIRE PRESCHOOL&&EYRSEY557582,EARLY YEARS,4908-Grants,"18,504.96"
01-APR-2022,C&FS (P),REDACTED PERSONAL DATA,EARLY YEARS,4908-Grants,"4,290.04"
01-APR-2022,C&FS (P),LEONIE MARIE RACE&&EYRSEY561527,EARLY YEARS,4908-Grants,"1,564.53"
01-APR-2022,C&FS (P),LIANNE COLE&&EYRS2561756,EARLY YEARS,4908-Grants,"1,137.84"
01-APR-2022,C&FS (P),LIFE MAT SERVICES LTD T/A IBSTOCK DAY NURSERY&&EYRSEY454505,EARLY YEARS,4908-Grants,"20,631.99"
01-APR-2022,C&FS (P),LIFE MAT SERVICES LTD T/A IBSTOCK DAY NURSERY&&EYRSEY454505,EARLY YEARS,4908-Grants,"17,680.38"
01-APR-2022,C&FS (P),LILA ARLENE PEREIRA&&EYRS2577,EARLY YEARS,4908-Grants,"2,844.60"
01-APR-2022,C&FS (P),LILLIPUT MONTESSORI (GLENFIELD)&&EYRS1450,EARLY YEARS,4908-Grants,"11,973.13"
01-APR-2022,C&FS (P),LILLIPUT MONTESSORI (GLENFIELD)&&EYRS1450,EARLY YEARS,4908-Grants,"1,132.60"
01-APR-2022,C&FS (P),LILLIPUT MONTESSORI DAY NURSERY&&EYRS1449,EARLY YEARS,4908-Grants,"48,682.34"
01-APR-2022,C&FS (P),LILLIPUT MONTESSORI DAY NURSERY&&EYRS1544,EARLY YEARS,4908-Grants,"28,495.14"
01-APR-2022,C&FS (P),LILLIPUT MONTESSORI DAY NURSERY&&EYRS1544,EARLY YEARS,4908-Grants,"1,243.28"
01-APR-2022,C&FS (P),LILLIPUT MONTESSORI DAY NURSERY&&EYRS1559,EARLY YEARS,4908-Grants,"18,337.13"
01-APR-2022,C&FS (P),LILLIPUT MONTESSORI DAY NURSERY&&EYRS1685,EARLY YEARS,4908-Grants,"42,084.64"
01-APR-2022,C&FS (P),LILLIPUT MONTESSORI DAY NURSERY&&EYRS1685,EARLY YEARS,4908-Grants,"2,707.75"
01-APR-2022,C&FS (P),LIME TREE @ LOUGHBOROUGH&&EYRS1732,EARLY YEARS,4908-Grants,"73,506.74"
01-APR-2022,C&FS (P),LIME TREE @ LOUGHBOROUGH&&EYRS1732,EARLY YEARS,4908-Grants,"2,854.76"
01-APR-2022,C&FS (P),LIME TREE COSSINGTON ROAD&&EYRS496795,EARLY YEARS,4908-Grants,"32,559.78"
01-APR-2022,C&FS (P),LIME TREE COSSINGTON ROAD&&EYRS496795,EARLY YEARS,4908-Grants,"2,348.85"
01-APR-2022,C&FS (P),LIME TREE DAY NURSERY SILEBY&&EYRS1791,EARLY YEARS,4908-Grants,"35,741.53"
01-APR-2022,C&FS (P),LIME TREE DAY NURSERY SILEBY&&EYRS1791,EARLY YEARS,4908-Grants,"7,788.36"
01-APR-2022,C&FS (P),LIME TREE DAY NURSERY&&EYRS1707,EARLY YEARS,4908-Grants,"1,716.67"
01-APR-2022,C&FS (P),LIME TREE DAY NURSERY&&EYRS1707,EARLY YEARS,4908-Grants,"65,016.14"
01-APR-2022,C&FS (P),LIME TREE QUORN LTD&&EYRS EY492199,EARLY YEARS,4908-Grants,"31,667.56"
01-APR-2022,C&FS (P),LIME TREE QUORN LTD&&EYRS EY492199,EARLY YEARS,4908-Grants,"3,183.33"
01-APR-2022,C&FS (P),REDACTED PERSONAL DATA,EARLY YEARS,4908-Grants,711.15
01-APR-2022,C&FS (P),REDACTED PERSONAL DATA,EARLY YEARS,4908-Grants,"1,422.30"
01-APR-2022,C&FS (P),REDACTED PERSONAL DATA,EARLY YEARS,4908-Grants,"1,508.40"
01-APR-2022,C&FS (P),REDACTED PERSONAL DATA,EARLY YEARS,4908-Grants,"4,930.64"
01-APR-2022,C&FS (P),LINDSEY NORMAN&&EYRSCMA00021,EARLY YEARS,4908-Grants,"1,422.30"
01-APR-2022,C&FS (P),REDACTED PERSONAL DATA,EARLY YEARS,4908-Grants,"2,225.18"
01-APR-2022,C&FS (P),REDACTED PERSONAL DATA,EARLY YEARS,4908-Grants,"5,136.45"
01-APR-2022,C&FS (P),REDACTED PERSONAL DATA,EARLY YEARS,4908-Grants,711.15
01-APR-2022,C&FS (P),REDACTED PERSONAL DATA,EARLY YEARS,4908-Grants,711.15
01-APR-2022,C&FS (P),LISA CROUCH&&EYRSEY333054,EARLY YEARS,4908-Grants,"1,649.07"
01-APR-2022,C&FS (P),REDACTED PERSONAL DATA,EARLY YEARS,4908-Grants,"14,464.23"
01-APR-2022,C&FS (P),REDACTED PERSONAL DATA,EARLY YEARS,4908-Grants,"5,077.05"
01-APR-2022,C&FS (P),REDACTED PERSONAL DATA,EARLY YEARS,4908-Grants,"1,422.30"
01-APR-2022,C&FS (P),LITTLE ACHIEVERS PRE SCHOOL&&EYRS2515626,EARLY YEARS,4908-Grants,"22,795.34"
01-APR-2022,C&FS (P),LITTLE ACORNS PRESCHOOL&&EYRSEXMT0129,EARLY YEARS,4908-Grants,"22,101.01"
01-APR-2022,C&FS (P),LITTLE ACORNS PRESCHOOL&&EYRSEXMT0129,EARLY YEARS,4908-Grants,"1,143.38"
01-APR-2022,C&FS (P),LITTLE ALPACAS LTD&&EYRS2674966,EARLY YEARS,4908-Grants,"3,694.35"
01-APR-2022,C&FS (P),LITTLE ANGELS DAY NURSERY&&EYRS1561,EARLY YEARS,4908-Grants,"40,667.64"
01-APR-2022,C&FS (P),LITTLE ANGELS DAY NURSERY&&EYRS1561,EARLY YEARS,4908-Grants,"46,387.35"
01-APR-2022,C&FS (P),LITTLE ARKS PRE SCHOOL&&EYRS1765,EARLY YEARS,4908-Grants,"3,512.52"
01-APR-2022,C&FS (P),LITTLE BATTLERS&&EYRS1778,EARLY YEARS,4908-Grants,"34,456.68"
01-APR-2022,C&FS (P),LITTLE BATTLERS&&EYRS1778,EARLY YEARS,4908-Grants,520.88
01-APR-2022,C&FS (P),LITTLE BOWDEN PRE SCHOOL&&EYRS1509,EARLY YEARS,4908-Grants,"18,555.41"
01-APR-2022,C&FS (P),LITTLE BOWDEN PRE SCHOOL&&EYRS1509,EARLY YEARS,4908-Grants,"1,444.05"
01-APR-2022,C&FS (P),LITTLE EXPLORERS PLAYGROUP&&EYRS1728,EARLY YEARS,4908-Grants,"26,538.85"
01-APR-2022,C&FS (P),LITTLE FINGERS PLAYGROUP (SRKC)&&EYRS1557,EARLY YEARS,4908-Grants,"11,419.92"
01-APR-2022,C&FS (P),LITTLE FIR TREES PRESCHOOL&&EYRS2532223,EARLY YEARS,4908-Grants,"38,244.80"
01-APR-2022,C&FS (P),LITTLE FIR TREES PRESCHOOL&&EYRS2532223,EARLY YEARS,4908-Grants,"1,512.84"
01-APR-2022,C&FS (P),LITTLE GEMS PRESCHOOL&&EYRS2532766,EARLY YEARS,4908-Grants,"26,912.93"
01-APR-2022,C&FS (P),LITTLE LEARNERS NURSERY & PRE SCHOOL LTD T/A LITTLE CEDARS PRE SCHOOL&&EYRS2588159,EARLY YEARS,4908-Grants,"18,575.04"
01-APR-2022,C&FS (P),LITTLE LEARNERS NURSERY & PRE SCHOOL LTD T/A LITTLE CEDARS PRE SCHOOL&&EYRS2588159,EARLY YEARS,4908-Grants,568.71
01-APR-2022,C&FS (P),LITTLE LEARNERS NURSERY & PRESCHOOL LTD T/A WOODLANDS NURSERY & PRESCHOOL&&EYRS2576050,EARLY YEARS,4908-Grants,"26,960.78"
01-APR-2022,C&FS (P),LITTLE LEARNERS NURSERY & PRESCHOOL LTD T/A WOODLANDS NURSERY & PRESCHOOL&&EYRS2576050,EARLY YEARS,4908-Grants,762.33
01-APR-2022,C&FS (P),LITTLE ME NURSERIES LTD&&EYRS1578,EARLY YEARS,4908-Grants,"19,224.78"
01-APR-2022,C&FS (P),LITTLE MONKEYS PLAYGROUP&&EYRS1787,EARLY YEARS,4908-Grants,"12,895.52"
01-APR-2022,C&FS (P),LITTLE NURSERIES LTD&&EYRS1680,EARLY YEARS,4908-Grants,544.70
01-APR-2022,C&FS (P),LITTLE NURSERIES LTD&&EYRS1680,EARLY YEARS,4908-Grants,"23,342.32"
01-APR-2022,C&FS (P),LITTLE NURSERY LTD&&EYRSEY491238,EARLY YEARS,4908-Grants,"43,346.55"
01-APR-2022,C&FS (P),LITTLE OAK TREES PRESCHOOL&&EYRS1811,EARLY YEARS,4908-Grants,502.80
01-APR-2022,C&FS (P),LITTLE OAK TREES PRESCHOOL&&EYRS1811,EARLY YEARS,4908-Grants,"53,526.99"
01-APR-2022,C&FS (P),LITTLE OWL PRE SCHOOL&&EYRS1124,EARLY YEARS,4908-Grants,"9,514.07"
01-APR-2022,C&FS (P),LITTLE RAINBOWS&&EYRS1702,EARLY YEARS,4908-Grants,"94,994.96"
01-APR-2022,C&FS (P),LITTLE RAINBOWS&&EYRS1702,EARLY YEARS,4908-Grants,763.22
01-APR-2022,C&FS (P),LITTLE STACKS DAY NURSERY LTD&&EYRSEY545697,EARLY YEARS,4908-Grants,"10,982.40"
01-APR-2022,C&FS (P),LITTLE STARS GREAT GLEN&&EYRS1810,EARLY YEARS,4908-Grants,"12,588.18"
01-APR-2022,C&FS (P),LITTLE STARS THE ACADEMY&&EYRS1814,EARLY YEARS,4908-Grants,"20,660.37"
01-APR-2022,C&FS (P),LITTLE STEPS BLABY LTD T/A LITTLE STEPS PRESCHOOL&&EYRS2637065,EARLY YEARS,4908-Grants,"25,936.52"
01-APR-2022,C&FS (P),LITTLE TEAPOTS CIC&&EYRS1783,EARLY YEARS,4908-Grants,"1,229.22"
01-APR-2022,C&FS (P),LITTLE TEAPOTS CIC&&EYRS1783,EARLY YEARS,4908-Grants,"19,641.93"
01-APR-2022,C&FS (P),LITTLE TOES DAY NURSERY BOTTESFORD&&EYRS2634005,EARLY YEARS,4908-Grants,"4,522.36"
01-APR-2022,C&FS (P),LONG CLAWSON PRE SCHOOL&&EYRS1125,EARLY YEARS,4908-Grants,766.02
01-APR-2022,C&FS (P),LONG CLAWSON PRE SCHOOL&&EYRS1125,EARLY YEARS,4908-Grants,"16,309.76"
01-APR-2022,C&FS (P),LONG WHATTON PLAYGROUP&&EYRS1546,EARLY YEARS,4908-Grants,"10,909.03"
01-APR-2022,C&FS (P),LONGFIELD KINDERGARTEN LTD&&EYRS1455,EARLY YEARS,4908-Grants,"14,934.15"
01-APR-2022,C&FS (P),REDACTED PERSONAL DATA,EARLY YEARS,4908-Grants,711.15
01-APR-2022,C&FS (P),REDACTED PERSONAL DATA,EARLY YEARS,4908-Grants,948.20
01-APR-2022,C&FS (P),REDACTED PERSONAL DATA,EARLY YEARS,4908-Grants,"2,291.85"
01-APR-2022,C&FS (P),LORRAINE NEWCOMBE&&EYRS225952,EARLY YEARS,4908-Grants,853.38
01-APR-2022,C&FS (P),LOUGHBOROUGH CAMPUS NURSERY&&EYRS1457,EARLY YEARS,4908-Grants,"70,712.85"
01-APR-2022,C&FS (P),LOUGHBOROUGH COLLEGE&&EYRS1479,EARLY YEARS,4908-Grants,"4,561.49"
01-APR-2022,C&FS (P),LOUGHBOROUGH COLLEGE&&EYRS1479,EARLY YEARS,4908-Grants,"43,447.46"
01-APR-2022,C&FS (P),LOUGHBOROUGH NURSERY T/A LOUGHBOROUGH SCHOOL FOUNDATION NURSERY FEES ACCOUNT&&EYRSEY538259,EARLY YEARS,4908-Grants,"50,875.91"
01-APR-2022,C&FS (P),REDACTED PERSONAL DATA,EARLY YEARS,4908-Grants,"3,758.74"
01-APR-2022,C&FS (P),REDACTED PERSONAL DATA,EARLY YEARS,4908-Grants,"3,075.19"
01-APR-2022,C&FS (P),REDACTED PERSONAL DATA,EARLY YEARS,4908-Grants,"2,573.41"
01-APR-2022,C&FS (P),REDACTED PERSONAL DATA,EARLY YEARS,4908-Grants,"6,098.92"
01-APR-2022,C&FS (P),LOWRI BARTLETT&&EYRSEY501079,EARLY YEARS,4908-Grants,885.06
01-APR-2022,C&FS (P),LYNDA LOU STREET&&EYRSEY421093,EARLY YEARS,4908-Grants,"1,459.51"
01-APR-2022,C&FS (P),LYNTON CHILDCARE LTD&&EYRS1631,EARLY YEARS,4908-Grants,"18,559.91"
01-APR-2022,C&FS (P),MAGIC NURSERIES A LTD WHITWICK DAY NURSERY&&EYRS1361,EARLY YEARS,4908-Grants,"43,852.80"
01-APR-2022,C&FS (P),MAGIC NURSERIES A LTD WHITWICK DAY NURSERY&&EYRS1361,EARLY YEARS,4908-Grants,624.93
01-APR-2022,C&FS (P),MAGIC NURSERIES LTD T/A CHARNWOOD DAY NURSERY&&EYRS1432,EARLY YEARS,4908-Grants,684.45
01-APR-2022,C&FS (P),MAGIC NURSERIES LTD T/A CHARNWOOD DAY NURSERY&&EYRS1432,EARLY YEARS,4908-Grants,"27,753.21"
01-APR-2022,C&FS (P),MAGIC NURSERIES LTD T/A KIRBY MUXLOE DAY NURSERY&&EYRS1521,EARLY YEARS,4908-Grants,592.64
01-APR-2022,C&FS (P),MAGIC NURSERIES LTD T/A KIRBY MUXLOE DAY NURSERY&&EYRS1521,EARLY YEARS,4908-Grants,"28,432.01"
01-APR-2022,C&FS (P),REDACTED PERSONAL DATA,EARLY YEARS,4908-Grants,"1,564.53"
01-APR-2022,C&FS (P),REDACTED PERSONAL DATA,EARLY YEARS,4908-Grants,"1,867.50"
01-APR-2022,C&FS (P),REDACTED PERSONAL DATA,EARLY YEARS,4908-Grants,761.40
01-APR-2022,C&FS (P),REDACTED PERSONAL DATA,EARLY YEARS,4908-Grants,711.15
01-APR-2022,C&FS (P),REDACTED PERSONAL DATA,EARLY YEARS,4908-Grants,741.60
01-APR-2022,C&FS (P),REDACTED PERSONAL DATA,EARLY YEARS,4908-Grants,"1,280.07"
01-APR-2022,C&FS (P),REDACTED PERSONAL DATA,EARLY YEARS,4908-Grants,747.00
01-APR-2022,C&FS (P),REDACTED PERSONAL DATA,EARLY YEARS,4908-Grants,"4,365.90"
01-APR-2022,C&FS (P),REDACTED PERSONAL DATA,EARLY YEARS,4908-Grants,754.20
01-APR-2022,C&FS (P),REDACTED PERSONAL DATA,EARLY YEARS,4908-Grants,"3,571.92"
01-APR-2022,C&FS (P),REDACTED PERSONAL DATA,EARLY YEARS,4908-Grants,"6,362.84"
01-APR-2022,C&FS (P),MARKFIELD DAY NURSERY&&EYRS1514,EARLY YEARS,4908-Grants,"47,985.09"
01-APR-2022,C&FS (P),MARKFIELD DAY NURSERY&&EYRS1514,EARLY YEARS,4908-Grants,"2,075.82"
01-APR-2022,C&FS (P),MARTINSHAW PRESCHOOL&&EYRSEXMT0130,EARLY YEARS,4908-Grants,573.31
01-APR-2022,C&FS (P),MARTINSHAW PRESCHOOL&&EYRSEXMT0130,EARLY YEARS,4908-Grants,"41,050.55"
01-APR-2022,C&FS (P),MAURA TOMLINSON&&EYRSEY363708,EARLY YEARS,4908-Grants,"1,754.17"
01-APR-2022,C&FS (P),MAXINE LOUISE ELLIS&&EYRSEY485496,EARLY YEARS,4908-Grants,"2,111.90"
01-APR-2022,C&FS (P),MEADOW PRE SCHOOL&&EYRS1767,EARLY YEARS,4908-Grants,"32,562.30"
01-APR-2022,C&FS (P),MEADOW PRE SCHOOL&&EYRS1767,EARLY YEARS,4908-Grants,"4,699.32"
01-APR-2022,C&FS (P),MEASHAM CHURCH OF ENGLAND PRIMARY SCHOOL&&EYRSEXMT0136,EARLY YEARS,4908-Grants,"17,591.28"
01-APR-2022,C&FS (P),MEASHAM CHURCH OF ENGLAND PRIMARY SCHOOL&&EYRSEXMT0136,EARLY YEARS,4908-Grants,"18,127.17"
01-APR-2022,C&FS (P),MEDBOURNE PLAYGROUP&&EYRS1128,EARLY YEARS,4908-Grants,697.20
01-APR-2022,C&FS (P),MEDBOURNE PLAYGROUP&&EYRS1128,EARLY YEARS,4908-Grants,"7,158.91"
01-APR-2022,C&FS (P),REDACTED PERSONAL DATA,EARLY YEARS,4908-Grants,"1,313.26"
01-APR-2022,C&FS (P),REDACTED PERSONAL DATA,EARLY YEARS,4908-Grants,"1,517.16"
01-APR-2022,C&FS (P),REDACTED PERSONAL DATA,EARLY YEARS,4908-Grants,"3,133.24"
01-APR-2022,C&FS (P),MELTON MOWBRAY NURSERY SCHOOL&&EYRS1800,EARLY YEARS,4908-Grants,"41,875.32"
01-APR-2022,C&FS (P),MELTON MOWBRAY NURSERY SCHOOL&&EYRS1800,EARLY YEARS,4908-Grants,906.12
01-APR-2022,C&FS (P),MEMORIAL HALL PLAYGROUP&&EYRS1646,EARLY YEARS,4908-Grants,"28,260.63"
01-APR-2022,C&FS (P),MES ENFANTS&&EYRS1611,EARLY YEARS,4908-Grants,"7,679.93"
01-APR-2022,C&FS (P),MES ENFANTS&&EYRS1611,EARLY YEARS,4908-Grants,604.72
01-APR-2022,C&FS (P),MICHAEL PLATNAUER & EMMA PLATNAUER T/A MINDFUL ME NURSERY&&EYRS2650121,EARLY YEARS,4908-Grants,"29,646.66"
01-APR-2022,C&FS (P),MICHELE ASTLEY T/A LEAPS AND BOUNDS DAYCARE&&EYRS2603807,EARLY YEARS,4908-Grants,"22,435.71"
01-APR-2022,C&FS (P),REDACTED PERSONAL DATA,EARLY YEARS,4908-Grants,"2,900.50"
01-APR-2022,C&FS (P),REDACTED PERSONAL DATA,EARLY YEARS,4908-Grants,"5,946.60"
01-APR-2022,C&FS (P),REDACTED PERSONAL DATA,EARLY YEARS,4908-Grants,"13,658.82"
01-APR-2022,C&FS (P),REDACTED PERSONAL DATA,EARLY YEARS,4908-Grants,"3,321.20"
01-APR-2022,C&FS (P),REDACTED PERSONAL DATA,EARLY YEARS,4908-Grants,"2,435.40"
01-APR-2022,C&FS (P),REDACTED PERSONAL DATA,EARLY YEARS,4908-Grants,"2,115.66"
01-APR-2022,C&FS (P),MIGHTY OAKS NURSERY&&EYRS2536879,EARLY YEARS,4908-Grants,"37,099.15"
01-APR-2022,C&FS (P),MIGHTY OAKS NURSERY&&EYRS2536879,EARLY YEARS,4908-Grants,"2,268.75"
01-APR-2022,C&FS (P),MILLFIELD COMMUNITY NURSERY&&EYRS1756,EARLY YEARS,4908-Grants,502.80
01-APR-2022,C&FS (P),MILLFIELD COMMUNITY NURSERY&&EYRS1756,EARLY YEARS,4908-Grants,"40,998.21"
01-APR-2022,C&FS (P),MINI ADVENTURES MARKET HARBOROUGH LTD &&EYRS2570210,EARLY YEARS,4908-Grants,"9,099.37"
01-APR-2022,C&FS (P),MINI ADVENTURES MARKET HARBOROUGH LTD &&EYRS2570210,EARLY YEARS,4908-Grants,615.00
01-APR-2022,C&FS (P),MINI EXPLORERS PLAY SCHOOL LTD&&EYRS1816,EARLY YEARS,4908-Grants,"32,354.53"
01-APR-2022,C&FS (P),MINI EXPLORERS PLAY SCHOOL LTD&&EYRS1816,EARLY YEARS,4908-Grants,"2,133.30"
01-APR-2022,C&FS (P),MINI OAKS PRE SCHOOL&&EYRSEXMT0127DISCOVERYSCHOOLSTRUST,EARLY YEARS,4908-Grants,"29,024.53"
01-APR-2022,C&FS (P),MOAT STREET PRESCHOOL&&EYRS1795,EARLY YEARS,4908-Grants,"9,125.46"
01-APR-2022,C&FS (P),MOIRA PRE SCHOOL&&EYRS1548,EARLY YEARS,4908-Grants,"6,756.75"
01-APR-2022,C&FS (P),NANPANTAN NURSERY SCHOOL&&EYRS1130,EARLY YEARS,4908-Grants,928.15
01-APR-2022,C&FS (P),NANPANTAN NURSERY SCHOOL&&EYRS1130,EARLY YEARS,4908-Grants,"24,381.14"
01-APR-2022,C&FS (P),REDACTED PERSONAL DATA,EARLY YEARS,4908-Grants,"3,322.88"
01-APR-2022,C&FS (P),REDACTED PERSONAL DATA,EARLY YEARS,4908-Grants,758.56
01-APR-2022,C&FS (P),REDACTED PERSONAL DATA,EARLY YEARS,4908-Grants,"3,300.00"
01-APR-2022,C&FS (P),NEWCROFT PRESCHOOL&&EYRS1721,EARLY YEARS,4908-Grants,"21,040.79"
01-APR-2022,C&FS (P),NEXT STEPS NURSERY&&EYRS1780,EARLY YEARS,4908-Grants,"94,155.79"
01-APR-2022,C&FS (P),NEXT STEPS NURSERY&&EYRS1780,EARLY YEARS,4908-Grants,"2,004.80"
01-APR-2022,C&FS (P),REDACTED PERSONAL DATA,EARLY YEARS,4908-Grants,"4,203.87"
01-APR-2022,C&FS (P),REDACTED PERSONAL DATA,EARLY YEARS,4908-Grants,"2,133.45"
01-APR-2022,C&FS (P),REDACTED PERSONAL DATA,EARLY YEARS,4908-Grants,"2,844.60"
01-APR-2022,C&FS (P),REDACTED PERSONAL DATA,EARLY YEARS,4908-Grants,"4,266.90"
01-APR-2022,C&FS (P),REDACTED PERSONAL DATA,EARLY YEARS,4908-Grants,848.43
01-APR-2022,C&FS (P),NIGHTINGALE NURSERY CASTLE DONINGTON&&EYRS1781,EARLY YEARS,4908-Grants,"28,042.62"
01-APR-2022,C&FS (P),NOAHS ARK PLAYGROUP&&EYRS1131,EARLY YEARS,4908-Grants,"20,438.85"
01-APR-2022,C&FS (P),NORTH WARWICKSHIRE & SOUTH LEICESTER-SHIRE COLLEGE&&EYRS1363,EARLY YEARS,4908-Grants,"17,683.05"
01-APR-2022,C&FS (P),NURTURE ME DAY NURSERY&&EYRS2541529,EARLY YEARS,4908-Grants,"63,671.02"
01-APR-2022,C&FS (P),NURTURE ME DAY NURSERY&&EYRS2541529,EARLY YEARS,4908-Grants,"1,101.46"
01-APR-2022,C&FS (P),OAK TREEHOUSE (SHEPSHED)&&EYRS1590,EARLY YEARS,4908-Grants,"33,366.45"
01-APR-2022,C&FS (P),OAK TREEHOUSE (SHEPSHED)&&EYRS1590,EARLY YEARS,4908-Grants,"1,454.70"
01-APR-2022,C&FS (P),OASIS FAMILY CENTRE&&EYRSEY546134,EARLY YEARS,4908-Grants,"24,376.55"
01-APR-2022,C&FS (P),OLD BARN DAY NURSERY&&EYRS1802,EARLY YEARS,4908-Grants,"21,998.24"
01-APR-2022,C&FS (P),OLD DALBY PLAYGROUP&&EYRS1132,EARLY YEARS,4908-Grants,"12,438.28"
01-APR-2022,C&FS (P),OLD RECTORY NURSERY&&EYRS1348,EARLY YEARS,4908-Grants,"63,491.09"
01-APR-2022,C&FS (P),ORCHARD END NURSERY&&EYRS1468,EARLY YEARS,4908-Grants,"32,234.25"
01-APR-2022,C&FS (P),ORCHARD END NURSERY&&EYRS1468,EARLY YEARS,4908-Grants,"1,244.60"
01-APR-2022,C&FS (P),OUR MONKEY CLUB CIC&&EYRS1740,EARLY YEARS,4908-Grants,"17,421.33"
01-APR-2022,C&FS (P),OUR MONKEY CLUB CIC&&EYRS1740,EARLY YEARS,4908-Grants,543.00
01-APR-2022,C&FS (P),REDACTED PERSONAL DATA,EARLY YEARS,4908-Grants,"18,902.90"
01-APR-2022,C&FS (P),REDACTED PERSONAL DATA,EARLY YEARS,4908-Grants,"1,910.40"
01-APR-2022,C&FS (P),PARK LANE KIDS LTD T/A PARK LANE NURSERY&&EYRS1691,EARLY YEARS,4908-Grants,"38,697.48"
01-APR-2022,C&FS (P),PARK LANE KIDS LTD T/A WOODLANDS&&EYRS1735,EARLY YEARS,4908-Grants,"70,480.50"
01-APR-2022,C&FS (P),PARKLAND PRESCHOOL&&EYRSEY487137,EARLY YEARS,4908-Grants,"30,881.32"
01-APR-2022,C&FS (P),PARKSIDE NURSERY SCHOOL&&EYRS1470,EARLY YEARS,4908-Grants,"22,674.12"
01-APR-2022,C&FS (P),PASTURES PLAYGROUP&&EYRS1584,EARLY YEARS,4908-Grants,"12,073.93"
01-APR-2022,C&FS (P),PASTURES PLAYGROUP&&EYRS1584,EARLY YEARS,4908-Grants,618.52
01-APR-2022,C&FS (P),REDACTED PERSONAL DATA,EARLY YEARS,4908-Grants,"1,422.30"
01-APR-2022,C&FS (P),REDACTED PERSONAL DATA,EARLY YEARS,4908-Grants,"1,263.48"
01-APR-2022,C&FS (P),REDACTED PERSONAL DATA,EARLY YEARS,4908-Grants,853.38
01-APR-2022,C&FS (P),REDACTED PERSONAL DATA,EARLY YEARS,4908-Grants,"2,370.50"
01-APR-2022,C&FS (P),PELICAN AT THE METHODIST&&EYRSEY501180,EARLY YEARS,4908-Grants,"17,215.11"
01-APR-2022,C&FS (P),PETER PAN PLAYGROUP (SILEBY)&&EYRS1472,EARLY YEARS,4908-Grants,"36,725.58"
01-APR-2022,C&FS (P),PETER PAN PLAYGROUP (SILEBY)&&EYRS1472,EARLY YEARS,4908-Grants,"3,403.78"
01-APR-2022,C&FS (P),PETER PAN PLAYSCHOOL (FLECKNEY)&&EYRS1473,EARLY YEARS,4908-Grants,"7,084.44"
01-APR-2022,C&FS (P),PETITE ACADEMY LTD T/A SHARNFORD PRESCHOOL&&EYRS2572495,EARLY YEARS,4908-Grants,"9,821.30"
01-APR-2022,C&FS (P),PETITE ACADEMY LTD T/A SHARNFORD PRESCHOOL&&EYRS2572495,EARLY YEARS,4908-Grants,"1,798.35"
01-APR-2022,C&FS (P),PETTITTS PLAY SCHOOL&&EYRS1444,EARLY YEARS,4908-Grants,"27,634.97"
01-APR-2022,C&FS (P),PINKY JADAV&&EYRS2508771,EARLY YEARS,4908-Grants,"3,935.04"
01-APR-2022,C&FS (P),PLAY DAYS ACADEMY LTD&&EYRSEY537182,EARLY YEARS,4908-Grants,"27,850.83"
01-APR-2022,C&FS (P),PLAYFIT DOVELANDS LTD T/A LITTLE FISHES PRE SCHOOL&&EYRS2605176,EARLY YEARS,4908-Grants,849.33
01-APR-2022,C&FS (P),PLAYFIT DOVELANDS LTD T/A LITTLE FISHES PRE SCHOOL&&EYRS2605176,EARLY YEARS,4908-Grants,"23,920.77"
01-APR-2022,C&FS (P),POCHIN PRE SCHOOL&&EYRSEXMT0131,EARLY YEARS,4908-Grants,"19,717.04"
01-APR-2022,C&FS (P),POCKET ROCKET PRE SCHOOL T/A ROBYN HILL&&EYRSEY547013,EARLY YEARS,4908-Grants,"12,035.31"
01-APR-2022,C&FS (P),POP UP CARE CLUBS THORPE ASTLEY&&EYRSEY550088,EARLY YEARS,4908-Grants,"31,278.80"
01-APR-2022,C&FS (P),POP UP CARE CLUBS THORPE ASTLEY&&EYRSEY550088,EARLY YEARS,4908-Grants,"1,717.50"
01-APR-2022,C&FS (P),POPLAR TOTS CHILDCARE LTD&&EYRS2618646,EARLY YEARS,4908-Grants,"23,571.97"
01-APR-2022,C&FS (P),POPLARS PRE SCHOOL (WATER LEYS)&&EYRS1686,EARLY YEARS,4908-Grants,"68,170.40"
01-APR-2022,C&FS (P),POPLARS PRE SCHOOL (WATER LEYS)&&EYRS1686,EARLY YEARS,4908-Grants,"1,355.89"
01-APR-2022,C&FS (P),PRE SCHOOL PLAY STATION&&EYRS1530,EARLY YEARS,4908-Grants,"28,432.47"
01-APR-2022,C&FS (P),PRIESTHILLS DAY NURSERY&&EYRS1477,EARLY YEARS,4908-Grants,"38,622.98"
01-APR-2022,C&FS (P),PRIESTHILLS NURSERY NUTTS LANE&&EYRSEY548639,EARLY YEARS,4908-Grants,"41,312.80"
01-APR-2022,C&FS (P),PRIESTHILLS NURSERY NUTTS LANE&&EYRSEY548639,EARLY YEARS,4908-Grants,"1,108.35"
01-APR-2022,C&FS (P),PROGRESS HOUSE NURSERY&&EYRS1494,EARLY YEARS,4908-Grants,"55,959.97"
01-APR-2022,C&FS (P),PROGRESS HOUSE NURSERY&&EYRS1494,EARLY YEARS,4908-Grants,"1,491.30"
01-APR-2022,C&FS (P),PROMISE CHILDCARE&&EYRS1341,EARLY YEARS,4908-Grants,"14,484.59"
01-APR-2022,C&FS (P),PURPLE ROCKET DAY NURSERY&&EYRS1644,EARLY YEARS,4908-Grants,"13,796.31"
01-APR-2022,C&FS (P),QUENIBOROUGH PRE SCHOOL PARTNERSHIP&&EYRS1134,EARLY YEARS,4908-Grants,"25,290.00"
01-APR-2022,C&FS (P),REDACTED PERSONAL DATA,EARLY YEARS,4908-Grants,711.15
01-APR-2022,C&FS (P),REDACTED PERSONAL DATA,EARLY YEARS,4908-Grants,"5,705.37"
01-APR-2022,C&FS (P),REDACTED PERSONAL DATA,EARLY YEARS,4908-Grants,"3,133.56"
01-APR-2022,C&FS (P),REDACTED PERSONAL DATA,EARLY YEARS,4908-Grants,"1,635.65"
01-APR-2022,C&FS (P),REDACTED PERSONAL DATA,EARLY YEARS,4908-Grants,996.32
01-APR-2022,C&FS (P),REDACTED PERSONAL DATA,EARLY YEARS,4908-Grants,970.20
01-APR-2022,C&FS (P),REDACTED PERSONAL DATA,EARLY YEARS,4908-Grants,"3,697.98"
01-APR-2022,C&FS (P),REDACTED PERSONAL DATA,EARLY YEARS,4908-Grants,711.15
01-APR-2022,C&FS (P),RAVENSTONE PRESCHOOL&&EYRS1635,EARLY YEARS,4908-Grants,"17,773.58"
01-APR-2022,C&FS (P),RAVENSTONE PRESCHOOL&&EYRS1635,EARLY YEARS,4908-Grants,907.74
01-APR-2022,C&FS (P),RAWLINS UNDER FIVES PLAYGROUP&&EYRS1135,EARLY YEARS,4908-Grants,"37,178.09"
01-APR-2022,C&FS (P),REDACTED PERSONAL DATA,EARLY YEARS,4908-Grants,"3,792.80"
01-APR-2022,C&FS (P),REBECCA KENDALL&&EYRS2046,EARLY YEARS,4908-Grants,"6,892.47"
01-APR-2022,C&FS (P),REDLANDS COMMUNITY PRIMARY SCHOOL&&EYRSEXMT0123,EARLY YEARS,4908-Grants,"14,547.20"
01-APR-2022,C&FS (P),RENDELL PRIMARY SCHOOL AND PRE-SCHOOL&&EYRSEXMT0092,EARLY YEARS,4908-Grants,"34,513.00"
01-APR-2022,C&FS (P),RENDELL PRIMARY SCHOOL AND PRE-SCHOOL&&EYRSEXMT0092,EARLY YEARS,4908-Grants,596.43
01-APR-2022,C&FS (P),REDACTED PERSONAL DATA,EARLY YEARS,4908-Grants,"2,844.60"
01-APR-2022,C&FS (P),RIA ROSCOE MIDDLEDITCH&&EYRS2097,EARLY YEARS,4908-Grants,"4,666.53"
01-APR-2022,C&FS (P),RICHMOND PLAYGROUP&&EYRS1501,EARLY YEARS,4908-Grants,"33,251.13"
01-APR-2022,C&FS (P),RJ THOMPSON T/A SILEBY LITTLE STARS PRE SCHOOL&&EYRS1719,EARLY YEARS,4908-Grants,"19,744.89"
01-APR-2022,C&FS (P),RJ THOMPSON T/A SILEBY LITTLE STARS PRE SCHOOL&&EYRS1719,EARLY YEARS,4908-Grants,"1,216.80"
01-APR-2022,C&FS (P),REDACTED PERSONAL DATA,EARLY YEARS,4908-Grants,"37,301.83"
01-APR-2022,C&FS (P),ROBJOHN NURSERY SCHOOL&&EYRS1466,EARLY YEARS,4908-Grants,"21,503.38"
01-APR-2022,C&FS (P),ROBJOHN NURSERY SCHOOL&&EYRS1466,EARLY YEARS,4908-Grants,"1,188.15"
01-APR-2022,C&FS (P),ROTHLEY CE PRIMARY SCHOOL&&EXMT0082,EARLY YEARS,4908-Grants,"40,046.15"
01-APR-2022,C&FS (P),ROTHLEY PARK KINDERGARTEN LTD&&EYRS1622,EARLY YEARS,4908-Grants,"50,270.25"
01-APR-2022,C&FS (P),ROUNDHILL ACADEMY PRE SCHOOL&&EYRS1754,EARLY YEARS,4908-Grants,"34,765.50"
01-APR-2022,C&FS (P),RUTH BLOWERS&&EYRS2314,EARLY YEARS,4908-Grants,"5,452.15"
01-APR-2022,C&FS (P),REDACTED PERSONAL DATA,EARLY YEARS,4908-Grants,"10,169.68"
01-APR-2022,C&FS (P),SALLY ANN MORRIS&&EYRS2114,EARLY YEARS,4908-Grants,"3,145.23"
01-APR-2022,C&FS (P),REDACTED PERSONAL DATA,EARLY YEARS,4908-Grants,714.09
01-APR-2022,C&FS (P),REDACTED PERSONAL DATA,EARLY YEARS,4908-Grants,"2,014.93"
01-APR-2022,C&FS (P),REDACTED PERSONAL DATA,EARLY YEARS,4908-Grants,"2,232.45"
01-APR-2022,C&FS (P),REDACTED PERSONAL DATA,EARLY YEARS,4908-Grants,"2,662.07"
01-APR-2022,C&FS (P),REDACTED PERSONAL DATA,EARLY YEARS,4908-Grants,"3,161.40"
01-APR-2022,C&FS (P),SANTY MARKS&&EYRSEY301698,EARLY YEARS,4908-Grants,"3,813.15"
01-APR-2022,C&FS (P),REDACTED PERSONAL DATA,EARLY YEARS,4908-Grants,"1,137.84"
01-APR-2022,C&FS (P),REDACTED PERSONAL DATA,EARLY YEARS,4908-Grants,"1,185.25"
01-APR-2022,C&FS (P),REDACTED PERSONAL DATA,EARLY YEARS,4908-Grants,"2,864.95"
01-APR-2022,C&FS (P),REDACTED PERSONAL DATA,EARLY YEARS,4908-Grants,"4,460.72"
01-APR-2022,C&FS (P),REDACTED PERSONAL DATA,EARLY YEARS,4908-Grants,"14,381.40"
01-APR-2022,C&FS (P),REDACTED PERSONAL DATA,EARLY YEARS,4908-Grants,663.74
01-APR-2022,C&FS (P),REDACTED PERSONAL DATA,EARLY YEARS,4908-Grants,"1,943.81"
01-APR-2022,C&FS (P),SCHOOLS OUT ROTHLEY LTD&&EYRSEY496513,EARLY YEARS,4908-Grants,"16,261.65"
01-APR-2022,C&FS (P),SCL NURSERIES LTD T/A MARLBOROUGH DAY NURSERY&&EYRS1752,EARLY YEARS,4908-Grants,"77,428.65"
01-APR-2022,C&FS (P),REDACTED PERSONAL DATA,EARLY YEARS,4908-Grants,"5,294.85"
01-APR-2022,C&FS (P),REDACTED PERSONAL DATA,EARLY YEARS,4908-Grants,"2,417.91"
01-APR-2022,C&FS (P),REDACTED PERSONAL DATA,EARLY YEARS,4908-Grants,"3,413.52"
01-APR-2022,C&FS (P),REDACTED PERSONAL DATA,EARLY YEARS,4908-Grants,"8,533.80"
01-APR-2022,C&FS (P),REDACTED PERSONAL DATA,EARLY YEARS,4908-Grants,"4,266.90"
01-APR-2022,C&FS (P),REDACTED PERSONAL DATA,EARLY YEARS,4908-Grants,"1,280.07"
01-APR-2022,C&FS (P),REDACTED PERSONAL DATA,EARLY YEARS,4908-Grants,"2,231.59"
01-APR-2022,C&FS (P),SHEKOYEMI MARY OKOROR&&EYRS2758,EARLY YEARS,4908-Grants,"3,216.35"
01-APR-2022,C&FS (P),REDACTED PERSONAL DATA,EARLY YEARS,4908-Grants,"3,650.57"
01-APR-2022,C&FS (P),SHERARD PRE SCHOOL PLAYGROUP&&EYRS1761,EARLY YEARS,4908-Grants,"36,488.49"
01-APR-2022,C&FS (P),SHERARD PRE SCHOOL PLAYGROUP&&EYRS1761,EARLY YEARS,4908-Grants,"1,684.38"
01-APR-2022,C&FS (P),REDACTED PERSONAL DATA,EARLY YEARS,4908-Grants,775.80
01-APR-2022,C&FS (P),REDACTED PERSONAL DATA,EARLY YEARS,4908-Grants,"2,844.60"
01-APR-2022,C&FS (P),SHOOTING STARS NURSERIES&&EYRS1766,EARLY YEARS,4908-Grants,"40,339.26"
01-APR-2022,C&FS (P),REDACTED PERSONAL DATA,EARLY YEARS,4908-Grants,"3,413.52"
01-APR-2022,C&FS (P),SMALL WORLD NURSERY SCHOOL&&EYRS1367,EARLY YEARS,4908-Grants,"50,699.30"
01-APR-2022,C&FS (P),SMALL WORLD NURSERY SCHOOL&&EYRS1367,EARLY YEARS,4908-Grants,875.63
01-APR-2022,C&FS (P),SMILES DAY NURSERY&&EYRS539775,EARLY YEARS,4908-Grants,"41,614.88"
01-APR-2022,C&FS (P),SMILES DAY NURSERY&&EYRS539775,EARLY YEARS,4908-Grants,725.01
01-APR-2022,C&FS (P),SMILES HINCKLEY PARKS&&EYRS2523548,EARLY YEARS,4908-Grants,"33,639.19"
01-APR-2022,C&FS (P),SMILES HINCKLEY PARKS&&EYRS2523548,EARLY YEARS,4908-Grants,"1,541.10"
01-APR-2022,C&FS (P),SNARESTONE CYGNETS PRE SCHOOL&&EYRS1745,EARLY YEARS,4908-Grants,"17,467.23"
01-APR-2022,C&FS (P),REDACTED PERSONAL DATA,EARLY YEARS,4908-Grants,"1,422.30"
01-APR-2022,C&FS (P),REDACTED PERSONAL DATA,EARLY YEARS,4908-Grants,"3,512.52"
01-APR-2022,C&FS (P),REDACTED PERSONAL DATA,EARLY YEARS,4908-Grants,869.55
01-APR-2022,C&FS (P),SQUEAKY BS CHILDRENS NURSERY&&EYRSEY495117,EARLY YEARS,4908-Grants,"23,300.09"
01-APR-2022,C&FS (P),ST BERNARDS PRIVATE DAY NURSERY&&EYRS1322,EARLY YEARS,4908-Grants,"26,780.19"
01-APR-2022,C&FS (P),ST CHARLES RC PRE SCHOOL GROUP&&EYRS1137,EARLY YEARS,4908-Grants,532.61
01-APR-2022,C&FS (P),ST CHARLES RC PRE SCHOOL GROUP&&EYRS1137,EARLY YEARS,4908-Grants,"28,344.62"
01-APR-2022,C&FS (P),ST GEORGE'S NURSERY SCHOOL ENDERBY&&EYRS2546478,EARLY YEARS,4908-Grants,760.50
01-APR-2022,C&FS (P),ST GEORGE'S NURSERY SCHOOL ENDERBY&&EYRS2546478,EARLY YEARS,4908-Grants,"28,041.50"
01-APR-2022,C&FS (P),ST GEORGE'S NURSERY SCHOOL NARBOROUGH&&EYRS2546087,EARLY YEARS,4908-Grants,"29,276.75"
01-APR-2022,C&FS (P),ST MARY'S PRE SCHOOL&&EYRS2539469,EARLY YEARS,4908-Grants,"26,050.31"
01-APR-2022,C&FS (P),ST MARY'S PRE SCHOOL&&EYRS2539469,EARLY YEARS,4908-Grants,"1,004.16"
01-APR-2022,C&FS (P),ST MARYS MONTESSORI DAY NURSERY&&EYRS1547,EARLY YEARS,4908-Grants,"28,812.48"
01-APR-2022,C&FS (P),ST MARYS PLAYGROUP&&EYRS1805,EARLY YEARS,4908-Grants,"24,655.98"
01-APR-2022,C&FS (P),ST PETER & ST PAUL PLAYGROUP&&EYRS1138,EARLY YEARS,4908-Grants,"24,607.34"
01-APR-2022,C&FS (P),REDACTED PERSONAL DATA,EARLY YEARS,4908-Grants,"28,870.58"
01-APR-2022,C&FS (P),RISE MULTI ACADEMY TRUST T/A ST SIMON & ST JUDE PRE SCHOOL&&EYRSEXMT0128,EARLY YEARS,4908-Grants,"1,402.81"
01-APR-2022,C&FS (P),RISE MULTI ACADEMY TRUST T/A ST SIMON & ST JUDE PRE SCHOOL&&EYRSEXMT0128,EARLY YEARS,4908-Grants,"11,183.60"
01-APR-2022,C&FS (P),ST WINEFRIDES PLAYGROUP&&EYRS1513,EARLY YEARS,4908-Grants,"34,225.93"
01-APR-2022,C&FS (P),ST WINEFRIDESCP PRE-SCHOOL&&EYRSEXMT0126,EARLY YEARS,4908-Grants,"4,883.24"
01-APR-2022,C&FS (P),REDACTED PERSONAL DATA,EARLY YEARS,4908-Grants,"1,422.30"
01-APR-2022,C&FS (P),STEFANIE DANVERS&&EYRS2504382,EARLY YEARS,4908-Grants,"4,266.90"
01-APR-2022,C&FS (P),REDACTED PERSONAL DATA,EARLY YEARS,4908-Grants,568.92
01-APR-2022,C&FS (P),REDACTED PERSONAL DATA,EARLY YEARS,4908-Grants,597.60
01-APR-2022,C&FS (P),STEPPING STONES PRE SCHOOL (SAPCOTE)&&EYRS1335,EARLY YEARS,4908-Grants,625.53
01-APR-2022,C&FS (P),STEPPING STONES PRE SCHOOL (SAPCOTE)&&EYRS1335,EARLY YEARS,4908-Grants,"12,500.75"
01-APR-2022,C&FS (P),STONEYGATE SCHOOL&&EYRSEXMT0008,EARLY YEARS,4908-Grants,"3,496.50"
01-APR-2022,C&FS (P),STORK DAY NURSERY&&EYRS1615,EARLY YEARS,4908-Grants,"17,364.39"
01-APR-2022,C&FS (P),SUCCESS ACADEMY TRUST T/A HALLBROOK PRIMARY SCHOOL PRE-SCHOOL&&EYRSEXMT0135,EARLY YEARS,4908-Grants,"12,022.62"
01-APR-2022,C&FS (P),SUNFLOWERS DAY NURSERY&&EYRS1801,EARLY YEARS,4908-Grants,"53,968.31"
01-APR-2022,C&FS (P),REDACTED PERSONAL DATA,EARLY YEARS,4908-Grants,"1,422.30"
01-APR-2022,C&FS (P),REDACTED PERSONAL DATA,EARLY YEARS,4908-Grants,"3,721.69"
01-APR-2022,C&FS (P),REDACTED PERSONAL DATA,EARLY YEARS,4908-Grants,"3,910.35"
01-APR-2022,C&FS (P),REDACTED PERSONAL DATA,EARLY YEARS,4908-Grants,529.02
01-APR-2022,C&FS (P),REDACTED PERSONAL DATA,EARLY YEARS,4908-Grants,934.57
01-APR-2022,C&FS (P),REDACTED PERSONAL DATA,EARLY YEARS,4908-Grants,"1,043.02"
01-APR-2022,C&FS (P),REDACTED PERSONAL DATA,EARLY YEARS,4908-Grants,"2,370.50"
01-APR-2022,C&FS (P),REDACTED PERSONAL DATA,EARLY YEARS,4908-Grants,"1,856.32"
01-APR-2022,C&FS (P),REDACTED PERSONAL DATA,EARLY YEARS,4908-Grants,510.99
01-APR-2022,C&FS (P),REDACTED PERSONAL DATA,EARLY YEARS,4908-Grants,"2,844.60"
01-APR-2022,C&FS (P),REDACTED PERSONAL DATA,EARLY YEARS,4908-Grants,"10,039.59"
01-APR-2022,C&FS (P),REDACTED PERSONAL DATA,EARLY YEARS,4908-Grants,"2,844.60"
01-APR-2022,C&FS (P),SYSTON DAY NURSERY LTD T/A THE SCRAPTOFT DAY NURSERY&&EYRSEY560907,EARLY YEARS,4908-Grants,"34,852.63"
01-APR-2022,C&FS (P),TANGENT HOUSE DAY NURSERY&&EYRSEY267618,EARLY YEARS,4908-Grants,"50,895.23"
01-APR-2022,C&FS (P),TANGENT HOUSE DAY NURSERY&&EYRSEY267618,EARLY YEARS,4908-Grants,"2,687.69"
01-APR-2022,C&FS (P),REDACTED PERSONAL DATA,EARLY YEARS,4908-Grants,"1,620.30"
01-APR-2022,C&FS (P),TEAPOTS DAY NURSERY&&EYRS1580,EARLY YEARS,4908-Grants,815.40
01-APR-2022,C&FS (P),TEAPOTS DAY NURSERY&&EYRS1580,EARLY YEARS,4908-Grants,"44,702.52"
01-APR-2022,C&FS (P),REDACTED PERSONAL DATA,EARLY YEARS,4908-Grants,"1,777.88"
01-APR-2022,C&FS (P),THE CLIMBING TREE PRESCHOOL&&EYRS1715,EARLY YEARS,4908-Grants,"11,026.24"
01-APR-2022,C&FS (P),THE HALL PRESCHOOL&&EYRS1777,EARLY YEARS,4908-Grants,"61,461.68"
01-APR-2022,C&FS (P),THE HUNNY BEE DAY&&EYRS1773,EARLY YEARS,4908-Grants,833.52
01-APR-2022,C&FS (P),THE HUNNY BEE DAY&&EYRS1773,EARLY YEARS,4908-Grants,"30,526.62"
01-APR-2022,C&FS (P),THE HUNNY HIVE KIBWORTH&&EYRS2511185,EARLY YEARS,4908-Grants,"31,743.17"
01-APR-2022,C&FS (P),THE HUNNY HIVE KIBWORTH&&EYRS2511185,EARLY YEARS,4908-Grants,"1,602.54"
01-APR-2022,C&FS (P),THE HUNNY JAR DAY NURSERY&&EYRSEY501507,EARLY YEARS,4908-Grants,"19,482.28"
01-APR-2022,C&FS (P),THE HUNNY JAR DAY NURSERY&&EYRSEY501507,EARLY YEARS,4908-Grants,547.80
01-APR-2022,C&FS (P),THE SYSTON DAY NURSERY&&EYRSEY499967,EARLY YEARS,4908-Grants,"34,663.77"
01-APR-2022,C&FS (P),THOMAS ESTLEY COMMUNITY COLLEGE&&EYRS1755,EARLY YEARS,4908-Grants,"17,261.64"
01-APR-2022,C&FS (P),THORNTON PLAYGROUP&&EYRS1316,EARLY YEARS,4908-Grants,"17,028.41"
01-APR-2022,C&FS (P),THORPE ACRE PRE SCHOOL PLAYGROUP&&EYRS1487,EARLY YEARS,4908-Grants,"29,271.33"
01-APR-2022,C&FS (P),THORPE ACRE PRE SCHOOL PLAYGROUP&&EYRS1487,EARLY YEARS,4908-Grants,"2,343.90"
01-APR-2022,C&FS (P),THURMASTON VILLAGE PRE SCHOOL&&EYRS1351,EARLY YEARS,4908-Grants,"1,564.53"
01-APR-2022,C&FS (P),THURNBY & BUSHBY PLAYGROUP&&EYRS1570,EARLY YEARS,4908-Grants,"12,243.54"
01-APR-2022,C&FS (P),TIDDLERS PLAYGROUP&&EYRS2555619,EARLY YEARS,4908-Grants,"5,989.83"
01-APR-2022,C&FS (P),TIDDLEY PEEPS PRE SCHOOL&&EYRS250170,EARLY YEARS,4908-Grants,"18,109.69"
01-APR-2022,C&FS (P),TIDDLEY PEEPS PRE SCHOOL&&EYRS250170,EARLY YEARS,4908-Grants,667.95
01-APR-2022,C&FS (P),TIDDLYWINKS PRE SCHOOL&&EYRS1678,EARLY YEARS,4908-Grants,"13,686.01"
01-APR-2022,C&FS (P),TJ MCENERY T/A FOREST ROCK DAY NURSERY LTD&&EYRS1636,EARLY YEARS,4908-Grants,"37,032.31"
01-APR-2022,C&FS (P),TODDLERS NURSERY SCHOOL&&EYRS1354,EARLY YEARS,4908-Grants,"54,023.62"
01-APR-2022,C&FS (P),TODDLERS NURSERY SCHOOL&&EYRS1354,EARLY YEARS,4908-Grants,"1,184.80"
01-APR-2022,C&FS (P),TOPSHAM HOUSE DAY NURSERY&&EYRS1356,EARLY YEARS,4908-Grants,"32,920.80"
01-APR-2022,C&FS (P),REDACTED PERSONAL DATA,EARLY YEARS,4908-Grants,"1,422.30"
01-APR-2022,C&FS (P),REDACTED PERSONAL DATA,EARLY YEARS,4908-Grants,532.35
01-APR-2022,C&FS (P),REDACTED PERSONAL DATA,EARLY YEARS,4908-Grants,"3,792.80"
01-APR-2022,C&FS (P),REDACTED PERSONAL DATA,EARLY YEARS,4908-Grants,"3,555.75"
01-APR-2022,C&FS (P),REDACTED PERSONAL DATA,EARLY YEARS,4908-Grants,"5,947.80"
01-APR-2022,C&FS (P),TRINITY PLAYGROUP&&EYRS1493,EARLY YEARS,4908-Grants,"19,793.44"
01-APR-2022,C&FS (P),TWO BEES PRE SCHOOL&&EYRS1653,EARLY YEARS,4908-Grants,"19,026.28"
01-APR-2022,C&FS (P),ULLESTHORPE PRE SCHOOL LTD&&EYRS1140,EARLY YEARS,4908-Grants,"21,094.92"
01-APR-2022,C&FS (P),VALERIE DISLEY&&EYRSEY218198,EARLY YEARS,4908-Grants,742.91
01-APR-2022,C&FS (P),VAMIKA LTD T/A CRADLE NURSERY&&EYRS1733,EARLY YEARS,4908-Grants,"51,716.72"
01-APR-2022,C&FS (P),VANESSA DOLMAN&&EYRSEY330361,EARLY YEARS,4908-Grants,"2,222.58"
01-APR-2022,C&FS (P),VERONICA RYE&&EYRSEY448250,EARLY YEARS,4908-Grants,"1,932.18"
01-APR-2022,C&FS (P),REDACTED PERSONAL DATA,EARLY YEARS,4908-Grants,"1,825.20"
01-APR-2022,C&FS (P),REDACTED PERSONAL DATA,EARLY YEARS,4908-Grants,"1,605.76"
01-APR-2022,C&FS (P),REDACTED PERSONAL DATA,EARLY YEARS,4908-Grants,912.60
01-APR-2022,C&FS (P),REDACTED PERSONAL DATA,EARLY YEARS,4908-Grants,"1,140.75"
01-APR-2022,C&FS (P),REDACTED PERSONAL DATA,EARLY YEARS,4908-Grants,"2,538.59"
01-APR-2022,C&FS (P),REDACTED PERSONAL DATA,EARLY YEARS,4908-Grants,"3,064.17"
01-APR-2022,C&FS (P),REDACTED PERSONAL DATA,EARLY YEARS,4908-Grants,"1,422.30"
01-APR-2022,C&FS (P),VIKKI LOUISE FREESTONE&&EYRS2161,EARLY YEARS,4908-Grants,"1,706.76"
01-APR-2022,C&FS (P),VIKTORIA ROBINSON&&EYRS2059,EARLY YEARS,4908-Grants,"8,064.44"
01-APR-2022,C&FS (P),VIVIAN SHAW&&EYRS2051,EARLY YEARS,4908-Grants,"4,266.90"
01-APR-2022,C&FS (P),WALTHAM PRE SCHOOL&&EYRS1141,EARLY YEARS,4908-Grants,"23,922.67"
01-APR-2022,C&FS (P),WALTHAM PRE SCHOOL&&EYRS1141,EARLY YEARS,4908-Grants,"1,025.16"
01-APR-2022,C&FS (P),WANLIP PRE SCHOOL&&EYRS1300,EARLY YEARS,4908-Grants,"14,816.70"
01-APR-2022,C&FS (P),WATERMEAD NURSERIES LTD&&EYRS1642,EARLY YEARS,4908-Grants,"115,385.39"
01-APR-2022,C&FS (P),WATERMEAD NURSERIES LTD&&EYRS1642,EARLY YEARS,4908-Grants,"2,995.49"
01-APR-2022,C&FS (P),WELCOME NURSERIES LTD T/A SMARTIES @ WELCOME NURSERIES&&EYRS2619621,EARLY YEARS,4908-Grants,"28,533.61"
01-APR-2022,C&FS (P),WELLAND PARK COMMUNITY COLLEGE PRE SCHOOL&&EYRS1724,EARLY YEARS,4908-Grants,"24,462.25"
01-APR-2022,C&FS (P),REDACTED PERSONAL DATA,EARLY YEARS,4908-Grants,"2,844.60"
01-APR-2022,C&FS (P),WESTFIELD CHILDRENS DAY CENTRE&&EYRS1359,EARLY YEARS,4908-Grants,"38,097.03"
01-APR-2022,C&FS (P),WESTFIELD CHILDRENS DAY CENTRE&&EYRS1359,EARLY YEARS,4908-Grants,"1,124.91"
01-APR-2022,C&FS (P),WHETSTONE BAPTIST CHURCH&&EYRS1596,EARLY YEARS,4908-Grants,"31,466.75"
01-APR-2022,C&FS (P),WHETSTONE BAPTIST CHURCH&&EYRS1596,EARLY YEARS,4908-Grants,"2,181.06"
01-APR-2022,C&FS (P),WHIZ KIDS DAY NUSERY&&EYRS2637378,EARLY YEARS,4908-Grants,"27,288.97"
01-APR-2022,C&FS (P),WHIZ KIDS DAY NUSERY&&EYRS2637378,EARLY YEARS,4908-Grants,"3,104.20"
01-APR-2022,C&FS (P),WIGSTON ALL SAINTS PRE SCHOOL&&EYRS1760,EARLY YEARS,4908-Grants,"24,508.28"
01-APR-2022,C&FS (P),WIGSTON ALL SAINTS PRE SCHOOL&&EYRS1760,EARLY YEARS,4908-Grants,"2,320.08"
01-APR-2022,C&FS (P),WINDSOR PLAYGROUP&&EYRS1364,EARLY YEARS,4908-Grants,"12,714.24"
01-APR-2022,C&FS (P),WOLSTAN PREPARATORY SCHOOL NURSERY&&EYRS1206,EARLY YEARS,4908-Grants,"27,734.85"
01-APR-2022,C&FS (P),WOODLAND PRESCHOOL&&EYRS1769,EARLY YEARS,4908-Grants,"11,703.56"
01-APR-2022,C&FS (P),WOODLAND PRESCHOOL&&EYRS1769,EARLY YEARS,4908-Grants,985.50
01-APR-2022,C&FS (P),WORTHINGTON PRE SCHOOL&&EYRS1143,EARLY YEARS,4908-Grants,"7,949.37"
01-APR-2022,C&FS (P),WYMESWOLD PLAYGROUP&&EYRS1144,EARLY YEARS,4908-Grants,560.25
01-APR-2022,C&FS (P),WYMESWOLD PLAYGROUP&&EYRS1144,EARLY YEARS,4908-Grants,"5,843.28"
01-APR-2022,C&FS (P),WYMONDHAM PRESCHOOL LTD&&EYRS1454,EARLY YEARS,4908-Grants,"31,850.19"
01-APR-2022,C&FS (P),WYMONDHAM PRESCHOOL LTD&&EYRS1454,EARLY YEARS,4908-Grants,"1,945.30"
01-APR-2022,Environment & Transport (P),1st Select Ltd,TRADE SUPPLIER,3112-Home to Sch Trans Contract Buses Prim,749.40
01-APR-2022,Environment & Transport (P),1st Select Ltd,TRADE SUPPLIER,3113-Home to Sch Trans Contract Buses Sec,959.85
01-APR-2022,Chief Executives (P),36 Group Ltd,TRADE SUPPLIER,4905-Legal Expenses,700.00
01-APR-2022,Chief Executives (P),36 Group Ltd,TRADE SUPPLIER,4905-Legal Expenses,800.00
01-APR-2022,Chief Executives (P),5 Essex Court,NON TRADE,4905-Legal Expenses,"1,050.00"
01-APR-2022,Environment & Transport (P),A1 Cars Ashby Ltd,TRADE SUPPLIER,3303-Taxi Hire,"1,599.30"
01-APR-2022,Environment & Transport (P),A1 Cars Ashby Ltd,TRADE SUPPLIER,3303-Taxi Hire,"1,457.70"
01-APR-2022,Environment & Transport (P),A1 Cars Ashby Ltd,TRADE SUPPLIER,3303-Taxi Hire,"1,200.00"
01-APR-2022,Environment & Transport (P),A1 Cars Ashby Ltd,TRADE SUPPLIER,3303-Taxi Hire,"3,063.30"
01-APR-2022,Environment & Transport (P),A1 Cars Ashby Ltd,TRADE SUPPLIER,3303-Taxi Hire,"1,149.30"
01-APR-2022,Environment & Transport (P),A1 Cars Ashby Ltd,TRADE SUPPLIER,3113-Home to Sch Trans Contract Buses Sec,799.82
01-APR-2022,Environment & Transport (P),A2B Taxis T/A N McMillan,TRADE SUPPLIER,3303-Taxi Hire,972.00
01-APR-2022,Environment & Transport (P),A2B Taxis T/A N McMillan,TRADE SUPPLIER,3113-Home to Sch Trans Contract Buses Sec,680.00
01-APR-2022,Environment & Transport (P),A2B Taxis T/A N McMillan,TRADE SUPPLIER,3112-Home to Sch Trans Contract Buses Prim,"1,266.00"
01-APR-2022,Environment & Transport (P),A2B Taxis T/A N McMillan,TRADE SUPPLIER,3113-Home to Sch Trans Contract Buses Sec,772.50
01-APR-2022,Environment & Transport (P),AA Taxis,TRADE SUPPLIER,3303-Taxi Hire,884.81
01-APR-2022,Environment & Transport (P),AA Taxis,TRADE SUPPLIER,3303-Taxi Hire,"1,500.00"
01-APR-2022,Environment & Transport (P),ABC Taxis (Leicester) Ltd,TRADE SUPPLIER,3303-Taxi Hire,838.50
01-APR-2022,Environment & Transport (P),ABC Taxis (Leicester) Ltd,TRADE SUPPLIER,3303-Taxi Hire,"1,182.00"
01-APR-2022,Environment & Transport (P),ABC Taxis (Leicester) Ltd,TRADE SUPPLIER,3112-Home to Sch Trans Contract Buses Prim,510.00
01-APR-2022,Environment & Transport (P),ABC Taxis (Leicester) Ltd,TRADE SUPPLIER,3203-Pooled Transport Recharge Contractors,"1,507.00"
01-APR-2022,Environment & Transport (P),ABC Taxis (Leicester) Ltd,TRADE SUPPLIER,3201-Pooled Transport Recharge Inhouse,600.00
01-APR-2022,Environment & Transport (P),ABC Taxis (Leicester) Ltd,TRADE SUPPLIER,3303-Taxi Hire,555.00
01-APR-2022,Environment & Transport (P),ABC Taxis (Leicester) Ltd,TRADE SUPPLIER,3303-Taxi Hire,781.26
01-APR-2022,Environment & Transport (P),ABC Taxis (Leicester) Ltd,TRADE SUPPLIER,3201-Pooled Transport Recharge Inhouse,640.00
01-APR-2022,Environment & Transport (P),ABC Taxis (Leicester) Ltd,TRADE SUPPLIER,3303-Taxi Hire,"1,048.20"
01-APR-2022,C&FS (P),Acorn Care & Education Ltd (Sales),TRADE SUPPLIER,5411-Private Contractors - General,808.00
01-APR-2022,Balance Sheet Cost Centres (P),Adey Steelshop Ltd,TRADE SUPPLIER,9631-Inventories - General,"2,413.36"
01-APR-2022,Environment & Transport (P),AECOM Ltd,TRADE SUPPLIER,4507-Consultants & Specialists,"17,843.00"
01-APR-2022,Corporate Resources (CR) (P),AG Barr Plc,TRADE SUPPLIER,4504-Provisions Purchases,"5,433.13"
01-APR-2022,Environment & Transport (P),Aggregate Industries UK Ltd,SUBCONTRACTOR,4109-Materials,646.02
01-APR-2022,Public Health (P),Air IT,TRADE SUPPLIER,4602-IT Services,"2,233.30"
01-APR-2022,Corporate Resources (CR) (P),All Purpose Cleaning Supplies Ltd,TRADE SUPPLIER,2401-Cleaning Materials,549.96
01-APR-2022,Environment & Transport (P),REDACTED PERSONAL DATA,TRADE SUPPLIER,3303-Taxi Hire,535.50
01-APR-2022,C&FS (P),REDACTED PERSONAL DATA,NON TRADE,5445-Adoption Support,910.00
01-APR-2022,Corporate Resources (CR) (P),Arcelle Consulting,TRADE SUPPLIER,2105-Reactive Maintenance M&E,750.00
01-APR-2022,Corporate Resources (CR) (P),REDACTED PERSONAL DATA,NON TRADE,4908-Grants,"2,550.00"
01-APR-2022,Corporate Resources (CR) (P),Ashwell Maintenance Ltd,TRADE SUPPLIER,2105-Reactive Maintenance M&E,552.00
01-APR-2022,Adults & Communities (P),Askews & Holts Library Services Ltd,TRADE SUPPLIER,4111-Books & Audio Visual,505.48
01-APR-2022,Adults & Communities (P),Askews & Holts Library Services Ltd,TRADE SUPPLIER,4111-Books & Audio Visual,589.59
01-APR-2022,Adults & Communities (P),Askews & Holts Library Services Ltd,TRADE SUPPLIER,4111-Books & Audio Visual,633.14
01-APR-2022,C&FS (P),Aspire Lifeskills Ltd,TRADE SUPPLIER,5323-External SEN Providers Independent Sch,"4,095.00"
01-APR-2022,C&FS (P),Aspire Lifeskills Ltd,TRADE SUPPLIER,5323-External SEN Providers Independent Sch,"12,200.00"
01-APR-2022,Corporate Resources (CR) (P),AT Services Ltd,SUBCONTRACTOR,2105-Reactive Maintenance M&E,"1,162.77"
01-APR-2022,Environment & Transport (P),Bagnalls Coaches,TRADE SUPPLIER,3113-Home to Sch Trans Contract Buses Sec,"5,865.00"
01-APR-2022,Environment & Transport (P),Beaver Bus,TRADE SUPPLIER,3112-Home to Sch Trans Contract Buses Prim,"2,850.00"
01-APR-2022,Environment & Transport (P),Beaver Bus,TRADE SUPPLIER,3112-Home to Sch Trans Contract Buses Prim,"2,550.00"
01-APR-2022,Environment & Transport (P),Beaver Bus,TRADE SUPPLIER,3113-Home to Sch Trans Contract Buses Sec,"5,700.00"
01-APR-2022,Environment & Transport (P),Beaver Bus,TRADE SUPPLIER,3113-Home to Sch Trans Contract Buses Sec,"5,700.00"
01-APR-2022,Environment & Transport (P),Beaver Bus,TRADE SUPPLIER,3115-Home to Sch Trans Contract Buses FE,"5,700.00"
01-APR-2022,Corporate Resources (CR) (P),BFS Group Ltd T/A Bidfood,TRADE SUPPLIER,4504-Provisions Purchases,582.83
01-APR-2022,Corporate Resources (CR) (P),BFS Group Ltd T/A Bidfood,TRADE SUPPLIER,4504-Provisions Purchases,745.32
01-APR-2022,Environment & Transport (P),REDACTED PERSONAL DATA,NON TRADE,3303-Taxi Hire,"1,267.65"
01-APR-2022,Environment & Transport (P),Biffa Waste Services Ltd,TRADE SUPPLIER,5411-Private Contractors - General,"13,453.19"
01-APR-2022,Environment & Transport (P),Biffa Waste Services Ltd,TRADE SUPPLIER,5411-Private Contractors - General,"9,301.69"
01-APR-2022,Environment & Transport (P),Biffa Waste Services Ltd,TRADE SUPPLIER,5411-Private Contractors - General,"1,222.08"
01-APR-2022,Corporate Resources (CR) (P),Birchwood School (Melton Area Special School),NON TRADE,4908-Grants,"2,550.00"
01-APR-2022,Corporate Resources (CR) (P),Birkett House School,TRADE SUPPLIER,4908-Grants,"2,550.00"
01-APR-2022,Environment & Transport (P),Birstall Cabs,TRADE SUPPLIER,3201-Pooled Transport Recharge Inhouse,588.90
01-APR-2022,Environment & Transport (P),Birstall Cabs,TRADE SUPPLIER,3303-Taxi Hire,"1,633.35"
01-APR-2022,Environment & Transport (P),Birstall Cabs,TRADE SUPPLIER,3201-Pooled Transport Recharge Inhouse,780.00
01-APR-2022,Environment & Transport (P),Birstall Cabs,TRADE SUPPLIER,3201-Pooled Transport Recharge Inhouse,"1,344.00"
01-APR-2022,Environment & Transport (P),Birstall Cabs,TRADE SUPPLIER,3201-Pooled Transport Recharge Inhouse,"2,400.00"
01-APR-2022,Environment & Transport (P),Birstall Cabs,TRADE SUPPLIER,3112-Home to Sch Trans Contract Buses Prim,"1,275.00"
01-APR-2022,Environment & Transport (P),Birstall Cabs,TRADE SUPPLIER,3113-Home to Sch Trans Contract Buses Sec,"1,209.64"
01-APR-2022,Environment & Transport (P),Birstall Cabs,TRADE SUPPLIER,3113-Home to Sch Trans Contract Buses Sec,748.56
01-APR-2022,Environment & Transport (P),Birstall Cabs,TRADE SUPPLIER,3303-Taxi Hire,"1,748.16"
01-APR-2022,Environment & Transport (P),Birstall Cabs,TRADE SUPPLIER,3303-Taxi Hire,"1,091.70"
01-APR-2022,Environment & Transport (P),Birstall Cabs,TRADE SUPPLIER,3303-Taxi Hire,"1,720.05"
01-APR-2022,Environment & Transport (P),Birstall Cabs,TRADE SUPPLIER,3303-Taxi Hire,"1,648.20"
01-APR-2022,Environment & Transport (P),Birstall Cabs,TRADE SUPPLIER,3303-Taxi Hire,"1,121.70"
01-APR-2022,Environment & Transport (P),Birstall Cabs,TRADE SUPPLIER,3303-Taxi Hire,"1,616.70"
01-APR-2022,Environment & Transport (P),Birstall Cabs,TRADE SUPPLIER,3303-Taxi Hire,"1,152.50"
01-APR-2022,Environment & Transport (P),Birstall Cabs,TRADE SUPPLIER,3303-Taxi Hire,"1,751.70"
01-APR-2022,Environment & Transport (P),Birstall Cabs,TRADE SUPPLIER,3303-Taxi Hire,"1,635.00"
01-APR-2022,Environment & Transport (P),Birstall Cabs,TRADE SUPPLIER,3303-Taxi Hire,"1,344.00"
01-APR-2022,Environment & Transport (P),Birstall Cabs,TRADE SUPPLIER,3303-Taxi Hire,"1,254.96"
01-APR-2022,Environment & Transport (P),Birstall Cabs,TRADE SUPPLIER,3303-Taxi Hire,"2,100.00"
01-APR-2022,Environment & Transport (P),Birstall Cabs,TRADE SUPPLIER,3303-Taxi Hire,"1,213.50"
01-APR-2022,Environment & Transport (P),Birstall Cabs,TRADE SUPPLIER,3303-Taxi Hire,673.02
01-APR-2022,Environment & Transport (P),Birstall Cabs,TRADE SUPPLIER,3303-Taxi Hire,"1,992.00"
01-APR-2022,Environment & Transport (P),Birstall Cabs,TRADE SUPPLIER,3303-Taxi Hire,"2,048.40"
01-APR-2022,Environment & Transport (P),Birstall Cabs,TRADE SUPPLIER,3201-Pooled Transport Recharge Inhouse,"1,595.00"
01-APR-2022,Environment & Transport (P),Birstall Cars Ltd,TRADE SUPPLIER,3303-Taxi Hire,"1,560.48"
01-APR-2022,Environment & Transport (P),Birstall Cars Ltd,TRADE SUPPLIER,3303-Taxi Hire,"1,691.70"
01-APR-2022,Environment & Transport (P),Birstall Cars Ltd,TRADE SUPPLIER,3303-Taxi Hire,"1,696.80"
01-APR-2022,Environment & Transport (P),Birstall Cars Ltd,TRADE SUPPLIER,3303-Taxi Hire,849.80
01-APR-2022,Environment & Transport (P),Birstall Cars Ltd,TRADE SUPPLIER,3201-Pooled Transport Recharge Inhouse,"1,300.00"
01-APR-2022,Environment & Transport (P),Birstall Cars Ltd,TRADE SUPPLIER,3303-Taxi Hire,"1,592.92"
01-APR-2022,Environment & Transport (P),Birstall Cars Ltd,TRADE SUPPLIER,3303-Taxi Hire,"1,468.02"
01-APR-2022,Environment & Transport (P),Birstall Cars Ltd,TRADE SUPPLIER,3303-Taxi Hire,612.00
01-APR-2022,Environment & Transport (P),Birstall Cars Ltd,TRADE SUPPLIER,3112-Home to Sch Trans Contract Buses Prim,888.00
01-APR-2022,Capital - In Year Spend (P),Blitz Drainage Services (S F Wallace),SUBCONTRACTOR,941G-L&B - Design Fees - External,645.00
01-APR-2022,C&FS (P),Blue Mountain Homes Ltd,TRADE SUPPLIER,5411-Private Contractors - General,"21,728.00"
01-APR-2022,C&FS (P),Blue Mountain Homes Ltd,TRADE SUPPLIER,5411-Private Contractors - General,"37,128.00"
01-APR-2022,C&FS (P),Blue Mountain Homes Ltd,TRADE SUPPLIER,5411-Private Contractors - General,"34,688.00"
01-APR-2022,C&FS (P),Blue Mountain Homes Ltd,TRADE SUPPLIER,5411-Private Contractors - General,"21,728.00"
01-APR-2022,C&FS (P),Blue Mountain Homes Ltd,TRADE SUPPLIER,5411-Private Contractors - General,"27,994.56"
01-APR-2022,C&FS (P),Blue Mountain Homes Ltd,TRADE SUPPLIER,5411-Private Contractors - General,621.18
01-APR-2022,C&FS (P),Blue Mountain Homes Ltd,TRADE SUPPLIER,5411-Private Contractors - General,"19,528.00"
01-APR-2022,C&FS (P),Blue Mountain Homes Ltd,TRADE SUPPLIER,5411-Private Contractors - General,"19,528.00"
01-APR-2022,C&FS (P),Blue Mountain Homes Ltd,TRADE SUPPLIER,5411-Private Contractors - General,"32,600.00"
01-APR-2022,C&FS (P),Blue Mountain Homes Ltd,TRADE SUPPLIER,5411-Private Contractors - General,"29,580.00"
01-APR-2022,Adults & Communities (P),Bolinda UK Ltd,TRADE SUPPLIER,4111-Books & Audio Visual,878.90
01-APR-2022,Environment & Transport (P),Brady Corporation Ltd T/A Seton,TRADE SUPPLIER,4109-Materials,770.86
01-APR-2022,C&FS (P),Cambian Childcare Ltd,TRADE SUPPLIER,5411-Private Contractors - General,"3,321.45"
01-APR-2022,Adults & Communities (P),Carlton Construction Services,SUBCONTRACTOR,5411-Private Contractors - General,"6,080.00"
01-APR-2022,Chief Executives (P),Carter Brown The Expert Service Ltd,TRADE SUPPLIER,4905-Legal Expenses,"1,308.70"
01-APR-2022,Capital - In Year Spend (P),Carter Jonas LLP,TRADE SUPPLIER,941G-L&B - Design Fees - External,"16,553.23"
01-APR-2022,Corporate Resources (CR) (P),Carter Jonas LLP,TRADE SUPPLIER,4507-Consultants & Specialists,"8,283.00"
01-APR-2022,Corporate Resources (CR) (P),Carter Jonas LLP,TRADE SUPPLIER,4507-Consultants & Specialists,"2,380.20"
01-APR-2022,Corporate Resources (CR) (P),Castle Donington College Academy,TRADE SUPPLIER,8301-Sales (Traded),588.24
01-APR-2022,Corporate Resources (CR) (P),Castle Water Ltd,TRADE SUPPLIER,2331-Water Charges,"8,686.36"
01-APR-2022,C&FS (P),Cedars Academy Lionheart Academies Trust,NON TRADE,5325-External SEN Providers Top Up Fee,"50,000.00"
01-APR-2022,Balance Sheet Cost Centres (P),Certas Energy UK Ltd,TRADE SUPPLIER,"9634-Inventories - LHD Fuel White, Diesel","1,781.85"
01-APR-2022,Balance Sheet Cost Centres (P),Certas Energy UK Ltd,TRADE SUPPLIER,"9634-Inventories - LHD Fuel White, Diesel","6,092.72"
01-APR-2022,C&FS (P),Child Psychology Service,TRADE SUPPLIER,5445-Adoption Support,"1,388.10"
01-APR-2022,C&FS (P),Child Psychology Service,TRADE SUPPLIER,5445-Adoption Support,"1,640.10"
01-APR-2022,C&FS (P),Child Psychology Service,TRADE SUPPLIER,5445-Adoption Support,"1,734.60"
01-APR-2022,C&FS (P),Childrens Sensory Therapy Ltd,TRADE SUPPLIER,5445-Adoption Support,"3,828.33"
01-APR-2022,Corporate Resources (CR) (P),CIPFA Business Ltd,TRADE SUPPLIER,4507-Consultants & Specialists,"5,495.00"
01-APR-2022,Environment & Transport (P),Circle Taxis Ltd,TRADE SUPPLIER,3303-Taxi Hire,"1,530.00"
01-APR-2022,Environment & Transport (P),Circle Taxis Ltd,TRADE SUPPLIER,3303-Taxi Hire,"1,260.00"
01-APR-2022,Environment & Transport (P),Circle Taxis Ltd,TRADE SUPPLIER,3303-Taxi Hire,"2,550.00"
01-APR-2022,Environment & Transport (P),Circle Taxis Ltd,TRADE SUPPLIER,3303-Taxi Hire,"1,470.00"
01-APR-2022,Environment & Transport (P),Circle Taxis Ltd,TRADE SUPPLIER,3303-Taxi Hire,"1,350.00"
01-APR-2022,Environment & Transport (P),Circle Taxis Ltd,TRADE SUPPLIER,3303-Taxi Hire,"1,102.00"
01-APR-2022,Environment & Transport (P),Circle Taxis Ltd,TRADE SUPPLIER,3303-Taxi Hire,"1,140.00"
01-APR-2022,Environment & Transport (P),Circle Taxis Ltd,TRADE SUPPLIER,3203-Pooled Transport Recharge Contractors,817.00
01-APR-2022,Environment & Transport (P),Circle Taxis Ltd,TRADE SUPPLIER,3303-Taxi Hire,"1,200.00"
01-APR-2022,Balance Sheet Cost Centres (P),Circle Taxis Ltd,TRADE SUPPLIER,9722-Reserved Creditors - Non Public Sector,"1,120.00"
01-APR-2022,Environment & Transport (P),Circle Taxis Ltd,TRADE SUPPLIER,3303-Taxi Hire,"1,290.00"
01-APR-2022,Environment & Transport (P),REDACTED PERSONAL DATA,TRADE INDIVIDUAL,3303-Taxi Hire,715.95
01-APR-2022,Chief Executives (P),REDACTED PERSONAL DATA,TRADE INDIVIDUAL,4905-Legal Expenses,800.00
01-APR-2022,Environment & Transport (P),Clockwork Cars Coalville Ltd,TRADE SUPPLIER,3113-Home to Sch Trans Contract Buses Sec,570.00
01-APR-2022,Environment & Transport (P),Coalville Cabs Ltd,TRADE SUPPLIER,3201-Pooled Transport Recharge Inhouse,969.00
01-APR-2022,Environment & Transport (P),Coalville Cabs Ltd,TRADE SUPPLIER,3201-Pooled Transport Recharge Inhouse,"1,296.00"
01-APR-2022,Environment & Transport (P),Coalville Cabs Ltd,TRADE SUPPLIER,3201-Pooled Transport Recharge Inhouse,"1,040.00"
01-APR-2022,Environment & Transport (P),Coalville Cabs Ltd,TRADE SUPPLIER,3303-Taxi Hire,"1,776.00"
01-APR-2022,Environment & Transport (P),Coalville Cabs Ltd,TRADE SUPPLIER,3303-Taxi Hire,"1,383.20"
01-APR-2022,Environment & Transport (P),Coalville Cabs Ltd,TRADE SUPPLIER,3303-Taxi Hire,"1,344.00"
01-APR-2022,Environment & Transport (P),Coalville Cabs Ltd,TRADE SUPPLIER,3303-Taxi Hire,894.00
01-APR-2022,Environment & Transport (P),Coalville Cabs Ltd,TRADE SUPPLIER,3303-Taxi Hire,"1,979.04"
01-APR-2022,Balance Sheet Cost Centres (P),Coalville Cabs Ltd,TRADE SUPPLIER,9722-Reserved Creditors - Non Public Sector,"1,382.00"
01-APR-2022,Environment & Transport (P),Coalville Cabs Ltd,TRADE SUPPLIER,3201-Pooled Transport Recharge Inhouse,761.50
01-APR-2022,Environment & Transport (P),Coalville Cabs Ltd,TRADE SUPPLIER,3201-Pooled Transport Recharge Inhouse,"1,065.60"
01-APR-2022,Environment & Transport (P),Coalville Cabs Ltd,TRADE SUPPLIER,3201-Pooled Transport Recharge Inhouse,866.80
01-APR-2022,Environment & Transport (P),Coalville Cabs Ltd,TRADE SUPPLIER,3303-Taxi Hire,"1,794.00"
01-APR-2022,Environment & Transport (P),Coalville Cabs Ltd,TRADE SUPPLIER,3303-Taxi Hire,550.80
01-APR-2022,Environment & Transport (P),Coalville Cabs Ltd,TRADE SUPPLIER,3303-Taxi Hire,750.00
01-APR-2022,Environment & Transport (P),Coalville Cabs Ltd,TRADE SUPPLIER,3303-Taxi Hire,588.00
01-APR-2022,Environment & Transport (P),Coalville Cabs Ltd,TRADE SUPPLIER,3303-Taxi Hire,"1,287.60"
01-APR-2022,Environment & Transport (P),Coalville Cabs Ltd,TRADE SUPPLIER,3303-Taxi Hire,"1,584.00"
01-APR-2022,Environment & Transport (P),Coalville Cabs Ltd,TRADE SUPPLIER,3303-Taxi Hire,928.00
01-APR-2022,Environment & Transport (P),Coalville Cabs Ltd,TRADE SUPPLIER,3303-Taxi Hire,"1,332.00"
01-APR-2022,Environment & Transport (P),Coalville Cabs Ltd,TRADE SUPPLIER,3303-Taxi Hire,"1,882.32"
01-APR-2022,Environment & Transport (P),Coalville Cabs Ltd,TRADE SUPPLIER,3303-Taxi Hire,"1,287.60"
01-APR-2022,Environment & Transport (P),Coalville Cabs Ltd,TRADE SUPPLIER,3303-Taxi Hire,"1,497.00"
01-APR-2022,Environment & Transport (P),Coalville Cabs Ltd,TRADE SUPPLIER,3303-Taxi Hire,"1,191.00"
01-APR-2022,Environment & Transport (P),Coalville Cabs Ltd,TRADE SUPPLIER,3303-Taxi Hire,"1,083.15"
01-APR-2022,Environment & Transport (P),Coalville Cabs Ltd,TRADE SUPPLIER,3303-Taxi Hire,"1,029.00"
01-APR-2022,Environment & Transport (P),Coalville Cabs Ltd,TRADE SUPPLIER,3303-Taxi Hire,"1,520.60"
01-APR-2022,Environment & Transport (P),Coalville Cabs Ltd,TRADE SUPPLIER,3303-Taxi Hire,"1,322.00"
01-APR-2022,Environment & Transport (P),Coalville Cabs Ltd,TRADE SUPPLIER,3303-Taxi Hire,"1,509.00"
01-APR-2022,Environment & Transport (P),Coalville Cabs Ltd,TRADE SUPPLIER,3303-Taxi Hire,"1,779.00"
01-APR-2022,Environment & Transport (P),Coalville Cabs Ltd,TRADE SUPPLIER,3303-Taxi Hire,744.00
01-APR-2022,Environment & Transport (P),Coalville Cabs Ltd,TRADE SUPPLIER,3303-Taxi Hire,615.00
01-APR-2022,Environment & Transport (P),Coalville Cabs Ltd,TRADE SUPPLIER,3303-Taxi Hire,"1,569.00"
01-APR-2022,Environment & Transport (P),Coalville Cabs Ltd,TRADE SUPPLIER,3303-Taxi Hire,"1,614.60"
01-APR-2022,Environment & Transport (P),Coalville Cabs Ltd,TRADE SUPPLIER,3303-Taxi Hire,"1,209.00"
01-APR-2022,Environment & Transport (P),Coalville Cabs Ltd,TRADE SUPPLIER,3303-Taxi Hire,831.60
01-APR-2022,Environment & Transport (P),Coalville Cabs Ltd,TRADE SUPPLIER,3112-Home to Sch Trans Contract Buses Prim,"1,125.00"
01-APR-2022,Environment & Transport (P),Coalville Cabs Ltd,TRADE SUPPLIER,3303-Taxi Hire,"1,506.24"
01-APR-2022,Environment & Transport (P),Coalville Cabs Ltd,TRADE SUPPLIER,3113-Home to Sch Trans Contract Buses Sec,"1,044.40"
01-APR-2022,Environment & Transport (P),Coalville Cabs Ltd,TRADE SUPPLIER,3113-Home to Sch Trans Contract Buses Sec,819.00
01-APR-2022,Environment & Transport (P),Coalville Cabs Ltd,TRADE SUPPLIER,3113-Home to Sch Trans Contract Buses Sec,720.00
01-APR-2022,Environment & Transport (P),Coalville Cabs Ltd,TRADE SUPPLIER,3112-Home to Sch Trans Contract Buses Prim,"1,029.00"
01-APR-2022,Environment & Transport (P),Coalville Cabs Ltd,TRADE SUPPLIER,3201-Pooled Transport Recharge Inhouse,"1,410.60"
01-APR-2022,Environment & Transport (P),Coalville Cabs Ltd,TRADE SUPPLIER,3201-Pooled Transport Recharge Inhouse,"2,008.80"
01-APR-2022,Environment & Transport (P),Coalville Cabs Ltd,TRADE SUPPLIER,3201-Pooled Transport Recharge Inhouse,522.00
01-APR-2022,Environment & Transport (P),Coalville Cabs Ltd,TRADE SUPPLIER,3201-Pooled Transport Recharge Inhouse,"1,536.00"
01-APR-2022,Environment & Transport (P),Coalville Cabs Ltd,TRADE SUPPLIER,3112-Home to Sch Trans Contract Buses Prim,"1,238.08"
01-APR-2022,Environment & Transport (P),Coalville Cabs Ltd,TRADE SUPPLIER,3201-Pooled Transport Recharge Inhouse,630.00
01-APR-2022,Environment & Transport (P),Coalville Cabs Ltd,TRADE SUPPLIER,3303-Taxi Hire,843.60
01-APR-2022,Environment & Transport (P),Coalville Cabs Ltd,TRADE SUPPLIER,3303-Taxi Hire,583.20
01-APR-2022,Environment & Transport (P),Coalville Cabs Ltd,TRADE SUPPLIER,3303-Taxi Hire,888.60
01-APR-2022,Environment & Transport (P),Coalville Cabs Ltd,TRADE SUPPLIER,3201-Pooled Transport Recharge Inhouse,581.40
01-APR-2022,Environment & Transport (P),Coalville Cabs Ltd,TRADE SUPPLIER,3303-Taxi Hire,"1,722.24"
01-APR-2022,Environment & Transport (P),Coalville Cabs Ltd,TRADE SUPPLIER,3201-Pooled Transport Recharge Inhouse,780.00
01-APR-2022,Environment & Transport (P),Coalville Cabs Ltd,TRADE SUPPLIER,3303-Taxi Hire,"1,374.00"
01-APR-2022,Environment & Transport (P),Coalville Cabs Ltd,TRADE SUPPLIER,3303-Taxi Hire,664.70
01-APR-2022,Environment & Transport (P),Coalville Cabs Ltd,TRADE SUPPLIER,3303-Taxi Hire,"1,191.00"
01-APR-2022,Environment & Transport (P),Coalville Cabs Ltd,TRADE SUPPLIER,3303-Taxi Hire,"1,119.00"
01-APR-2022,Environment & Transport (P),Coalville Cabs Ltd,TRADE SUPPLIER,3303-Taxi Hire,"1,479.60"
01-APR-2022,Environment & Transport (P),Coalville Cabs Ltd,TRADE SUPPLIER,3303-Taxi Hire,849.60
01-APR-2022,Environment & Transport (P),Coalville Cabs Ltd,TRADE SUPPLIER,3303-Taxi Hire,591.00
01-APR-2022,Environment & Transport (P),Coalville Cabs Ltd,TRADE SUPPLIER,3303-Taxi Hire,"1,719.00"
01-APR-2022,Environment & Transport (P),Coalville Cabs Ltd,TRADE SUPPLIER,3303-Taxi Hire,"1,182.00"
01-APR-2022,Environment & Transport (P),Coalville Cabs Ltd,TRADE SUPPLIER,3303-Taxi Hire,"1,798.50"
01-APR-2022,Environment & Transport (P),Coalville Cabs Ltd,TRADE SUPPLIER,3303-Taxi Hire,"1,122.00"
01-APR-2022,C&FS (P),Conatus Child Psychology,TRADE SUPPLIER,5445-Adoption Support,"1,250.00"
01-APR-2022,C&FS (P),Conatus Child Psychology,TRADE SUPPLIER,5445-Adoption Support,"1,250.00"
01-APR-2022,Environment & Transport (P),Crown Cars (Leic) Ltd,TRADE SUPPLIER,3201-Pooled Transport Recharge Inhouse,774.00
01-APR-2022,Environment & Transport (P),Crown Cars (Leic) Ltd,TRADE SUPPLIER,3303-Taxi Hire,945.00
01-APR-2022,Environment & Transport (P),Crown Cars (Leic) Ltd,TRADE SUPPLIER,3303-Taxi Hire,"1,026.00"
01-APR-2022,Environment & Transport (P),CSM Leicester,TRADE SUPPLIER,2101-R&M Buildings,"1,565.00"
01-APR-2022,Environment & Transport (P),REDACTED PERSONAL DATA,TRADE SUPPLIER,3112-Home to Sch Trans Contract Buses Prim,"2,100.00"
01-APR-2022,Environment & Transport (P),REDACTED PERSONAL DATA,TRADE INDIVIDUAL,3303-Taxi Hire,"1,050.00"
01-APR-2022,Environment & Transport (P),Deeley Construction Ltd,TRADE SUPPLIER,9722-Reserved Creditors - Non Public Sector,"1,000.00"
01-APR-2022,Balance Sheet Cost Centres (P),Denham Procurement & Sourcing Solutions Ltd,TRADE SUPPLIER,9631-Inventories - General,509.00
01-APR-2022,Balance Sheet Cost Centres (P),Diners Club International,TRADE SUPPLIER,9729-Suspense (Current Liability),683.15
01-APR-2022,Environment & Transport (P),Direct Cabs,TRADE SUPPLIER,3303-Taxi Hire,891.00
01-APR-2022,C&FS (P),Discovery Schools Academy Trust,TRADE SUPPLIER,5443-Agency & Contracted Services,"5,405.00"
01-APR-2022,Environment & Transport (P),Dixons Coach & Travel Services,TRADE SUPPLIER,3113-Home to Sch Trans Contract Buses Sec,"2,245.50"
01-APR-2022,Environment & Transport (P),Drive4it,TRADE SUPPLIER,3113-Home to Sch Trans Contract Buses Sec,"1,110.00"
01-APR-2022,Environment & Transport (P),Drive4it,TRADE SUPPLIER,3113-Home to Sch Trans Contract Buses Sec,750.00
01-APR-2022,Chief Executives (P),East Midlands Chamber (Derbyshire Nottinghamshire Leicestershire),OTHER LOCAL AUTHORITIES,4507-Consultants & Specialists,960.00
01-APR-2022,Environment & Transport (P),REDACTED PERSONAL DATA,TRADE INDIVIDUAL,3112-Home to Sch Trans Contract Buses Prim,"1,575.00"
01-APR-2022,Environment & Transport (P),Electric Center Leicester,TRADE SUPPLIER,4109-Materials,"1,355.47"
01-APR-2022,Environment & Transport (P),Enterprise Flex E Rent,TRADE SUPPLIER,3301-Vehicle & Plant Hire,"1,213.80"
01-APR-2022,Central Items (NCS) (P),Eon Energy Solutions Ltd (Highway Lighting),TRADE SUPPLIER,4901-Other Expenditure,"1,575.00"
01-APR-2022,Chief Executives (P),Ernst & Young LLP,TRADE SUPPLIER,4507-Consultants & Specialists,"235,000.00"
01-APR-2022,Chief Executives (P),Ernst & Young LLP,TRADE SUPPLIER,4507-Consultants & Specialists,"160,000.00"
01-APR-2022,Chief Executives (P),ESPO,TRADE SUPPLIER,8219-General,"2,823.48"
01-APR-2022,Environment & Transport (P),Evington Executive Cars,TRADE SUPPLIER,3303-Taxi Hire,"1,099.50"
01-APR-2022,Environment & Transport (P),Evington Executive Cars,TRADE SUPPLIER,3201-Pooled Transport Recharge Inhouse,720.00
01-APR-2022,C&FS (P),Executive Resource Group Ltd,TRADE SUPPLIER,1201-Agency Costs,"1,719.95"
01-APR-2022,Chief Executives (P),Fenners Chambers,TRADE SUPPLIER,4905-Legal Expenses,"1,600.00"
01-APR-2022,C&FS (P),First Class Tailored Solutions Ltd,TRADE SUPPLIER,5411-Private Contractors - General,"21,322.50"
01-APR-2022,C&FS (P),First Class Tailored Solutions Ltd,TRADE SUPPLIER,5411-Private Contractors - General,"24,465.00"
01-APR-2022,Environment & Transport (P),First4airport,NON TRADE,3113-Home to Sch Trans Contract Buses Sec,"1,035.00"
01-APR-2022,Environment & Transport (P),First4airport,NON TRADE,3303-Taxi Hire,"1,890.00"
01-APR-2022,Environment & Transport (P),First4airport,NON TRADE,3303-Taxi Hire,"1,710.00"
01-APR-2022,Environment & Transport (P),First4airport,NON TRADE,3303-Taxi Hire,"1,470.00"
01-APR-2022,Environment & Transport (P),Ford & Slater of Leicester,TRADE SUPPLIER,3102-Vehicle & Plant Repairs & Maintenance,"4,289.52"
01-APR-2022,Environment & Transport (P),Ford & Slater of Leicester,TRADE SUPPLIER,3102-Vehicle & Plant Repairs & Maintenance,"1,056.41"
01-APR-2022,Environment & Transport (P),Ford & Slater of Leicester,TRADE SUPPLIER,3102-Vehicle & Plant Repairs & Maintenance,550.00
01-APR-2022,Environment & Transport (P),Frith Resource Management Ltd,TRADE SUPPLIER,5411-Private Contractors - General,"1,195.00"
01-APR-2022,C&FS (P),Frontline Staffing Ltd,TRADE SUPPLIER,1201-Agency Costs,"1,620.23"
01-APR-2022,Environment & Transport (P),REDACTED PERSONAL DATA,TRADE INDIVIDUAL,3112-Home to Sch Trans Contract Buses Prim,560.00
01-APR-2022,C&FS (P),Gateway Psychology Ltd,TRADE SUPPLIER,5611-Payment to Carers,"1,730.00"
01-APR-2022,Environment & Transport (P),REDACTED PERSONAL DATA,TRADE INDIVIDUAL,3113-Home to Sch Trans Contract Buses Sec,"2,083.50"
01-APR-2022,Environment & Transport (P),GE Service Group Ltd,TRADE SUPPLIER,2501-Grounds Maintenance,590.40
01-APR-2022,Corporate Resources (CR) (P),George Walker Ltd,SUBCONTRACTOR,2101-R&M Buildings,"1,540.00"
01-APR-2022,Corporate Resources (CR) (P),Glenfield Associates Ltd,TRADE SUPPLIER,2105-Reactive Maintenance M&E,"2,413.00"
01-APR-2022,Corporate Resources (CR) (P),Glenfield Associates Ltd,TRADE SUPPLIER,2105-Reactive Maintenance M&E,"5,827.34"
01-APR-2022,Corporate Resources (CR) (P),Glenfield Associates Ltd,TRADE SUPPLIER,2105-Reactive Maintenance M&E,"2,176.10"
01-APR-2022,Corporate Resources (CR) (P),Glenfield Associates Ltd,TRADE SUPPLIER,2107-Electrical Testing,"1,831.75"
01-APR-2022,Corporate Resources (CR) (P),Glenfield Associates Ltd,TRADE SUPPLIER,2105-Reactive Maintenance M&E,"4,228.69"
01-APR-2022,Corporate Resources (CR) (P),Glenfield Associates Ltd,TRADE SUPPLIER,2107-Electrical Testing,"1,553.42"
01-APR-2022,Corporate Resources (CR) (P),Glenfield Associates Ltd,TRADE SUPPLIER,2107-Electrical Testing,"1,582.60"
01-APR-2022,C&FS (P),GoTo Healthcare Ltd,TRADE SUPPLIER,5443-Agency & Contracted Services,"1,200.00"
01-APR-2022,C&FS (P),GoTo Healthcare Ltd,TRADE SUPPLIER,5451-LCT/LAC (Not Fostered),"1,600.00"
01-APR-2022,C&FS (P),GoTo Healthcare Ltd,TRADE SUPPLIER,5451-LCT/LAC (Not Fostered),"1,960.00"
01-APR-2022,Environment & Transport (P),Guest Motors Ltd T/A Guest Truck & Van,TRADE SUPPLIER,3102-Vehicle & Plant Repairs & Maintenance,622.37
01-APR-2022,Environment & Transport (P),REDACTED PERSONAL DATA,TRADE INDIVIDUAL,3303-Taxi Hire,"1,597.50"
01-APR-2022,Environment & Transport (P),REDACTED PERSONAL DATA,NON TRADE,3112-Home to Sch Trans Contract Buses Prim,"1,245.00"
01-APR-2022,Environment & Transport (P),REDACTED PERSONAL DATA,NON TRADE,3303-Taxi Hire,"1,635.00"
01-APR-2022,Environment & Transport (P),H A Construction Services Ltd,TRADE SUPPLIER,9722-Reserved Creditors - Non Public Sector,"18,473.40"
01-APR-2022,Environment & Transport (P),REDACTED PERSONAL DATA,TRADE INDIVIDUAL,3303-Taxi Hire,"1,867.50"
01-APR-2022,Environment & Transport (P),REDACTED PERSONAL DATA,TRADE INDIVIDUAL,3303-Taxi Hire,"1,717.50"
01-APR-2022,Environment & Transport (P),REDACTED PERSONAL DATA,TRADE INDIVIDUAL,3303-Taxi Hire,"2,530.00"
01-APR-2022,C&FS (P),REDACTED PERSONAL DATA,TRADE INDIVIDUAL,4507-Consultants & Specialists,660.00
01-APR-2022,C&FS (P),REDACTED PERSONAL DATA,TRADE INDIVIDUAL,4507-Consultants & Specialists,"1,980.00"
01-APR-2022,Environment & Transport (P),Highfields Associates Ltd,TRADE SUPPLIER,3112-Home to Sch Trans Contract Buses Prim,660.00
01-APR-2022,Environment & Transport (P),Highfields Associates Ltd,TRADE SUPPLIER,3113-Home to Sch Trans Contract Buses Sec,616.00
01-APR-2022,Environment & Transport (P),Highfields Associates Ltd,TRADE SUPPLIER,3303-Taxi Hire,630.00
01-APR-2022,Environment & Transport (P),Highfields Associates Ltd,TRADE SUPPLIER,3303-Taxi Hire,630.00
01-APR-2022,Environment & Transport (P),Highfields Associates Ltd,TRADE SUPPLIER,3201-Pooled Transport Recharge Inhouse,779.00
01-APR-2022,Environment & Transport (P),Highfields Associates Ltd,TRADE SUPPLIER,3201-Pooled Transport Recharge Inhouse,840.00
01-APR-2022,Environment & Transport (P),Highfields Associates Ltd,TRADE SUPPLIER,3201-Pooled Transport Recharge Inhouse,779.00
01-APR-2022,Environment & Transport (P),Highfields Associates Ltd,TRADE SUPPLIER,3201-Pooled Transport Recharge Inhouse,636.00
01-APR-2022,Environment & Transport (P),Highfields Associates Ltd,TRADE SUPPLIER,3201-Pooled Transport Recharge Inhouse,"1,120.00"
01-APR-2022,Environment & Transport (P),Highfields Associates Ltd,TRADE SUPPLIER,3303-Taxi Hire,"1,635.00"
01-APR-2022,Environment & Transport (P),HMB (LEIC) Ltd,TRADE SUPPLIER,3303-Taxi Hire,"1,924.50"
01-APR-2022,Environment & Transport (P),HMB (LEIC) Ltd,TRADE SUPPLIER,3303-Taxi Hire,"1,044.00"
01-APR-2022,Environment & Transport (P),HMB (LEIC) Ltd,TRADE SUPPLIER,3303-Taxi Hire,"2,242.50"
01-APR-2022,Environment & Transport (P),HMB (LEIC) Ltd,TRADE SUPPLIER,3303-Taxi Hire,"1,550.00"
01-APR-2022,Environment & Transport (P),HMB (LEIC) Ltd,TRADE SUPPLIER,3303-Taxi Hire,"1,999.50"
01-APR-2022,Environment & Transport (P),HMB (LEIC) Ltd,TRADE SUPPLIER,3113-Home to Sch Trans Contract Buses Sec,892.50
01-APR-2022,Environment & Transport (P),HMB (LEIC) Ltd,TRADE SUPPLIER,3303-Taxi Hire,"1,117.50"
01-APR-2022,Environment & Transport (P),HMB (LEIC) Ltd,TRADE SUPPLIER,3303-Taxi Hire,"1,665.00"
01-APR-2022,Environment & Transport (P),HMB (LEIC) Ltd,TRADE SUPPLIER,3303-Taxi Hire,760.50
01-APR-2022,Environment & Transport (P),HMB (LEIC) Ltd,TRADE SUPPLIER,3303-Taxi Hire,838.50
01-APR-2022,Environment & Transport (P),HMB (LEIC) Ltd,TRADE SUPPLIER,3303-Taxi Hire,"1,942.50"
01-APR-2022,Environment & Transport (P),HMB (LEIC) Ltd,TRADE SUPPLIER,3303-Taxi Hire,872.00
01-APR-2022,Environment & Transport (P),HMB (LEIC) Ltd,TRADE SUPPLIER,3303-Taxi Hire,"1,970.85"
01-APR-2022,C&FS (P),Humanware Europe Ltd,TRADE SUPPLIER,4601-IT Equipment Hardware,"3,318.00"
01-APR-2022,Environment & Transport (P),Illumin8 Training Ltd,TRADE SUPPLIER,1703-Training Expenses,750.00
01-APR-2022,Environment & Transport (P),REDACTED PERSONAL DATA,TRADE INDIVIDUAL,3303-Taxi Hire,"2,070.00"
01-APR-2022,C&FS (P),Inspire Education Trust,TRADE SUPPLIER,5212-OLEA Recoupment,"2,937.66"
01-APR-2022,Environment & Transport (P),REDACTED PERSONAL DATA,NON TRADE,3112-Home to Sch Trans Contract Buses Prim,"1,170.00"
01-APR-2022,C&FS (P),Ivanhoe College,GENERAL,5325-External SEN Providers Top Up Fee,"2,946.85"
01-APR-2022,C&FS (P),Ivanhoe College,GENERAL,6101-Support Services,640.00
01-APR-2022,C&FS (P),REDACTED PERSONAL DATA,TRADE INDIVIDUAL,5323-External SEN Providers Independent Sch,"1,590.72"
01-APR-2022,C&FS (P),REDACTED PERSONAL DATA,TRADE INDIVIDUAL,5323-External SEN Providers Independent Sch,"2,013.40"
01-APR-2022,Environment & Transport (P),REDACTED PERSONAL DATA,TRADE INDIVIDUAL,3303-Taxi Hire,"1,391.00"
01-APR-2022,Environment & Transport (P),REDACTED PERSONAL DATA,TRADE INDIVIDUAL,3303-Taxi Hire,"2,711.50"
01-APR-2022,Environment & Transport (P),REDACTED PERSONAL DATA,NON TRADE,3303-Taxi Hire,"1,620.00"
01-APR-2022,Environment & Transport (P),REDACTED PERSONAL DATA,NON TRADE,3303-Taxi Hire,"2,021.40"
01-APR-2022,Environment & Transport (P),REDACTED PERSONAL DATA,NON TRADE,3201-Pooled Transport Recharge Inhouse,"1,760.00"
01-APR-2022,Environment & Transport (P),REDACTED PERSONAL DATA,NON TRADE,3303-Taxi Hire,"2,231.40"
01-APR-2022,Environment & Transport (P),REDACTED PERSONAL DATA,TRADE SUPPLIER,1703-Training Expenses,"1,513.50"
01-APR-2022,Chief Executives (P),REDACTED PERSONAL DATA,NON TRADE,4529-Post Mortem Exams,968.00
01-APR-2022,Environment & Transport (P),Kinchbus Ltd,TRADE SUPPLIER,3113-Home to Sch Trans Contract Buses Sec,865.15
01-APR-2022,Corporate Resources (CR) (P),Klick Business Solutions Ltd,TRADE SUPPLIER,4901-Other Expenditure,"3,595.00"
01-APR-2022,Capital - In Year Spend (P),Lakeside Flood Solutions Ltd,TRADE SUPPLIER,941G-L&B - Design Fees - External,"17,000.00"
01-APR-2022,Environment & Transport (P),LCC Iveshead School,OTHER LOCAL AUTHORITIES,3113-Home to Sch Trans Contract Buses Sec,"13,156.00"
01-APR-2022,Public Health (P),Leicester City Council,OTHER LOCAL AUTHORITIES,5221-Public Bodies Health,"61,487.50"
01-APR-2022,Environment & Transport (P),Leicester City Council,OTHER LOCAL AUTHORITIES,5411-Private Contractors - General,550.00
01-APR-2022,Chief Executives (P),Leicester City Council,OTHER LOCAL AUTHORITIES,5213-Payments to Leic City,"75,587.00"
01-APR-2022,Environment & Transport (P),Leicester Health & Safety Training Ltd,TRADE SUPPLIER,1703-Training Expenses,"1,100.00"
01-APR-2022,Environment & Transport (P),Leicester Health & Safety Training Ltd,TRADE SUPPLIER,1703-Training Expenses,684.00
01-APR-2022,C&FS (P),Leicestershire Partnership NHS Trust,TRADE SUPPLIER,4401-Printing,"8,312.70"
01-APR-2022,C&FS (P),LIFE MAT SERVICES LTD T/A TEDDIES NURSERY&&EYRS2674410,GENERAL,4908-Grants,"10,198.16"
01-APR-2022,C&FS (P),LIFE MAT SERVICES LTD T/A TEDDIES NURSERY&&EYRS2674410,GENERAL,4908-Grants,618.05
01-APR-2022,Corporate Resources (CR) (P),LJW Consultants Ltd,TRADE SUPPLIER,4504-Provisions Purchases,"1,077.62"
01-APR-2022,Environment & Transport (P),REDACTED PERSONAL DATA,TRADE INDIVIDUAL,3303-Taxi Hire,"2,235.00"
01-APR-2022,Corporate Resources (CR) (P),Maplewell School,NON TRADE,4908-Grants,"2,150.00"
01-APR-2022,C&FS (P),REDACTED PERSONAL DATA,GENERAL,5624-Transfer Payments Sector 17 Other,600.00
01-APR-2022,Environment & Transport (P),Master Cabs Leicester Ltd,TRADE SUPPLIER,3303-Taxi Hire,"1,185.00"
01-APR-2022,Environment & Transport (P),Master Cabs Leicester Ltd,TRADE SUPPLIER,3113-Home to Sch Trans Contract Buses Sec,826.00
01-APR-2022,Environment & Transport (P),Master Cabs Leicester Ltd,TRADE SUPPLIER,3303-Taxi Hire,694.00
01-APR-2022,Environment & Transport (P),Master Cabs Leicester Ltd,TRADE SUPPLIER,3303-Taxi Hire,"1,605.00"
01-APR-2022,Environment & Transport (P),Master Cabs Leicester Ltd,TRADE SUPPLIER,3201-Pooled Transport Recharge Inhouse,"1,548.00"
01-APR-2022,Environment & Transport (P),Master Cabs Leicester Ltd,TRADE SUPPLIER,3201-Pooled Transport Recharge Inhouse,"2,169.00"
01-APR-2022,Environment & Transport (P),Master Cabs Leicester Ltd,TRADE SUPPLIER,3201-Pooled Transport Recharge Inhouse,"1,528.00"
01-APR-2022,Environment & Transport (P),Master Cabs Leicester Ltd,TRADE SUPPLIER,3303-Taxi Hire,865.00
01-APR-2022,Environment & Transport (P),Master Cabs Leicester Ltd,TRADE SUPPLIER,3303-Taxi Hire,"1,012.50"
01-APR-2022,Environment & Transport (P),Master Cabs Leicester Ltd,TRADE SUPPLIER,3303-Taxi Hire,"1,095.00"
01-APR-2022,Environment & Transport (P),Master Cabs Leicester Ltd,TRADE SUPPLIER,3303-Taxi Hire,"2,055.00"
01-APR-2022,Environment & Transport (P),Master Cabs Leicester Ltd,TRADE SUPPLIER,3303-Taxi Hire,"2,055.00"
01-APR-2022,Environment & Transport (P),Master Cabs Leicester Ltd,TRADE SUPPLIER,3303-Taxi Hire,"1,605.00"
01-APR-2022,Environment & Transport (P),Master Cabs Leicester Ltd,TRADE SUPPLIER,3303-Taxi Hire,"1,110.00"
01-APR-2022,Environment & Transport (P),Master Cabs Leicester Ltd,TRADE SUPPLIER,3303-Taxi Hire,"1,125.00"
01-APR-2022,Environment & Transport (P),Master Cabs Leicester Ltd,TRADE SUPPLIER,3303-Taxi Hire,"1,695.00"
01-APR-2022,Environment & Transport (P),Master Cabs Leicester Ltd,TRADE SUPPLIER,3303-Taxi Hire,"1,652.00"
01-APR-2022,Environment & Transport (P),Master Cabs Leicester Ltd,TRADE SUPPLIER,3303-Taxi Hire,"2,130.00"
01-APR-2022,Environment & Transport (P),Master Cabs Leicester Ltd,TRADE SUPPLIER,3303-Taxi Hire,"1,320.00"
01-APR-2022,Environment & Transport (P),Master Cabs Leicester Ltd,TRADE SUPPLIER,3303-Taxi Hire,945.00
01-APR-2022,Environment & Transport (P),Master Cabs Leicester Ltd,TRADE SUPPLIER,3113-Home to Sch Trans Contract Buses Sec,660.00
01-APR-2022,Environment & Transport (P),Master Cabs Leicester Ltd,TRADE SUPPLIER,3112-Home to Sch Trans Contract Buses Prim,585.00
01-APR-2022,Environment & Transport (P),Master Cabs Leicester Ltd,TRADE SUPPLIER,3112-Home to Sch Trans Contract Buses Prim,795.00
01-APR-2022,Environment & Transport (P),Master Cabs Leicester Ltd,TRADE SUPPLIER,3303-Taxi Hire,"1,980.00"
01-APR-2022,Environment & Transport (P),Matchtech Group (UK) Ltd,TRADE SUPPLIER,1201-Agency Costs,"11,502.00"
01-APR-2022,Environment & Transport (P),Matchtech Group (UK) Ltd,TRADE SUPPLIER,1201-Agency Costs,"5,355.17"
01-APR-2022,Environment & Transport (P),Matchtech Group (UK) Ltd,TRADE SUPPLIER,1201-Agency Costs,"5,291.00"
01-APR-2022,Environment & Transport (P),Matchtech Group (UK) Ltd,TRADE SUPPLIER,1201-Agency Costs,"10,913.50"
01-APR-2022,Adults & Communities (P),MCS Care Services Ltd,NON TRADE,4507-Consultants & Specialists,"5,000.00"
01-APR-2022,Corporate Resources (CR) (P),MDS Heating & Plumbing Ltd,SUBCONTRACTOR,2108-Legionella,"1,275.00"
01-APR-2022,Adults & Communities (P),Medyserve Ltd,TRADE INDIVIDUAL,4508-Medical Fees & Treatment,570.30
01-APR-2022,Adults & Communities (P),Microform Imaging Ltd,TRADE SUPPLIER,4111-Books & Audio Visual,"1,626.11"
01-APR-2022,Environment & Transport (P),Midland Quarry Products Ltd,TRADE SUPPLIER,4109-Materials,622.30
01-APR-2022,Environment & Transport (P),Midland Quarry Products Ltd,TRADE SUPPLIER,4109-Materials,745.31
01-APR-2022,Public Health (P),Midlands Partnership NHS Foundation Trust,TRADE SUPPLIER,5221-Public Bodies Health,"19,143.25"
01-APR-2022,Environment & Transport (P),REDACTED PERSONAL DATA,GENERAL,3113-Home to Sch Trans Contract Buses Sec,"1,800.00"
01-APR-2022,Corporate Resources (CR) (P),REDACTED PERSONAL DATA,TRADE SUPPLIER,4507-Consultants & Specialists,"5,939.60"
01-APR-2022,Environment & Transport (P),Murphys Taxis Ltd,FACTOR,3124-Other Transport Costs,777.20
01-APR-2022,Environment & Transport (P),Murphys Taxis Ltd,FACTOR,3124-Other Transport Costs,680.40
01-APR-2022,Environment & Transport (P),Murphys Taxis Ltd,FACTOR,3124-Other Transport Costs,506.00
01-APR-2022,Environment & Transport (P),Murphys Taxis Ltd,FACTOR,3124-Other Transport Costs,721.60
01-APR-2022,Environment & Transport (P),My Cars,TRADE SUPPLIER,3201-Pooled Transport Recharge Inhouse,960.00
01-APR-2022,Environment & Transport (P),My Cars,TRADE SUPPLIER,3201-Pooled Transport Recharge Inhouse,609.00
01-APR-2022,Environment & Transport (P),My Cars,TRADE SUPPLIER,3303-Taxi Hire,570.00
01-APR-2022,Environment & Transport (P),My Cars,TRADE SUPPLIER,3303-Taxi Hire,"1,860.00"
01-APR-2022,Environment & Transport (P),My Cars,TRADE SUPPLIER,3303-Taxi Hire,"1,391.00"
01-APR-2022,Environment & Transport (P),My Cars,TRADE SUPPLIER,3303-Taxi Hire,"1,170.00"
01-APR-2022,Environment & Transport (P),My Cars,TRADE SUPPLIER,3303-Taxi Hire,"2,520.00"
01-APR-2022,Environment & Transport (P),National Forest Company,TRADE SUPPLIER,5441-Public Bodies,"9,750.00"
01-APR-2022,C&FS (P),Network Ventures Ltd T/A Pertemps Professional Recruitment Ltd,TRADE SUPPLIER,1201-Agency Costs,"1,610.10"
01-APR-2022,C&FS (P),Network Ventures Ltd T/A Pertemps Professional Recruitment Ltd,TRADE SUPPLIER,1201-Agency Costs,"1,530.90"
01-APR-2022,C&FS (P),REDACTED PERSONAL DATA,TRADE INDIVIDUAL,4901-Other Expenditure,"1,125.00"
01-APR-2022,Environment & Transport (P),NMI Taxi Ltd,TRADE SUPPLIER,3303-Taxi Hire,990.00
01-APR-2022,Environment & Transport (P),NMI Taxi Ltd,TRADE SUPPLIER,3303-Taxi Hire,"1,460.00"
01-APR-2022,Environment & Transport (P),NMI Taxi Ltd,TRADE SUPPLIER,3201-Pooled Transport Recharge Inhouse,"1,120.90"
01-APR-2022,Environment & Transport (P),NMI Taxi Ltd,TRADE SUPPLIER,3201-Pooled Transport Recharge Inhouse,800.00
01-APR-2022,Environment & Transport (P),NMI Taxi Ltd,TRADE SUPPLIER,3201-Pooled Transport Recharge Inhouse,"2,190.00"
01-APR-2022,Environment & Transport (P),NMI Taxi Ltd,TRADE SUPPLIER,3201-Pooled Transport Recharge Inhouse,"2,370.00"
01-APR-2022,Environment & Transport (P),NMI Taxi Ltd,TRADE SUPPLIER,3303-Taxi Hire,"2,160.00"
01-APR-2022,Environment & Transport (P),NMI Taxi Ltd,TRADE SUPPLIER,3303-Taxi Hire,"1,800.00"
01-APR-2022,Environment & Transport (P),NMI Taxi Ltd,TRADE SUPPLIER,3303-Taxi Hire,"1,674.00"
01-APR-2022,Environment & Transport (P),NMI Taxi Ltd,TRADE SUPPLIER,3303-Taxi Hire,"1,460.00"
01-APR-2022,Environment & Transport (P),NMI Taxi Ltd,TRADE SUPPLIER,3303-Taxi Hire,"1,995.20"
01-APR-2022,Environment & Transport (P),NMI Taxi Ltd,TRADE SUPPLIER,3303-Taxi Hire,"1,958.60"
01-APR-2022,Environment & Transport (P),NMI Taxi Ltd,TRADE SUPPLIER,3303-Taxi Hire,"1,481.70"
01-APR-2022,Environment & Transport (P),NMI Taxi Ltd,TRADE SUPPLIER,3303-Taxi Hire,"2,190.00"
01-APR-2022,Environment & Transport (P),NMI Taxi Ltd,TRADE SUPPLIER,3303-Taxi Hire,"2,070.00"
01-APR-2022,Environment & Transport (P),NMI Taxi Ltd,TRADE SUPPLIER,3303-Taxi Hire,"2,465.00"
01-APR-2022,Environment & Transport (P),NMI Taxi Ltd,TRADE SUPPLIER,3303-Taxi Hire,"1,666.35"
01-APR-2022,Environment & Transport (P),NMI Taxi Ltd,TRADE SUPPLIER,3303-Taxi Hire,"1,479.00"
01-APR-2022,Environment & Transport (P),NMI Taxi Ltd,TRADE SUPPLIER,3303-Taxi Hire,"1,485.00"
01-APR-2022,Environment & Transport (P),NMI Taxi Ltd,TRADE SUPPLIER,3303-Taxi Hire,"2,415.00"
01-APR-2022,Environment & Transport (P),NMI Taxi Ltd,TRADE SUPPLIER,3303-Taxi Hire,"1,584.00"
01-APR-2022,Environment & Transport (P),NMI Taxi Ltd,TRADE SUPPLIER,3303-Taxi Hire,"1,477.50"
01-APR-2022,Environment & Transport (P),NMI Taxi Ltd,TRADE SUPPLIER,3303-Taxi Hire,"1,803.00"
01-APR-2022,Environment & Transport (P),NMI Taxi Ltd,TRADE SUPPLIER,3303-Taxi Hire,"1,380.00"
01-APR-2022,Environment & Transport (P),NMI Taxi Ltd,TRADE SUPPLIER,3303-Taxi Hire,"1,618.65"
01-APR-2022,Environment & Transport (P),NMI Taxi Ltd,TRADE SUPPLIER,3303-Taxi Hire,"1,126.80"
01-APR-2022,Environment & Transport (P),NMI Taxi Ltd,TRADE SUPPLIER,3201-Pooled Transport Recharge Inhouse,"2,053.50"
01-APR-2022,Environment & Transport (P),NMI Taxi Ltd,TRADE SUPPLIER,3303-Taxi Hire,"1,860.80"
01-APR-2022,Environment & Transport (P),NMI Taxi Ltd,TRADE SUPPLIER,3303-Taxi Hire,"1,061.65"
01-APR-2022,Environment & Transport (P),NMI Taxi Ltd,TRADE SUPPLIER,3303-Taxi Hire,"1,056.00"
01-APR-2022,Environment & Transport (P),NMI Taxi Ltd,TRADE SUPPLIER,3303-Taxi Hire,"1,027.89"
01-APR-2022,Environment & Transport (P),NMI Taxi Ltd,TRADE SUPPLIER,3303-Taxi Hire,"2,002.00"
01-APR-2022,Environment & Transport (P),NMI Taxi Ltd,TRADE SUPPLIER,3303-Taxi Hire,"1,341.00"
01-APR-2022,Environment & Transport (P),NMI Taxi Ltd,TRADE SUPPLIER,3303-Taxi Hire,"1,716.00"
01-APR-2022,Environment & Transport (P),NMI Taxi Ltd,TRADE SUPPLIER,3303-Taxi Hire,864.00
01-APR-2022,Environment & Transport (P),NMI Taxi Ltd,TRADE SUPPLIER,3303-Taxi Hire,"4,380.00"
01-APR-2022,Environment & Transport (P),NMI Taxi Ltd,TRADE SUPPLIER,3201-Pooled Transport Recharge Inhouse,"1,865.00"
01-APR-2022,Environment & Transport (P),NMI Taxi Ltd,TRADE SUPPLIER,3201-Pooled Transport Recharge Inhouse,"1,574.04"
01-APR-2022,Environment & Transport (P),NMI Taxi Ltd,TRADE SUPPLIER,3303-Taxi Hire,"3,915.00"
01-APR-2022,Environment & Transport (P),NMI Taxi Ltd,TRADE SUPPLIER,3303-Taxi Hire,720.00
01-APR-2022,Public Health (P),North West Leicestershire District Council,OTHER LOCAL AUTHORITIES,4908-Grants,"10,000.00"
01-APR-2022,Corporate Resources (CR) (P),NTT Data Business Solutions Ltd,TRADE SUPPLIER,4603-IT Software Licenses/Subscription,"1,130.00"
01-APR-2022,Corporate Resources (CR) (P),Oaklands School,OTHER LOCAL AUTHORITIES,4908-Grants,"2,550.00"
01-APR-2022,Corporate Resources (CR) (P),On A Roll Sandwich Company Ltd,TRADE SUPPLIER,4504-Provisions Purchases,728.38
01-APR-2022,Environment & Transport (P),Pearce Recruitment Services Ltd T/A Accept Recruitment,TRADE SUPPLIER,5443-Agency & Contracted Services,"1,431.36"
01-APR-2022,Corporate Resources (CR) (P),Phoenix Software Ltd,TRADE SUPPLIER,4603-IT Software Licenses/Subscription,"2,200.00"
01-APR-2022,Adults & Communities (P),Planet Enterprises,TRADE SUPPLIER,4603-IT Software Licenses/Subscription,"2,299.00"
01-APR-2022,C&FS (P),Platform Up Ltd,TRADE SUPPLIER,5451-LCT/LAC (Not Fostered),"1,457.09"
01-APR-2022,C&FS (P),Platform Up Ltd,TRADE SUPPLIER,5626-Transfer Payments Section 23 Grants,"1,457.09"
01-APR-2022,C&FS (P),Platform Up Ltd,TRADE SUPPLIER,5626-Transfer Payments Section 23 Grants,"1,457.09"
01-APR-2022,C&FS (P),Platform Up Ltd,TRADE SUPPLIER,5451-LCT/LAC (Not Fostered),"1,457.09"
01-APR-2022,C&FS (P),Platform Up Ltd,TRADE SUPPLIER,5451-LCT/LAC (Not Fostered),"1,580.00"
01-APR-2022,C&FS (P),Platform Up Ltd,TRADE SUPPLIER,5451-LCT/LAC (Not Fostered),"1,580.00"
01-APR-2022,Environment & Transport (P),Praveen Rattan,NON TRADE,3303-Taxi Hire,"2,143.50"
01-APR-2022,Environment & Transport (P),Praveen Rattan,NON TRADE,3113-Home to Sch Trans Contract Buses Sec,"1,393.50"
01-APR-2022,Environment & Transport (P),Praveen Rattan,NON TRADE,3303-Taxi Hire,586.80
01-APR-2022,Environment & Transport (P),Praveen Rattan,NON TRADE,3303-Taxi Hire,"1,933.50"
01-APR-2022,Environment & Transport (P),REDACTED PERSONAL DATA,NON TRADE,4507-Consultants & Specialists,"3,008.00"
01-APR-2022,Environment & Transport (P),REDACTED PERSONAL DATA,TRADE INDIVIDUAL,3303-Taxi Hire,"1,680.00"
01-APR-2022,Environment & Transport (P),REDACTED PERSONAL DATA,TRADE INDIVIDUAL,3112-Home to Sch Trans Contract Buses Prim,"1,425.00"
01-APR-2022,Adults & Communities (P),Reading Agency Ltd,TRADE SUPPLIER,4405-Stationery,500.00
01-APR-2022,C&FS (P),Red Sector Recruitment Ltd,TRADE SUPPLIER,1201-Agency Costs,"1,712.90"
01-APR-2022,C&FS (P),Red Sector Recruitment Ltd,TRADE SUPPLIER,1201-Agency Costs,"1,694.50"
01-APR-2022,Balance Sheet Cost Centres (P),Reed Specialist Recruitment Ltd,TRADE SUPPLIER,9728-Control Accounts (Current Liability),"194,357.01"
01-APR-2022,C&FS (P),River Education Services Ltd,TRADE SUPPLIER,4507-Consultants & Specialists,"3,500.00"
01-APR-2022,C&FS (P),REDACTED PERSONAL DATA,GENERAL,5626-Transfer Payments Section 23 Grants,"1,207.50"
01-APR-2022,C&FS (P),REDACTED PERSONAL DATA,NON TRADE,4507-Consultants & Specialists,600.00
01-APR-2022,Environment & Transport (P),Sign Shop (Loughborough) Ltd,TRADE SUPPLIER,2101-R&M Buildings,634.00
01-APR-2022,C&FS (P),Smiles Nurseries Ltd,TRADE SUPPLIER,5443-Agency & Contracted Services,570.00
01-APR-2022,C&FS (P),Soaring High Ltd,TRADE SUPPLIER,5445-Adoption Support,"1,759.87"
01-APR-2022,Environment & Transport (P),Solus Homes Ltd,TRADE SUPPLIER,9722-Reserved Creditors - Non Public Sector,"31,763.17"
01-APR-2022,C&FS (P),Speakeasy Therapy Ltd,TRADE SUPPLIER,4901-Other Expenditure,"1,355.00"
01-APR-2022,C&FS (P),Speakeasy Therapy Ltd,TRADE SUPPLIER,4901-Other Expenditure,"1,235.00"
01-APR-2022,C&FS (P),Speakeasy Therapy Ltd,TRADE SUPPLIER,4901-Other Expenditure,862.50
01-APR-2022,C&FS (P),Speakeasy Therapy Ltd,TRADE SUPPLIER,4901-Other Expenditure,"2,755.00"
01-APR-2022,C&FS (P),Speakeasy Therapy Ltd,TRADE SUPPLIER,4901-Other Expenditure,800.00
01-APR-2022,C&FS (P),Speakeasy Therapy Ltd,TRADE SUPPLIER,4901-Other Expenditure,"1,370.00"
01-APR-2022,C&FS (P),Speakeasy Therapy Ltd,TRADE SUPPLIER,4901-Other Expenditure,800.00
01-APR-2022,C&FS (P),Speakeasy Therapy Ltd,TRADE SUPPLIER,4901-Other Expenditure,"2,802.50"
01-APR-2022,C&FS (P),Speakeasy Therapy Ltd,TRADE SUPPLIER,4901-Other Expenditure,"1,877.50"
01-APR-2022,C&FS (P),Speakeasy Therapy Ltd,TRADE SUPPLIER,4901-Other Expenditure,"1,655.00"
01-APR-2022,Environment & Transport (P),Speedline Mini Buses & Taxis,TRADE SUPPLIER,3303-Taxi Hire,"1,320.00"
01-APR-2022,Environment & Transport (P),Speedline Mini Buses & Taxis,TRADE SUPPLIER,3303-Taxi Hire,"1,260.00"
01-APR-2022,Adults & Communities (P),REDACTED PERSONAL DATA,TRADE INDIVIDUAL,4508-Medical Fees & Treatment,"2,545.40"
01-APR-2022,Corporate Resources (CR) (P),Stantec UK Limited,TRADE SUPPLIER,4507-Consultants & Specialists,"1,845.00"
01-APR-2022,Environment & Transport (P),Suez Recycling & Recovery UK Ltd,TRADE SUPPLIER,5411-Private Contractors - General,"2,734.90"
01-APR-2022,Environment & Transport (P),Sunbelt Rentals Ltd,TRADE SUPPLIER,3301-Vehicle & Plant Hire,816.50
01-APR-2022,Environment & Transport (P),Syed Kabir Uddin,NON TRADE,3303-Taxi Hire,"1,635.00"
01-APR-2022,Environment & Transport (P),Tagmaster UK Ltd,TRADE SUPPLIER,4102-General Equipment - Purchase & Repairs,700.00
01-APR-2022,C&FS (P),Targeted Provision Ltd,TRADE SUPPLIER,1201-Agency Costs,650.00
01-APR-2022,Capital - In Year Spend (P),Thomas Cassie & Sons Leicester Ltd,TRADE SUPPLIER,941D-L&B - Building Costs,605.00
01-APR-2022,Corporate Resources (CR) (P),Thomas Cassie & Sons Leicester Ltd,TRADE SUPPLIER,2106-Reactive Maint Buildings,644.50
01-APR-2022,Environment & Transport (P),Topps Express Ltd,TRADE SUPPLIER,3303-Taxi Hire,"1,088.00"
01-APR-2022,Environment & Transport (P),Topps Express Ltd,TRADE SUPPLIER,3203-Pooled Transport Recharge Contractors,"1,680.00"
01-APR-2022,Balance Sheet Cost Centres (P),Topps Express Ltd,TRADE SUPPLIER,9722-Reserved Creditors - Non Public Sector,"1,440.00"
01-APR-2022,Environment & Transport (P),Topps Express Ltd,TRADE SUPPLIER,3113-Home to Sch Trans Contract Buses Sec,"1,200.00"
01-APR-2022,Environment & Transport (P),Topps Express Ltd,TRADE SUPPLIER,3201-Pooled Transport Recharge Inhouse,"1,670.00"
01-APR-2022,Environment & Transport (P),Topps Express Ltd,TRADE SUPPLIER,3112-Home to Sch Trans Contract Buses Prim,"1,080.00"
01-APR-2022,Environment & Transport (P),Topps Express Ltd,TRADE SUPPLIER,3113-Home to Sch Trans Contract Buses Sec,"1,155.00"
01-APR-2022,Environment & Transport (P),Topps Express Ltd,TRADE SUPPLIER,3303-Taxi Hire,780.00
01-APR-2022,Environment & Transport (P),Topps Express Ltd,TRADE SUPPLIER,3303-Taxi Hire,"3,600.00"
01-APR-2022,Environment & Transport (P),Topps Express Ltd,TRADE SUPPLIER,3113-Home to Sch Trans Contract Buses Sec,880.05
01-APR-2022,Environment & Transport (P),Transition Loughborough,NON TRADE,4908-Grants,"2,400.00"
01-APR-2022,Adults & Communities (P),Trustmarque Solutions Ltd,TRADE SUPPLIER,4603-IT Software Licenses/Subscription,"5,381.24"
01-APR-2022,Capital - In Year Spend (P),Turley Associates Ltd,TRADE SUPPLIER,941G-L&B - Design Fees - External,571.47
01-APR-2022,Capital - In Year Spend (P),Turley Associates Ltd,TRADE SUPPLIER,941G-L&B - Design Fees - External,862.10
01-APR-2022,Environment & Transport (P),UKROEd Ltd,TRADE SUPPLIER,5411-Private Contractors - General,"6,076.00"
01-APR-2022,Environment & Transport (P),UKROEd Ltd,TRADE SUPPLIER,5411-Private Contractors - General,"88,445.00"
01-APR-2022,Environment & Transport (P),UKROEd Ltd,TRADE SUPPLIER,5411-Private Contractors - General,"11,858.00"
01-APR-2022,Chief Executives (P),University of Leicester,NON TRADE,4902-Hospitality,565.00
01-APR-2022,Adults & Communities (P),REDACTED PERSONAL DATA,TRADE INDIVIDUAL,4508-Medical Fees & Treatment,766.91
01-APR-2022,Corporate Resources (CR) (P),Veg Factor,TRADE SUPPLIER,4504-Provisions Purchases,523.92
01-APR-2022,Corporate Resources (CR) (P),Veg Factor,TRADE SUPPLIER,4504-Provisions Purchases,568.73
01-APR-2022,Corporate Resources (CR) (P),Veg Factor,TRADE SUPPLIER,4504-Provisions Purchases,522.10
01-APR-2022,Corporate Resources (CR) (P),Veg Factor,TRADE SUPPLIER,4504-Provisions Purchases,646.07
01-APR-2022,Environment & Transport (P),Volvo Group UK Limited,TRADE SUPPLIER,3102-Vehicle & Plant Repairs & Maintenance,858.02
01-APR-2022,Environment & Transport (P),Volvo Group UK Limited,TRADE SUPPLIER,3102-Vehicle & Plant Repairs & Maintenance,"1,549.58"
01-APR-2022,Environment & Transport (P),WJ South Ltd,SUBCONTRACTOR,5411-Private Contractors - General,"19,279.70"
01-APR-2022,Environment & Transport (P),WJ South Ltd,SUBCONTRACTOR,5411-Private Contractors - General,"4,620.66"
01-APR-2022,Environment & Transport (P),WJ South Ltd,SUBCONTRACTOR,5411-Private Contractors - General,"3,520.78"
01-APR-2022,Environment & Transport (P),WJ South Ltd,SUBCONTRACTOR,5411-Private Contractors - General,"4,066.83"
01-APR-2022,Environment & Transport (P),WJ South Ltd,SUBCONTRACTOR,5411-Private Contractors - General,"4,091.67"
01-APR-2022,Environment & Transport (P),WJ South Ltd,SUBCONTRACTOR,5411-Private Contractors - General,"1,201.20"
01-APR-2022,Corporate Resources (CR) (P),Wright Advertising Ltd,TRADE SUPPLIER,"4503-Advertising, Publicity & Marketing","1,000.00"
01-APR-2022,Capital - In Year Spend (P),XMA Ltd,TRADE SUPPLIER,943C-VPE - Equipment (Furniture/ IT) Exp,"82,677.32"
01-APR-2022,Capital - In Year Spend (P),XMA Ltd,TRADE SUPPLIER,943C-VPE - Equipment (Furniture/ IT) Exp,"1,925.00"
04-APR-2022,Adults & Communities (P),ABBEY HEALTHCARE (AARON COURT) LTD&&SSARO2996,S/S HOMES,5502-Residential,"34,035.07"
04-APR-2022,Adults & Communities (P),ABBEY HEALTHCARE (AARON COURT) LTD&&SSARO2996,S/S HOMES,5502-Residential,"53,154.93"
04-APR-2022,Adults & Communities (P),ABBEYFIELDS EXTRA CARE&&SSAROE52835,S/S HOMES,5502-Residential,"4,183.35"
04-APR-2022,Adults & Communities (P),ABBEYFIELDS EXTRA CARE&&SSAROE52835,S/S HOMES,5502-Residential,"6,465.17"
04-APR-2022,Adults & Communities (P),ACACIA CARE (MH) LTD&&SSARO6777,S/S HOMES,5502-Residential,"1,145.57"
04-APR-2022,Adults & Communities (P),ACACIA CARE (MH) LTD&&SSARO6777,S/S HOMES,5502-Residential,"1,770.43"
04-APR-2022,Adults & Communities (P),ACACIA CARE (NOTTINGHAM) LTD T/A KINGSFIELD COURT&&SSARO8540,S/S HOMES,5502-Residential,"9,631.32"
04-APR-2022,Adults & Communities (P),ACACIA CARE (NOTTINGHAM) LTD T/A KINGSFIELD COURT&&SSARO8540,S/S HOMES,5502-Residential,"14,884.68"
04-APR-2022,Adults & Communities (P),ACORN LODGE&&SSARO3214,S/S HOMES,5502-Residential,"1,335.71"
04-APR-2022,Adults & Communities (P),ACORN LODGE&&SSARO3214,S/S HOMES,5502-Residential,"2,064.29"
04-APR-2022,Adults & Communities (P),ADEN HOUSE LTD&&SSARO2794,S/S HOMES,5502-Residential,934.21
04-APR-2022,Adults & Communities (P),ADEN HOUSE LTD&&SSARO2794,S/S HOMES,5502-Residential,"1,443.79"
04-APR-2022,Adults & Communities (P),AHAVAH HEALTHCARE LTD&&SSARO1638,S/S HOMES,5502-Residential,"6,039.55"
04-APR-2022,Adults & Communities (P),AHAVAH HEALTHCARE LTD&&SSARO1638,S/S HOMES,5502-Residential,"1,201.34"
04-APR-2022,Adults & Communities (P),AHAVAH HEALTHCARE LTD&&SSARO1638,S/S HOMES,5502-Residential,"9,333.85"
04-APR-2022,Adults & Communities (P),AKARI CARE LTD T/A SEALE PASTURES&&SSAROE47014,S/S HOMES,5502-Residential,"6,020.87"
04-APR-2022,Adults & Communities (P),AKARI CARE LTD T/A SEALE PASTURES&&SSAROE47014,S/S HOMES,5502-Residential,"3,895.85"
04-APR-2022,Adults & Communities (P),ALA CARE LTD&&SSAROE1044,S/S HOMES,5502-Residential,"11,597.16"
04-APR-2022,Adults & Communities (P),ALA CARE LTD&&SSAROE1044,S/S HOMES,5502-Residential,"17,922.84"
04-APR-2022,Adults & Communities (P),ALA CARE LTD&&SSAROE182,S/S HOMES,5502-Residential,"2,684.83"
04-APR-2022,Adults & Communities (P),ALA CARE LTD&&SSAROE182,S/S HOMES,5502-Residential,"22,124.34"
04-APR-2022,Adults & Communities (P),ALA CARE LTD&&SSAROE182,S/S HOMES,5502-Residential,"16,238.14"
04-APR-2022,Adults & Communities (P),ALA CARE LTD&&SSAROE40269,S/S HOMES,5502-Residential,"2,357.15"
04-APR-2022,Adults & Communities (P),ALA CARE LTD&&SSAROE40269,S/S HOMES,5502-Residential,"15,870.71"
04-APR-2022,Adults & Communities (P),ALA CARE LTD&&SSAROE40269,S/S HOMES,5502-Residential,750.00
04-APR-2022,Adults & Communities (P),ALA CARE LTD&&SSAROE40269,S/S HOMES,5502-Residential,"25,145.62"
04-APR-2022,Adults & Communities (P),REDACTED PERSONAL DATA,S/S HOMES,5502-Residential,"3,834.72"
04-APR-2022,Adults & Communities (P),REDACTED PERSONAL DATA,S/S HOMES,5502-Residential,"2,481.28"
04-APR-2022,Adults & Communities (P),ALICE HOUSE (FLOLLIE INVESTMENTS LIMITED)&&SSARO5641,S/S HOMES,5502-Residential,952.76
04-APR-2022,Adults & Communities (P),ALICE HOUSE (FLOLLIE INVESTMENTS LIMITED)&&SSARO5641,S/S HOMES,5502-Residential,"1,472.44"
04-APR-2022,Adults & Communities (P),ALLAG CARE LIMITED  GWENDOLEN&&SSARO3351,S/S HOMES,5502-Residential,888.00
04-APR-2022,Adults & Communities (P),ALLAG CARE LIMITED  GWENDOLEN&&SSARO3351,S/S HOMES,5502-Residential,"19,083.69"
04-APR-2022,Adults & Communities (P),ALLAG CARE LIMITED  GWENDOLEN&&SSARO3351,S/S HOMES,5502-Residential,"12,348.27"
04-APR-2022,Adults & Communities (P),ALLAG CARE LTD T/A SYCAMORE COTTAGE&&SSAROE44469,S/S HOMES,5502-Residential,"4,165.07"
04-APR-2022,Adults & Communities (P),ALLAG CARE LTD T/A SYCAMORE COTTAGE&&SSAROE44469,S/S HOMES,5502-Residential,"6,436.93"
04-APR-2022,Adults & Communities (P),ALLCONTRAST LTD & GIVECARE LTD&&SSAROE2374,S/S HOMES,5502-Residential,"6,444.00"
04-APR-2022,Adults & Communities (P),ALLCONTRAST LTD & GIVECARE LTD&&SSAROE2374,S/S HOMES,5502-Residential,"3,300.00"
04-APR-2022,Adults & Communities (P),ALLCONTRAST LTD & GIVECARE LTD&&SSAROE2374,S/S HOMES,5502-Residential,"3,300.00"
04-APR-2022,Adults & Communities (P),ALLCONTRAST LTD & GIVECARE LTD&&SSAROE2374,S/S HOMES,5502-Residential,"36,576.49"
04-APR-2022,Adults & Communities (P),ALLCONTRAST LTD & GIVECARE LTD&&SSAROE2374,S/S HOMES,5502-Residential,"4,535.14"
04-APR-2022,Adults & Communities (P),ALLCONTRAST LTD & GIVECARE LTD&&SSAROE2374,S/S HOMES,5502-Residential,673.71
04-APR-2022,Adults & Communities (P),ALLCONTRAST LTD & GIVECARE LTD&&SSAROE2374,S/S HOMES,5502-Residential,"23,387.15"
04-APR-2022,Adults & Communities (P),ALPHA CARE MANAGEMENT SERVICES NO 2 LTD&&SSARO1217,S/S HOMES,5502-Residential,"3,833.03"
04-APR-2022,Adults & Communities (P),ALPHA CARE MANAGEMENT SERVICES NO 2 LTD&&SSARO1217,S/S HOMES,5502-Residential,"5,923.77"
04-APR-2022,Adults & Communities (P),AMBERWOOD CARE HOME LTD&&SSAROE40398,S/S HOMES,5502-Residential,"10,913.60"
04-APR-2022,Adults & Communities (P),AMBERWOOD CARE HOME LTD&&SSAROE40398,S/S HOMES,5502-Residential,"16,866.40"
04-APR-2022,Adults & Communities (P),AMBERWOOD CARE HOME LTD&&SSAROE40398,S/S HOMES,5502-Residential,"1,639.29"
04-APR-2022,Adults & Communities (P),AMBERWOOD CARE HOME LTD&&SSAROE40398,S/S HOMES,5502-Residential,"1,700.00"
04-APR-2022,Adults & Communities (P),AMBERWOOD CARE HOME LTD&&SSAROE40398,S/S HOMES,5502-Residential,"1,700.00"
04-APR-2022,Adults & Communities (P),AMBERWOOD CARE HOME LTD&&SSAROE40398,S/S HOMES,5502-Residential,"1,700.00"
04-APR-2022,Adults & Communities (P),AMICURA LTD&&SSARO6112,S/S HOMES,5502-Residential,"1,406.14"
04-APR-2022,Adults & Communities (P),AMICURA LTD&&SSARO6112,S/S HOMES,5502-Residential,909.86
04-APR-2022,Adults & Communities (P),AMS CARE SERVICE LTD&&SSARO2055 T/A APRIL COTTAGE,S/S HOMES,5502-Residential,"2,922.86"
04-APR-2022,Adults & Communities (P),AMS CARE SERVICE LTD&&SSARO2055 T/A APRIL COTTAGE,S/S HOMES,5502-Residential,"4,517.14"
04-APR-2022,Adults & Communities (P),APPLE HOUSE LEICESTER LTD&&SSAROE185,S/S HOMES,5502-Residential,"2,987.14"
04-APR-2022,Corporate Resources (CR) (P),APPLE HOUSE LEICESTER LTD&&SSAROE185,S/S HOMES,1703-Training Expenses,500.00
04-APR-2022,Adults & Communities (P),APPLE HOUSE LEICESTER LTD&&SSAROE185,S/S HOMES,5502-Residential,"1,932.86"
04-APR-2022,Adults & Communities (P),ARK CARE LODGE&&SSAROE699,S/S HOMES,5502-Residential,"3,465.77"
04-APR-2022,Adults & Communities (P),ARK CARE LODGE&&SSAROE699,S/S HOMES,5502-Residential,"5,356.19"
04-APR-2022,Adults & Communities (P),ASD SUPPORT LIMITED &&AASRO 6167,S/S HOMES,5502-Residential,"9,879.42"
04-APR-2022,Adults & Communities (P),ASD SUPPORT LIMITED &&AASRO 6167,S/S HOMES,5502-Residential,"15,268.18"
04-APR-2022,Adults & Communities (P),REDACTED PERSONAL DATA,S/S HOMES,5502-Residential,"8,146.83"
04-APR-2022,Adults & Communities (P),REDACTED PERSONAL DATA,S/S HOMES,5502-Residential,"12,590.53"
04-APR-2022,Adults & Communities (P),ASHBY COURT NURSING HOME&&SSAROE40195,S/S HOMES,5502-Residential,"12,036.95"
04-APR-2022,Adults & Communities (P),ASHBY COURT NURSING HOME&&SSAROE40195,S/S HOMES,5502-Residential,"1,879.71"
04-APR-2022,Adults & Communities (P),ASHBY COURT NURSING HOME&&SSAROE40195,S/S HOMES,5502-Residential,"18,602.49"
04-APR-2022,Adults & Communities (P),REDACTED PERSONAL DATA,S/S HOMES,5502-Residential,"17,114.14"
04-APR-2022,Adults & Communities (P),REDACTED PERSONAL DATA,S/S HOMES,5502-Residential,"11,073.86"
04-APR-2022,Adults & Communities (P),REDACTED PERSONAL DATA,S/S HOMES,5502-Residential,"12,096.00"
04-APR-2022,Adults & Communities (P),REDACTED PERSONAL DATA,S/S HOMES,5502-Residential,"1,296.00"
04-APR-2022,Adults & Communities (P),ASPIRE HEALTH & CARE LTD CHILLWEL HOUSE&&SSARO3332,S/S HOMES,5502-Residential,983.40
04-APR-2022,Adults & Communities (P),ASPIRE HEALTH & CARE LTD CHILLWEL HOUSE&&SSARO3332,S/S HOMES,5502-Residential,"1,519.80"
04-APR-2022,Adults & Communities (P),AUTISM CARE (UK) LTD&&SSAROE1335,S/S HOMES,5502-Residential,"3,689.71"
04-APR-2022,Adults & Communities (P),AUTISM CARE (UK) LTD&&SSAROE1335,S/S HOMES,5502-Residential,"5,702.29"
04-APR-2022,Adults & Communities (P),AUTISM EAST MIDLANDS&&SARO6582,S/S HOMES,5502-Residential,"1,863.86"
04-APR-2022,Adults & Communities (P),AUTISM EAST MIDLANDS&&SARO6582,S/S HOMES,5502-Residential,"2,880.50"
04-APR-2022,Adults & Communities (P),AVERY HOMES HINCKLEY LTD&&SSARO2898,S/S HOMES,5502-Residential,"23,280.71"
04-APR-2022,Adults & Communities (P),AVERY HOMES HINCKLEY LTD&&SSARO2898,S/S HOMES,5502-Residential,"1,571.43"
04-APR-2022,Adults & Communities (P),AVERY HOMES HINCKLEY LTD&&SSARO2898,S/S HOMES,5502-Residential,"1,257.14"
04-APR-2022,Adults & Communities (P),AVERY HOMES HINCKLEY LTD&&SSARO2898,S/S HOMES,5502-Residential,"3,300.00"
04-APR-2022,Adults & Communities (P),AVERY HOMES HINCKLEY LTD&&SSARO2898,S/S HOMES,5502-Residential,"4,400.00"
04-APR-2022,Adults & Communities (P),AVERY HOMES HINCKLEY LTD&&SSARO2898,S/S HOMES,5502-Residential,"3,200.00"
04-APR-2022,Adults & Communities (P),AVERY HOMES HINCKLEY LTD&&SSARO2898,S/S HOMES,5502-Residential,"1,942.86"
04-APR-2022,Adults & Communities (P),AVERY HOMES HINCKLEY LTD&&SSARO2898,S/S HOMES,5502-Residential,800.00
04-APR-2022,Adults & Communities (P),AVERY HOMES HINCKLEY LTD&&SSARO2898,S/S HOMES,5502-Residential,"4,400.00"
04-APR-2022,Adults & Communities (P),AVERY HOMES HINCKLEY LTD&&SSARO2898,S/S HOMES,5502-Residential,"35,979.29"
04-APR-2022,Adults & Communities (P),AVERY HOMES NELSON LTD T/A GLENMOOR HOUSE CARE HOME&&SSARO3190,S/S HOMES,5502-Residential,"2,064.29"
04-APR-2022,Adults & Communities (P),AVERY HOMES NELSON LTD T/A GLENMOOR HOUSE CARE HOME&&SSARO3190,S/S HOMES,5502-Residential,"1,335.71"
04-APR-2022,Adults & Communities (P),AVERY HOMES NELSON LTD T/A GLENMOOR HOUSE CARE HOME&&SSARO3190,S/S HOMES,5502-Residential,971.43
04-APR-2022,Adults & Communities (P),AVERY HOMES NELSON LTD T/A GLENMOOR HOUSE CARE HOME&&SSARO3190,S/S HOMES,5502-Residential,"1,578.57"
04-APR-2022,Adults & Communities (P),AVVISIM CARE LTD T/A FERNLEIGH CARE HOME&&SSAROE40336,S/S HOMES,5502-Residential,900.00
04-APR-2022,Adults & Communities (P),AVVISIM CARE LTD T/A FERNLEIGH CARE HOME&&SSAROE40336,S/S HOMES,5502-Residential,"14,054.86"
04-APR-2022,Adults & Communities (P),AVVISIM CARE LTD T/A FERNLEIGH CARE HOME&&SSAROE40336,S/S HOMES,5502-Residential,"21,721.14"
04-APR-2022,Adults & Communities (P),AYLESHAM COURT NURSING HOME&&SSAROE59696,S/S HOMES,5502-Residential,"14,245.02"
04-APR-2022,Adults & Communities (P),AYLESHAM COURT NURSING HOME&&SSAROE59696,S/S HOMES,5502-Residential,"22,014.98"
04-APR-2022,Adults & Communities (P),AYLESTONE GRANGE LTD&&SSARO3251,S/S HOMES,5502-Residential,"3,344.88"
04-APR-2022,Adults & Communities (P),AYLESTONE GRANGE LTD&&SSARO3251,S/S HOMES,5502-Residential,"5,169.37"
04-APR-2022,Adults & Communities (P),BABA SAWAN LODGE LTD&&SSARO6451,S/S HOMES,5502-Residential,"1,493.57"
04-APR-2022,Adults & Communities (P),BABA SAWAN LODGE LTD&&SSARO6451,S/S HOMES,5502-Residential,966.43
04-APR-2022,Adults & Communities (P),BADBY PARK LTD&&SSARO3105,S/S HOMES,5502-Residential,"2,168.10"
04-APR-2022,Adults & Communities (P),BADBY PARK LTD&&SSARO3105,S/S HOMES,5502-Residential,"3,350.72"
04-APR-2022,Adults & Communities (P),BARCHESTER HEALTHCARE HOME LTD T/A MARPLE DALE WINDSOR&&SSAROE350,S/S HOMES,5502-Residential,"1,052.75"
04-APR-2022,Adults & Communities (P),BARCHESTER HEALTHCARE HOME LTD T/A MARPLE DALE WINDSOR&&SSAROE350,S/S HOMES,5502-Residential,"1,626.97"
04-APR-2022,Adults & Communities (P),BARCHESTER HEALTHCARE HOMES LTD LANCASTER GRANGE&&SARO3353,S/S HOMES,5502-Residential,"1,060.71"
04-APR-2022,Adults & Communities (P),BARCHESTER HEALTHCARE HOMES LTD LANCASTER GRANGE&&SARO3353,S/S HOMES,5502-Residential,"1,639.29"
04-APR-2022,Adults & Communities (P),BARCHESTER HEALTHCARE HOMES LTD OVERSLADE HOUSE RECEIPTS ACCOUNT&&SSARO3228,S/S HOMES,5501-Nursing,950.40
04-APR-2022,Adults & Communities (P),BARCHESTER HEALTHCARE HOMES LTD OVERSLADE HOUSE RECEIPTS ACCOUNT&&SSARO3228,S/S HOMES,5501-Nursing,"1,468.80"
04-APR-2022,Adults & Communities (P),BARCHESTER HEALTHCARE HOMES LTD&&SSARO6393,S/S HOMES,5502-Residential,938.93
04-APR-2022,Adults & Communities (P),BARCHESTER HEALTHCARE HOMES LTD&&SSARO6393,S/S HOMES,5502-Residential,"1,451.07"
04-APR-2022,Adults & Communities (P),BENTLEY HOUSE LTD&&SSAROE140,S/S HOMES,5502-Residential,"1,000.00"
04-APR-2022,Adults & Communities (P),BENTLEY HOUSE LTD&&SSAROE140,S/S HOMES,5502-Residential,"1,257.14"
04-APR-2022,Adults & Communities (P),BENTLEY HOUSE LTD&&SSAROE140,S/S HOMES,5502-Residential,"1,942.86"
04-APR-2022,Adults & Communities (P),BESTCARE LTD&&SSAROE1281,S/S HOMES,5502-Residential,"4,587.81"
04-APR-2022,Adults & Communities (P),BESTCARE LTD&&SSAROE1281,S/S HOMES,5502-Residential,"2,968.59"
04-APR-2022,Adults & Communities (P),BESTCARE LTD&&SSAROE1281,S/S HOMES,5502-Residential,"19,096.30"
04-APR-2022,Adults & Communities (P),BESTCARE LTD&&SSAROE1281,S/S HOMES,5502-Residential,"29,512.39"
04-APR-2022,Adults & Communities (P),BESTCARE LTD&&SSAROE1281,S/S HOMES,5502-Residential,592.80
04-APR-2022,Adults & Communities (P),BETHEL RESIDENTIAL HOME&&SSAROE40459,S/S HOMES,5502-Residential,"1,714.28"
04-APR-2022,Adults & Communities (P),BETHEL RESIDENTIAL HOME&&SSAROE40459,S/S HOMES,5502-Residential,"5,196.43"
04-APR-2022,Adults & Communities (P),BETHEL RESIDENTIAL HOME&&SSAROE40459,S/S HOMES,5502-Residential,"26,167.84"
04-APR-2022,Adults & Communities (P),BETHEL RESIDENTIAL HOME&&SSAROE40459,S/S HOMES,5502-Residential,615.00
04-APR-2022,Adults & Communities (P),BETHEL RESIDENTIAL HOME&&SSAROE40459,S/S HOMES,5502-Residential,"17,540.01"
04-APR-2022,Adults & Communities (P),BETHESDA CAREHOMES LTD TA PINGLENOOK&&SSAROE40346,S/S HOMES,5502-Residential,"14,935.70"
04-APR-2022,Adults & Communities (P),BETHESDA CAREHOMES LTD TA PINGLENOOK&&SSAROE40346,S/S HOMES,5502-Residential,"9,576.44"
04-APR-2022,Adults & Communities (P),BETHESDA CAREHOMES LTD TA PINGLENOOK&&SSAROE40346,S/S HOMES,5502-Residential,878.57
04-APR-2022,Adults & Communities (P),BIRSTALL CARE SERVICES LTD&&SSARO3339,S/S HOMES,5502-Residential,"44,233.13"
04-APR-2022,Adults & Communities (P),BIRSTALL CARE SERVICES LTD&&SSARO3339,S/S HOMES,5502-Residential,"28,621.48"
04-APR-2022,Adults & Communities (P),BLUE OPAL LTD T/A THE MEADOWS&&SSARO5335,S/S HOMES,5502-Residential,"1,901.02"
04-APR-2022,Adults & Communities (P),BLUE OPAL LTD T/A THE MEADOWS&&SSARO5335,S/S HOMES,5502-Residential,"2,937.94"
04-APR-2022,Adults & Communities (P),BRACKENDALE HOUSE(PRIME LIFE LTD)&&SSARO6642,S/S HOMES,5502-Residential,851.07
04-APR-2022,Adults & Communities (P),BRACKENDALE HOUSE(PRIME LIFE LTD)&&SSARO6642,S/S HOMES,5502-Residential,"1,315.29"
04-APR-2022,Adults & Communities (P),BRIARS & ROSE LODGE&&SSAROE1126,S/S HOMES,5502-Residential,"6,219.70"
04-APR-2022,Adults & Communities (P),BRIARS & ROSE LODGE&&SSAROE1126,S/S HOMES,5502-Residential,"9,612.22"
04-APR-2022,Adults & Communities (P),REDACTED PERSONAL DATA,S/S HOMES,5502-Residential,"6,746.16"
04-APR-2022,Adults & Communities (P),REDACTED PERSONAL DATA,S/S HOMES,5502-Residential,"10,425.84"
04-APR-2022,Adults & Communities (P),BRIDGEFOOT DEVELOPMENTS LTD JASON HYLTON COURT&&SSARO3277,S/S HOMES,5502-Residential,"4,344.15"
04-APR-2022,Adults & Communities (P),BRIDGEFOOT DEVELOPMENTS LTD JASON HYLTON COURT&&SSARO3277,S/S HOMES,5501-Nursing,667.85
04-APR-2022,Adults & Communities (P),BRIDGEFOOT DEVELOPMENTS LTD JASON HYLTON COURT&&SSARO3277,S/S HOMES,5501-Nursing,667.85
04-APR-2022,Adults & Communities (P),BROADLANDS RESIDENTIAL CARE HOME&&SARO8403,S/S HOMES,5502-Residential,"1,413.43"
04-APR-2022,Adults & Communities (P),BROADLANDS RESIDENTIAL CARE HOME&&SARO8403,S/S HOMES,5502-Residential,914.57
04-APR-2022,Adults & Communities (P),BROADOAK GRANGE RESIDENTIAL HOME&&SSAROE40338,S/S HOMES,5502-Residential,"10,363.58"
04-APR-2022,Adults & Communities (P),BROADOAK GRANGE RESIDENTIAL HOME&&SSAROE40338,S/S HOMES,5502-Residential,"1,077.14"
04-APR-2022,Adults & Communities (P),BROADOAK GRANGE RESIDENTIAL HOME&&SSAROE40338,S/S HOMES,5502-Residential,"3,196.00"
04-APR-2022,Adults & Communities (P),BROADOAK GRANGE RESIDENTIAL HOME&&SSAROE40338,S/S HOMES,5502-Residential,"16,016.42"
04-APR-2022,Adults & Communities (P),BROADOAK LODGE&&SSAROE66479,S/S HOMES,5502-Residential,"23,688.25"
04-APR-2022,Adults & Communities (P),BROADOAK LODGE&&SSAROE66479,S/S HOMES,5502-Residential,"2,760.00"
04-APR-2022,Adults & Communities (P),BROADOAK LODGE&&SSAROE66479,S/S HOMES,5502-Residential,"15,327.75"
04-APR-2022,Adults & Communities (P),BROADOAK LODGE&&SSAROE66479,S/S HOMES,5502-Residential,"2,760.00"
04-APR-2022,Adults & Communities (P),BROADOAK LODGE&&SSAROE66479,S/S HOMES,5502-Residential,"2,660.00"
04-APR-2022,Adults & Communities (P),BROOK HOUSE&&SSAROE40313,S/S HOMES,5502-Residential,"1,661.00"
04-APR-2022,Adults & Communities (P),BROOK HOUSE&&SSAROE40313,S/S HOMES,5502-Residential,"2,567.00"
04-APR-2022,Adults & Communities (P),BROOKSIDE RESIDENTIAL CAR HOME (BRAYBROOKE) LTD&&SSARO6026,S/S HOMES,5502-Residential,"1,390.71"
04-APR-2022,Adults & Communities (P),BROOKSIDE RESIDENTIAL CAR HOME (BRAYBROOKE) LTD&&SSARO6026,S/S HOMES,5502-Residential,"2,149.29"
04-APR-2022,Adults & Communities (P),REDACTED PERSONAL DATA,S/S HOMES,5502-Residential,"1,000.62"
04-APR-2022,Adults & Communities (P),REDACTED PERSONAL DATA,S/S HOMES,5502-Residential,"1,543.12"
04-APR-2022,Adults & Communities (P),BUPA CARE HOMES T/A THE SPRNGS CARE HOME&&SARO3407,S/S HOMES,5502-Residential,870.57
04-APR-2022,Adults & Communities (P),BUPA CARE HOMES T/A THE SPRNGS CARE HOME&&SARO3407,S/S HOMES,5502-Residential,"1,345.43"
04-APR-2022,Adults & Communities (P),CARE 24 7 (BODNANT HOUSE)&&SSARO3231,S/S HOMES,5502-Residential,"12,468.29"
04-APR-2022,Adults & Communities (P),CARE 24 7 (BODNANT HOUSE)&&SSARO3231,S/S HOMES,5502-Residential,"8,067.71"
04-APR-2022,Adults & Communities (P),CARE 24 7 (BODNANT HOUSE)&&SSARO3231,S/S HOMES,5502-Residential,"4,201.71"
04-APR-2022,Adults & Communities (P),CARE HOME CONSULTANCY SERVICE LTD T/A RUSHEY MEAD MANOR&&SARO1913,S/S HOMES,5502-Residential,"7,094.23"
04-APR-2022,Adults & Communities (P),CARE HOME CONSULTANCY SERVICE LTD T/A RUSHEY MEAD MANOR&&SARO1913,S/S HOMES,5502-Residential,"10,963.77"
04-APR-2022,Adults & Communities (P),CARE HOME CONSULTANCY SERVICE LTD T/A RUSHEY MEAD MANOR&&SARO1913,S/S HOMES,8405-Nursing NHS Income,878.17
04-APR-2022,Adults & Communities (P),CARE UK COMMUNITY PARTNERSHIPS LTD&&SSARO6319,S/S HOMES,5502-Residential,"4,000.86"
04-APR-2022,Adults & Communities (P),CARE UK COMMUNITY PARTNERSHIPS LTD&&SSARO6319,S/S HOMES,5502-Residential,"1,091.14"
04-APR-2022,Adults & Communities (P),CEDAR HOUSE CARE HOME LTD&&SSAROE40413,S/S HOMES,5502-Residential,"1,253.57"
04-APR-2022,Adults & Communities (P),CEDAR HOUSE CARE HOME LTD&&SSAROE40413,S/S HOMES,5502-Residential,"6,130.16"
04-APR-2022,Adults & Communities (P),CEDAR HOUSE CARE HOME LTD&&SSAROE40413,S/S HOMES,5502-Residential,835.71
04-APR-2022,Adults & Communities (P),CEDAR HOUSE CARE HOME LTD&&SSAROE40413,S/S HOMES,5502-Residential,"9,473.84"
04-APR-2022,Adults & Communities (P),CHARNWOOD PARK RESIDENTIAL HOME LTD&&SSARO6712,S/S HOMES,5502-Residential,"9,610.87"
04-APR-2022,Adults & Communities (P),CHARNWOOD PARK RESIDENTIAL HOME LTD&&SSARO6712,S/S HOMES,5502-Residential,"5,988.64"
04-APR-2022,Adults & Communities (P),CHARNWOOD PARK RESIDENTIAL HOME LTD&&SSARO6712,S/S HOMES,5502-Residential,878.57
04-APR-2022,Adults & Communities (P),CHARTWELL TRUST CARE PLC&&SSARO2345,S/S HOMES,5502-Residential,"5,791.59"
04-APR-2022,Adults & Communities (P),CHARTWELL TRUST CARE PLC&&SSARO2345,S/S HOMES,5502-Residential,"3,165.72"
04-APR-2022,Adults & Communities (P),CHARTWELL TRUST CARE PLC&&SSARO2345,S/S HOMES,5502-Residential,"4,892.48"
04-APR-2022,Adults & Communities (P),CHARTWELL TRUST CARE PLC&&SSARO2345,S/S HOMES,5502-Residential,"3,747.49"
04-APR-2022,Adults & Communities (P),CHERRE RESIDENTIAL CARE LTD T/A AYEESHA RAJ&&SSAROE40381,S/S HOMES,5502-Residential,"7,522.45"
04-APR-2022,Adults & Communities (P),CHERRE RESIDENTIAL CARE LTD T/A AYEESHA RAJ&&SSAROE40381,S/S HOMES,5502-Residential,"11,625.55"
04-APR-2022,Adults & Communities (P),CHERRYTREE CARE LTD&&SSAROE40314,S/S HOMES,5502-Residential,"23,168.55"
04-APR-2022,Adults & Communities (P),CHERRYTREE CARE LTD&&SSAROE40314,S/S HOMES,5502-Residential,"1,457.15"
04-APR-2022,Adults & Communities (P),CHERRYTREE CARE LTD&&SSAROE40314,S/S HOMES,5502-Residential,"14,991.45"
04-APR-2022,Adults & Communities (P),CHERRYTREE CARE LTD&&SSAROE40314,S/S HOMES,5502-Residential,"6,621.42"
04-APR-2022,Adults & Communities (P),CHESTNUTS ARNESBY LTD&&SSAROE40279,S/S HOMES,8406-Residential - NHS Income,"1,692.00"
04-APR-2022,Adults & Communities (P),CHESTNUTS ARNESBY LTD&&SSAROE40279,S/S HOMES,5502-Residential,"21,473.03"
04-APR-2022,Adults & Communities (P),CHESTNUTS ARNESBY LTD&&SSAROE40279,S/S HOMES,5502-Residential,"33,185.62"
04-APR-2022,Adults & Communities (P),CHESTNUTS ARNESBY LTD&&SSAROE40279,S/S HOMES,5502-Residential,"1,177.74"
04-APR-2022,Adults & Communities (P),CHESTNUTS ARNESBY LTD&&SSAROE40279,S/S HOMES,5502-Residential,"1,820.14"
04-APR-2022,Adults & Communities (P),CHURCH FARM NURSING HOME LTD&&SSAROE61089,S/S HOMES,5502-Residential,"1,257.14"
04-APR-2022,Adults & Communities (P),CHURCH FARM NURSING HOME LTD&&SSAROE61089,S/S HOMES,5502-Residential,"1,942.86"
04-APR-2022,Adults & Communities (P),CLAREGRANGE TRADING LTD ASLOCKTON HALL&&SSAROE47217,S/S HOMES,5502-Residential,"1,015.14"
04-APR-2022,Adults & Communities (P),CLAREGRANGE TRADING LTD ASLOCKTON HALL&&SSAROE47217,S/S HOMES,5502-Residential,"1,568.86"
04-APR-2022,Adults & Communities (P),CLAREGRANGE TRADING LTD T/A WALTHAM HALL&&SARO5107,S/S HOMES,5502-Residential,"31,658.01"
04-APR-2022,Adults & Communities (P),CLAREGRANGE TRADING LTD T/A WALTHAM HALL&&SARO5107,S/S HOMES,5502-Residential,"7,327.42"
04-APR-2022,Adults & Communities (P),CLAREGRANGE TRADING LTD T/A WALTHAM HALL&&SARO5107,S/S HOMES,5502-Residential,"6,980.43"
04-APR-2022,Adults & Communities (P),CLAREGRANGE TRADING LTD T/A WALTHAM HALL&&SARO5107,S/S HOMES,5502-Residential,966.43
04-APR-2022,Adults & Communities (P),CLAREGRANGE TRADING LTD T/A WALTHAM HALL&&SARO5107,S/S HOMES,5502-Residential,"20,484.63"
04-APR-2022,Adults & Communities (P),CLAREGRANGE TRADING LTD T/A WALTHAM HALL&&SARO5107,S/S HOMES,5502-Residential,"2,196.43"
04-APR-2022,Adults & Communities (P),CLAREGRANGE TRADING LTD T/A WALTHAM HALL&&SARO5107,S/S HOMES,5502-Residential,615.00
04-APR-2022,Adults & Communities (P),CLAREGRANGE TRADING LTD T/A WALTHAM HALL&&SARO5107,S/S HOMES,5502-Residential,702.86
04-APR-2022,Adults & Communities (P),CLAREGRANGE TRADING LTD T/A WALTHAM HALL&&SARO5107,S/S HOMES,5502-Residential,"3,690.00"
04-APR-2022,Adults & Communities (P),CLARENDON MEWS CARE LTD&&SSARO3356,S/S HOMES,5502-Residential,539.14
04-APR-2022,Adults & Communities (P),CLARENDON MEWS CARE LTD&&SSARO3356,S/S HOMES,5502-Residential,"12,732.67"
04-APR-2022,Adults & Communities (P),CLARENDON MEWS CARE LTD&&SSARO3356,S/S HOMES,5502-Residential,"2,426.14"
04-APR-2022,Adults & Communities (P),CLARENDON MEWS CARE LTD&&SSARO3356,S/S HOMES,5502-Residential,"18,150.16"
04-APR-2022,Adults & Communities (P),CLEARVISION (GB) T/A CHATAWAY RESIDENTIAL HOME LTD&&SSAROE40294,S/S HOMES,5502-Residential,"7,552.85"
04-APR-2022,Adults & Communities (P),CLEARVISION (GB) T/A CHATAWAY RESIDENTIAL HOME LTD&&SSAROE40294,S/S HOMES,5502-Residential,"4,852.15"
04-APR-2022,Adults & Communities (P),CLEARVISION (GB) T/A CHATAWAY RESIDENTIAL HOME LTD&&SSAROE40294,S/S HOMES,5502-Residential,615.00
04-APR-2022,Adults & Communities (P),COATE WATER CARE COMPANY (CHURCH VIEW NURSING HOME) LTD&&SSARO6776,S/S HOMES,5502-Residential,"1,178.58"
04-APR-2022,Adults & Communities (P),COATE WATER CARE COMPANY (CHURCH VIEW NURSING HOME) LTD&&SSARO6776,S/S HOMES,5502-Residential,"1,821.42"
04-APR-2022,Adults & Communities (P),COMMUNITY LIVING PROJECT&&SSAROE56011,S/S HOMES,5502-Residential,"10,237.83"
04-APR-2022,Adults & Communities (P),COMMUNITY LIVING PROJECT&&SSAROE56011,S/S HOMES,5502-Residential,588.00
04-APR-2022,Adults & Communities (P),COMMUNITY LIVING PROJECT&&SSAROE56011,S/S HOMES,5502-Residential,"15,822.05"
04-APR-2022,Adults & Communities (P),CONDOVER COLLEGE LTD&&SSAROE1331,S/S HOMES,5502-Residential,"8,176.97"
04-APR-2022,Adults & Communities (P),CONDOVER COLLEGE LTD&&SSAROE1331,S/S HOMES,5502-Residential,"12,637.15"
04-APR-2022,Adults & Communities (P),CONIFER LODGE&&SSAROE40296,S/S HOMES,5502-Residential,"17,842.70"
04-APR-2022,Adults & Communities (P),CONIFER LODGE&&SSAROE40296,S/S HOMES,5502-Residential,"11,457.44"
04-APR-2022,Adults & Communities (P),CONIFER LODGE&&SSAROE40296,S/S HOMES,5502-Residential,"3,972.14"
04-APR-2022,Adults & Communities (P),COUNTRY COURT CARE HOMES LTD&&SSARO6542,S/S HOMES,5502-Residential,922.43
04-APR-2022,Adults & Communities (P),COUNTRY COURT CARE HOMES LTD&&SSARO6542,S/S HOMES,5502-Residential,"1,425.57"
04-APR-2022,Adults & Communities (P),REDACTED PERSONAL DATA,S/S HOMES,5502-Residential,"3,638.17"
04-APR-2022,Adults & Communities (P),REDACTED PERSONAL DATA,S/S HOMES,5502-Residential,"2,354.11"
04-APR-2022,Adults & Communities (P),REDACTED PERSONAL DATA,S/S HOMES,5502-Residential,"6,390.14"
04-APR-2022,Adults & Communities (P),REDACTED PERSONAL DATA,S/S HOMES,5502-Residential,"9,875.66"
04-APR-2022,Adults & Communities (P),REDACTED PERSONAL DATA,S/S HOMES,5502-Residential,"7,213.89"
04-APR-2022,Adults & Communities (P),REDACTED PERSONAL DATA,S/S HOMES,5502-Residential,"11,148.67"
04-APR-2022,Adults & Communities (P),REDACTED PERSONAL DATA,S/S HOMES,5502-Residential,"31,868.94"
04-APR-2022,Adults & Communities (P),REDACTED PERSONAL DATA,S/S HOMES,5502-Residential,"2,760.00"
04-APR-2022,Adults & Communities (P),REDACTED PERSONAL DATA,S/S HOMES,5502-Residential,"20,621.10"
04-APR-2022,Adults & Communities (P),REDACTED PERSONAL DATA,S/S HOMES,5502-Residential,"1,157.14"
04-APR-2022,Adults & Communities (P),REDACTED PERSONAL DATA,S/S HOMES,5502-Residential,"7,934.28"
04-APR-2022,Adults & Communities (P),REDACTED PERSONAL DATA,S/S HOMES,5502-Residential,"2,664.72"
04-APR-2022,Adults & Communities (P),REDACTED PERSONAL DATA,S/S HOMES,5502-Residential,"4,118.20"
04-APR-2022,Adults & Communities (P),CSS LTD T/A GRETTON HOMES&&SARO3372,S/S HOMES,5502-Residential,"2,822.08"
04-APR-2022,Adults & Communities (P),CSS LTD T/A GRETTON HOMES&&SARO3372,S/S HOMES,5502-Residential,"4,361.40"
04-APR-2022,Adults & Communities (P),CYGNET (DH) LTD T/A TOLLER ROAD&&SARO5736,S/S HOMES,5502-Residential,"4,286.77"
04-APR-2022,Adults & Communities (P),CYGNET (DH) LTD T/A TOLLER ROAD&&SARO5736,S/S HOMES,5502-Residential,"6,625.01"
04-APR-2022,Adults & Communities (P),CYGNET HEALTH T/A 15 THE SYCAMORES&&SARO8633,S/S HOMES,5502-Residential,"6,013.26"
04-APR-2022,Adults & Communities (P),CYGNET HEALTH T/A 15 THE SYCAMORES&&SARO8633,S/S HOMES,5502-Residential,"9,293.22"
04-APR-2022,Adults & Communities (P),REDACTED PERSONAL DATA,S/S HOMES,5502-Residential,895.81
04-APR-2022,Adults & Communities (P),REDACTED PERSONAL DATA,S/S HOMES,5502-Residential,"1,381.68"
04-APR-2022,Adults & Communities (P),DERRIFORD HOUSE LTD&&SARO6557,S/S HOMES,5502-Residential,"2,027.86"
04-APR-2022,Adults & Communities (P),DERRIFORD HOUSE LTD&&SARO6557,S/S HOMES,5502-Residential,"1,312.14"
04-APR-2022,Adults & Communities (P),DERWEN COLLEGE&&SSAROE205,S/S HOMES,5502-Residential,"1,551.88"
04-APR-2022,Adults & Communities (P),DERWEN COLLEGE&&SSAROE205,S/S HOMES,5502-Residential,"2,398.36"
04-APR-2022,Adults & Communities (P),DIGNUS HEALTHCARE LTD T/A 39 SCHOOL LANE&&SARO6181,S/S HOMES,5502-Residential,"4,274.28"
04-APR-2022,Adults & Communities (P),DIGNUS HEALTHCARE LTD T/A 39 SCHOOL LANE&&SARO6181,S/S HOMES,5502-Residential,"2,765.72"
04-APR-2022,Adults & Communities (P),DIWALI LTD&&SSAROE40425,S/S HOMES,5502-Residential,"5,067.86"
04-APR-2022,Adults & Communities (P),DIWALI LTD&&SSAROE40425,S/S HOMES,5502-Residential,"2,410.57"
04-APR-2022,Adults & Communities (P),DIWALI LTD&&SSAROE40425,S/S HOMES,5502-Residential,"7,832.14"
04-APR-2022,Adults & Communities (P),DIWALI LTD&&SSAROE40425,S/S HOMES,5502-Residential,"1,114.00"
04-APR-2022,Adults & Communities (P),DN&KJ LOCK T/A MOAT HOUSE RETIREMENT LTD&&SSAROE276,S/S HOMES,5502-Residential,"16,465.99"
04-APR-2022,Adults & Communities (P),DN&KJ LOCK T/A MOAT HOUSE RETIREMENT LTD&&SSAROE276,S/S HOMES,5502-Residential,"25,447.41"
04-APR-2022,Adults & Communities (P),DUNELM (NORTH EAST AUTISM SOCIETY)&&SSAROE66277,S/S HOMES,5502-Residential,"3,206.23"
04-APR-2022,Adults & Communities (P),DUNELM (NORTH EAST AUTISM SOCIETY)&&SSAROE66277,S/S HOMES,5502-Residential,"4,955.09"
04-APR-2022,Adults & Communities (P),DUNSFORD (LINKAGE COMMUNITY TRUST)&&SSARO5724,S/S HOMES,5502-Residential,"1,216.07"
04-APR-2022,Adults & Communities (P),DUNSFORD (LINKAGE COMMUNITY TRUST)&&SSARO5724,S/S HOMES,5502-Residential,"1,876.07"
04-APR-2022,Adults & Communities (P),EAST VIEW HOUSING MANAGEMENT LTD&&SSARO6222,S/S HOMES,5502-Residential,"2,643.14"
04-APR-2022,Adults & Communities (P),EAST VIEW HOUSING MANAGEMENT LTD&&SSARO6222,S/S HOMES,5502-Residential,"4,084.86"
04-APR-2022,Adults & Communities (P),EGERTON LODGE&&SSAROE40415,S/S HOMES,5502-Residential,"16,524.66"
04-APR-2022,Adults & Communities (P),EGERTON LODGE&&SSAROE40415,S/S HOMES,5502-Residential,"10,692.46"
04-APR-2022,Adults & Communities (P),EGERTON LODGE&&SSAROE40415,S/S HOMES,5502-Residential,615.00
04-APR-2022,Adults & Communities (P),EGERTON LODGE&&SSAROE40415,S/S HOMES,5502-Residential,"2,460.00"
04-APR-2022,Adults & Communities (P),EGERTON LODGE&&SSAROE40415,S/S HOMES,5502-Residential,"1,845.00"
04-APR-2022,Adults & Communities (P),REDACTED PERSONAL DATA,S/S HOMES,5502-Residential,"1,284.41"
04-APR-2022,Adults & Communities (P),REDACTED PERSONAL DATA,S/S HOMES,5502-Residential,"1,984.99"
04-APR-2022,Adults & Communities (P),ELLIOTT RESIDENTIAL CARE HOME&&SSAROE40471,S/S HOMES,5502-Residential,"1,881.00"
04-APR-2022,Adults & Communities (P),ELLIOTT RESIDENTIAL CARE HOME&&SSAROE40471,S/S HOMES,5502-Residential,"2,907.00"
04-APR-2022,Adults & Communities (P),ESPA LTD&&SSAROE247,S/S HOMES,5502-Residential,"3,241.61"
04-APR-2022,Adults & Communities (P),ESPA LTD&&SSAROE247,S/S HOMES,5502-Residential,"5,006.45"
04-APR-2022,Adults & Communities (P),EVINGTON GRANGE LTD&&SARO3365,S/S HOMES,5502-Residential,952.28
04-APR-2022,Adults & Communities (P),EVINGTON GRANGE LTD&&SARO3365,S/S HOMES,5502-Residential,"1,471.72"
04-APR-2022,Adults & Communities (P),REDACTED PERSONAL DATA,S/S HOMES,5502-Residential,"5,408.95"
04-APR-2022,Adults & Communities (P),REDACTED PERSONAL DATA,S/S HOMES,5502-Residential,"8,359.29"
04-APR-2022,Adults & Communities (P),FIELD HOUSE NURSING HOME LTD&&SSARO2972,S/S HOMES,5502-Residential,"1,401.47"
04-APR-2022,Adults & Communities (P),FIELD HOUSE NURSING HOME LTD&&SSARO2972,S/S HOMES,5502-Residential,"2,165.89"
04-APR-2022,Adults & Communities (P),FIRSTMILE LTD&&SSAROE642,S/S HOMES,5502-Residential,"2,811.42"
04-APR-2022,Adults & Communities (P),FIRSTMILE LTD&&SSAROE642,S/S HOMES,5502-Residential,"19,562.74"
04-APR-2022,Adults & Communities (P),FIRSTMILE LTD&&SSAROE642,S/S HOMES,5502-Residential,"1,405.71"
04-APR-2022,Adults & Communities (P),FIRSTMILE LTD&&SSAROE642,S/S HOMES,5502-Residential,"1,230.00"
04-APR-2022,Adults & Communities (P),FIRSTMILE LTD&&SSAROE642,S/S HOMES,5502-Residential,"30,233.26"
04-APR-2022,Adults & Communities (P),FIRSTMILE LTD&&SSAROE642,S/S HOMES,5502-Residential,"1,054.29"
04-APR-2022,Adults & Communities (P),FIRSTSMILE LTD&&SSAROE6,S/S HOMES,5502-Residential,"3,000.00"
04-APR-2022,Adults & Communities (P),FIRSTSMILE LTD&&SSAROE6,S/S HOMES,5502-Residential,"3,000.00"
04-APR-2022,Adults & Communities (P),FIRSTSMILE LTD&&SSAROE6,S/S HOMES,5502-Residential,"3,000.00"
04-APR-2022,Adults & Communities (P),FIRSTSMILE LTD&&SSAROE6,S/S HOMES,5502-Residential,"9,122.15"
04-APR-2022,Adults & Communities (P),FIRSTSMILE LTD&&SSAROE6,S/S HOMES,5502-Residential,"3,000.00"
04-APR-2022,Adults & Communities (P),FIRSTSMILE LTD&&SSAROE6,S/S HOMES,5502-Residential,"3,000.00"
04-APR-2022,Adults & Communities (P),FIRSTSMILE LTD&&SSAROE6,S/S HOMES,5502-Residential,"3,000.00"
04-APR-2022,Adults & Communities (P),FIRSTSMILE LTD&&SSAROE6,S/S HOMES,5502-Residential,"1,485.71"
04-APR-2022,Adults & Communities (P),FIRSTSMILE LTD&&SSAROE6,S/S HOMES,5502-Residential,"14,097.85"
04-APR-2022,Adults & Communities (P),FIRSTSMILE LTD&&SSAROE6,S/S HOMES,5502-Residential,"3,000.00"
04-APR-2022,Adults & Communities (P),FIRSTSMILE LTD&&SSAROE6,S/S HOMES,5502-Residential,"3,000.00"
04-APR-2022,Adults & Communities (P),FOUNDATION CARE LTD T/A MANTON HALL&&SSAROE40333,S/S HOMES,5502-Residential,738.57
04-APR-2022,Adults & Communities (P),FOUNDATION CARE LTD T/A MANTON HALL&&SSAROE40333,S/S HOMES,5502-Residential,"1,141.43"
04-APR-2022,Adults & Communities (P),FOUR SEASONS (EVEDALE LTD) RE THE WILLOWS&&SSAROE40243,S/S HOMES,5502-Residential,"2,321.43"
04-APR-2022,Adults & Communities (P),FOUR SEASONS (EVEDALE LTD) RE THE WILLOWS&&SSAROE40243,S/S HOMES,5502-Residential,714.29
04-APR-2022,Adults & Communities (P),FOUR SEASONS (EVEDALE LTD) RE THE WILLOWS&&SSAROE40243,S/S HOMES,5502-Residential,"41,202.56"
04-APR-2022,Adults & Communities (P),FOUR SEASONS (EVEDALE LTD) RE THE WILLOWS&&SSAROE40243,S/S HOMES,5502-Residential,"1,142.86"
04-APR-2022,Adults & Communities (P),FOUR SEASONS (EVEDALE LTD) RE THE WILLOWS&&SSAROE40243,S/S HOMES,5502-Residential,"1,200.00"
04-APR-2022,Adults & Communities (P),FOUR SEASONS (EVEDALE LTD) RE THE WILLOWS&&SSAROE40243,S/S HOMES,5502-Residential,"1,542.86"
04-APR-2022,Adults & Communities (P),FOUR SEASONS (EVEDALE LTD) RE THE WILLOWS&&SSAROE40243,S/S HOMES,5502-Residential,"1,028.57"
04-APR-2022,Adults & Communities (P),FOUR SEASONS (EVEDALE LTD) RE THE WILLOWS&&SSAROE40243,S/S HOMES,5502-Residential,578.51
04-APR-2022,Adults & Communities (P),FOUR SEASONS (EVEDALE LTD) RE THE WILLOWS&&SSAROE40243,S/S HOMES,5502-Residential,"28,624.81"
04-APR-2022,Adults & Communities (P),FOUR SEASONS LTD T/A THE OAKS AND LITTLE OAKS&&SSARO5384,S/S HOMES,5502-Residential,914.57
04-APR-2022,Adults & Communities (P),FOUR SEASONS LTD T/A THE OAKS AND LITTLE OAKS&&SSARO5384,S/S HOMES,5502-Residential,"1,413.43"
04-APR-2022,Adults & Communities (P),FREEDOM CARE LTD T/A PRIVATE ROAD   HUGGLESCOTE&&SARO3385,S/S HOMES,5502-Residential,"10,006.24"
04-APR-2022,Adults & Communities (P),FREEDOM CARE LTD T/A PRIVATE ROAD   HUGGLESCOTE&&SARO3385,S/S HOMES,5502-Residential,"15,464.20"
04-APR-2022,Adults & Communities (P),FSHC NEWCO LTD T/A THE LAWNS CARE HOME&&SSAROE76864,S/S HOMES,5502-Residential,640.00
04-APR-2022,Adults & Communities (P),FSHC NEWCO LTD T/A THE LAWNS CARE HOME&&SSAROE76864,S/S HOMES,5502-Residential,"2,899.29"
04-APR-2022,Adults & Communities (P),FSHC NEWCO LTD T/A THE LAWNS CARE HOME&&SSAROE76864,S/S HOMES,5502-Residential,"4,480.71"
04-APR-2022,Adults & Communities (P),FUTURE DIRECTIONS CIC&&SSARO3273,S/S HOMES,5502-Residential,"1,267.95"
04-APR-2022,Adults & Communities (P),FUTURE DIRECTIONS CIC&&SSARO3273,S/S HOMES,5502-Residential,"1,959.57"
04-APR-2022,Adults & Communities (P),GARENDON RESIDENTIAL HOME&&SSAROE46112,S/S HOMES,5502-Residential,"7,764.45"
04-APR-2022,Adults & Communities (P),GARENDON RESIDENTIAL HOME&&SSAROE46112,S/S HOMES,5502-Residential,"11,999.55"
04-APR-2022,Adults & Communities (P),REDACTED PERSONAL DATA,S/S HOMES,5502-Residential,"1,037.68"
04-APR-2022,Adults & Communities (P),REDACTED PERSONAL DATA,S/S HOMES,5502-Residential,"1,603.68"
04-APR-2022,Adults & Communities (P),GENESIS HOMES (ESSEX) LTD&&SSARO1089,S/S HOMES,5502-Residential,"32,369.95"
04-APR-2022,Adults & Communities (P),GENESIS HOMES (ESSEX) LTD&&SSARO1089,S/S HOMES,5502-Residential,"20,945.33"
04-APR-2022,Adults & Communities (P),GENESIS HOMES (ESSEX) LTD&&SSARO1089,S/S HOMES,5502-Residential,"8,761.91"
04-APR-2022,Adults & Communities (P),GERAINT HOUSE LTD T/A GERAINT HOUSE&&SSARO8965,S/S HOMES,5502-Residential,545.53
04-APR-2022,Adults & Communities (P),GRANGEWOOD LODGE&&SSAROE44233,S/S HOMES,5502-Residential,"3,566.64"
04-APR-2022,Adults & Communities (P),GRANGEWOOD LODGE&&SSAROE44233,S/S HOMES,5502-Residential,"5,512.08"
04-APR-2022,Adults & Communities (P),GRATIA&&SSAROE40405,S/S HOMES,5502-Residential,"8,506.63"
04-APR-2022,Adults & Communities (P),GRATIA&&SSAROE40405,S/S HOMES,5502-Residential,"13,146.61"
04-APR-2022,Adults & Communities (P),GREEN PASTURES&&SSARO6656,S/S HOMES,5501-Nursing,"1,857.86"
04-APR-2022,Adults & Communities (P),GREEN PASTURES&&SSARO6656,S/S HOMES,5501-Nursing,"1,202.14"
04-APR-2022,Adults & Communities (P),H&S RANA T/A LYNCROFT CARE HOME&&SSAROE901,S/S HOMES,5502-Residential,936.32
04-APR-2022,Adults & Communities (P),H&S RANA T/A LYNCROFT CARE HOME&&SSAROE901,S/S HOMES,5502-Residential,"1,447.04"
04-APR-2022,Adults & Communities (P),HALCYON LIVING 11 LTD T/A WAINFLEET&&SSARO9505,S/S HOMES,5502-Residential,818.71
04-APR-2022,Adults & Communities (P),HALCYON LIVING 11 LTD T/A WAINFLEET&&SSARO9505,S/S HOMES,5502-Residential,"1,265.29"
04-APR-2022,Adults & Communities (P),REDACTED PERSONAL DATA,S/S HOMES,5502-Residential,514.28
04-APR-2022,Adults & Communities (P),REDACTED PERSONAL DATA,S/S HOMES,5502-Residential,"1,885.72"
04-APR-2022,Adults & Communities (P),REDACTED PERSONAL DATA,S/S HOMES,5502-Residential,678.58
04-APR-2022,Adults & Communities (P),REDACTED PERSONAL DATA,S/S HOMES,5502-Residential,857.15
04-APR-2022,Adults & Communities (P),HARROWBY LODGE NURSING HOME LTD&&SSARO6429,S/S HOMES,5502-Residential,"1,257.14"
04-APR-2022,Adults & Communities (P),HARROWBY LODGE NURSING HOME LTD&&SSARO6429,S/S HOMES,5502-Residential,"1,942.86"
04-APR-2022,Adults & Communities (P),HAVEN NURSING HOME&&SARO2319,S/S HOMES,5501-Nursing,890.93
04-APR-2022,Adults & Communities (P),HAVEN NURSING HOME&&SARO2319,S/S HOMES,5501-Nursing,"1,376.91"
04-APR-2022,Adults & Communities (P),HAWTHORNE CARE LTD&&SSAROE1360,S/S HOMES,5502-Residential,"8,576.88"
04-APR-2022,Adults & Communities (P),HAWTHORNE CARE LTD&&SSAROE1360,S/S HOMES,5502-Residential,"13,255.12"
04-APR-2022,Adults & Communities (P),REDACTED PERSONAL DATA,S/S HOMES,5502-Residential,"1,232.69"
04-APR-2022,Adults & Communities (P),REDACTED PERSONAL DATA,S/S HOMES,5502-Residential,"1,905.07"
04-APR-2022,Adults & Communities (P),HC ONE C/O ACACIA CARE HOME&&SSARO3299,S/S HOMES,5502-Residential,909.07
04-APR-2022,Adults & Communities (P),HC ONE C/O ACACIA CARE HOME&&SSARO3299,S/S HOMES,5502-Residential,"1,404.93"
04-APR-2022,Adults & Communities (P),HC ONE LTD RE BEAUVALE CARE HOME&&SSAROE48787,S/S HOMES,5502-Residential,935.00
04-APR-2022,Adults & Communities (P),HC ONE LTD RE BEAUVALE CARE HOME&&SSAROE48787,S/S HOMES,5502-Residential,"1,445.00"
04-APR-2022,Adults & Communities (P),HC ONE LTD RE CEDAR COURT&&SSAROE43896,S/S HOMES,5502-Residential,"37,704.75"
04-APR-2022,Adults & Communities (P),HC ONE LTD RE CEDAR COURT&&SSAROE43896,S/S HOMES,5502-Residential,"24,397.25"
04-APR-2022,Adults & Communities (P),HC ONE LTD RE CEDAR COURT&&SSAROE43896,S/S HOMES,5502-Residential,"1,845.00"
04-APR-2022,Adults & Communities (P),HC ONE LTD RE HARLEY GRANGE&&SSAROE40253,S/S HOMES,5501-Nursing,"5,454.44"
04-APR-2022,Adults & Communities (P),HC ONE LTD RE HARLEY GRANGE&&SSAROE40253,S/S HOMES,5502-Residential,"1,578.58"
04-APR-2022,Adults & Communities (P),HC ONE LTD RE HARLEY GRANGE&&SSAROE40253,S/S HOMES,5501-Nursing,"8,429.56"
04-APR-2022,Adults & Communities (P),HC ONE LTD RE HINCKLEY PARK&&SSAROE24,S/S HOMES,5502-Residential,"17,777.52"
04-APR-2022,Adults & Communities (P),HC ONE LTD RE HINCKLEY PARK&&SSAROE24,S/S HOMES,5502-Residential,"11,503.12"
04-APR-2022,Adults & Communities (P),HC ONE LTD RE MAGNA&&SSAROE68590,S/S HOMES,5502-Residential,"19,668.55"
04-APR-2022,Adults & Communities (P),HC ONE LTD RE MAGNA&&SSAROE68590,S/S HOMES,5502-Residential,"13,693.16"
04-APR-2022,Adults & Communities (P),HC ONE LTD RE MAGNA&&SSAROE68590,S/S HOMES,5502-Residential,"2,609.31"
04-APR-2022,Adults & Communities (P),HC ONE LTD RE MAGNA&&SSAROE68590,S/S HOMES,5502-Residential,758.58
04-APR-2022,Adults & Communities (P),HC ONE LTD RE THE WILLOWS&&SSAROE40262,S/S HOMES,5502-Residential,"15,421.39"
04-APR-2022,Adults & Communities (P),HC ONE LTD RE THE WILLOWS&&SSAROE40262,S/S HOMES,5502-Residential,"23,833.01"
04-APR-2022,Adults & Communities (P),HC ONE RE THE ROWANS&&SSAROE53508,S/S HOMES,5502-Residential,615.00
04-APR-2022,Adults & Communities (P),HC ONE RE THE ROWANS&&SSAROE53508,S/S HOMES,5502-Residential,"40,838.81"
04-APR-2022,Adults & Communities (P),HC ONE RE THE ROWANS&&SSAROE53508,S/S HOMES,5502-Residential,"26,425.19"
04-APR-2022,Adults & Communities (P),HC ONE RE THE ROWANS&&SSAROE53508,S/S HOMES,5502-Residential,878.57
04-APR-2022,Adults & Communities (P),HC ONE RE THE ROWANS&&SSAROE53508,S/S HOMES,5502-Residential,"1,932.86"
04-APR-2022,Adults & Communities (P),HC1 LTD RE BANKWOOD&&SARO9230,S/S HOMES,5502-Residential,907.61
04-APR-2022,Adults & Communities (P),HC1 LTD RE BANKWOOD&&SARO9230,S/S HOMES,5502-Residential,"1,402.67"
04-APR-2022,Adults & Communities (P),HEATHCOTES CARE LTD&&SSAROE1336,S/S HOMES,5502-Residential,"30,179.12"
04-APR-2022,Adults & Communities (P),HEATHCOTES CARE LTD&&SSAROE1336,S/S HOMES,5502-Residential,"19,527.70"
04-APR-2022,Adults & Communities (P),HEATHCOTES CARE LTD&&SSAROE1336,S/S HOMES,5502-Residential,"3,058.33"
04-APR-2022,Adults & Communities (P),HEATHCOTES CARE LTD&&SSAROE1336,S/S HOMES,5502-Residential,"15,669.93"
04-APR-2022,Adults & Communities (P),HEATHCOTES CARE LTD&&SSAROE1336,S/S HOMES,5502-Residential,"4,726.51"
04-APR-2022,Adults & Communities (P),HEATHCOTES CARE LTD&&SSAROE1336,S/S HOMES,5502-Residential,"24,217.11"
04-APR-2022,Adults & Communities (P),HEATHCOTES M LTD T/A HEATHCOTES DERBY&&SSARO3402,S/S HOMES,5502-Residential,"1,952.27"
04-APR-2022,Adults & Communities (P),HEATHCOTES M LTD T/A HEATHCOTES DERBY&&SSARO3402,S/S HOMES,5502-Residential,"3,017.14"
04-APR-2022,Adults & Communities (P),HEATHCOTES M LTD T/A HEATHCOTES ENRIGHT LODGE &&SARO 9436,S/S HOMES,5502-Residential,"3,530.95"
04-APR-2022,Adults & Communities (P),HEATHCOTES M LTD T/A HEATHCOTES ENRIGHT LODGE &&SARO 9436,S/S HOMES,5502-Residential,"5,456.93"
04-APR-2022,Adults & Communities (P),HEATHCOTES M LTD&&SSARO2756,S/S HOMES,5502-Residential,"19,239.25"
04-APR-2022,Adults & Communities (P),HEATHCOTES M LTD&&SSARO2756,S/S HOMES,5502-Residential,"11,535.17"
04-APR-2022,Adults & Communities (P),HEATHCOTES M LTD&&SSARO2756,S/S HOMES,5502-Residential,"17,827.11"
04-APR-2022,Adults & Communities (P),HEATHCOTES M LTD&&SSARO2756,S/S HOMES,5502-Residential,"12,448.95"
04-APR-2022,Adults & Communities (P),HEATHCOTES&&SSARO2014,S/S HOMES,5502-Residential,"17,196.32"
04-APR-2022,Adults & Communities (P),HEATHCOTES&&SSARO2014,S/S HOMES,5502-Residential,"26,576.08"
04-APR-2022,Adults & Communities (P),HELPING HANDS CARE HOME LTD T/A GOODWOOD ORCHARDS&&SSAROE40251,S/S HOMES,5502-Residential,"2,852.15"
04-APR-2022,Adults & Communities (P),HELPING HANDS CARE HOME LTD T/A GOODWOOD ORCHARDS&&SSAROE40251,S/S HOMES,5502-Residential,"4,407.85"
04-APR-2022,Adults & Communities (P),HENGOED PARK LIMITED&&SSARO6333,S/S HOMES,5502-Residential,942.85
04-APR-2022,Adults & Communities (P),HENGOED PARK LIMITED&&SSARO6333,S/S HOMES,5502-Residential,"1,457.15"
04-APR-2022,Adults & Communities (P),HERITAGE CARE&&SSAROE929,S/S HOMES,5501-Nursing,"5,971.52"
04-APR-2022,Adults & Communities (P),HERITAGE CARE&&SSAROE929,S/S HOMES,5501-Nursing,"3,866.06"
04-APR-2022,Adults & Communities (P),HEROIC CARE LTD T/A JUBILEE VILLA&&SSAROE749,S/S HOMES,5502-Residential,"13,553.26"
04-APR-2022,Adults & Communities (P),HEROIC CARE LTD T/A JUBILEE VILLA&&SSAROE749,S/S HOMES,5502-Residential,"20,945.90"
04-APR-2022,Adults & Communities (P),HFT (CROMWELL CRESCENT)&&SSARO3174,S/S HOMES,5502-Residential,"4,997.30"
04-APR-2022,Adults & Communities (P),HFT (CROMWELL CRESCENT)&&SSARO3174,S/S HOMES,5502-Residential,"7,723.10"
04-APR-2022,Adults & Communities (P),REDACTED PERSONAL DATA,S/S HOMES,5502-Residential,"4,578.03"
04-APR-2022,Adults & Communities (P),REDACTED PERSONAL DATA,S/S HOMES,5502-Residential,"7,075.12"
04-APR-2022,Adults & Communities (P),REDACTED PERSONAL DATA,S/S HOMES,5502-Residential,"2,705.37"
04-APR-2022,Adults & Communities (P),REDACTED PERSONAL DATA,S/S HOMES,5502-Residential,"4,181.03"
04-APR-2022,Adults & Communities (P),HOMEFIELD COLLEGE LTD&&SSAROE40389,S/S HOMES,5502-Residential,"1,879.71"
04-APR-2022,Adults & Communities (P),HOMEFIELD COLLEGE LTD&&SSAROE40389,S/S HOMES,5502-Residential,"1,616.63"
04-APR-2022,Adults & Communities (P),HOMEFIELD COLLEGE LTD&&SSAROE40389,S/S HOMES,5502-Residential,"2,498.41"
04-APR-2022,Adults & Communities (P),HOMEFIELD COLLEGE LTD&&SSAROE40389,S/S HOMES,5502-Residential,"1,216.29"
04-APR-2022,Adults & Communities (P),HOMEFIELD&&SSARO3168,S/S HOMES,5501-Nursing,782.55
04-APR-2022,Adults & Communities (P),HOMEFIELD&&SSARO3168,S/S HOMES,5501-Nursing,"1,209.40"
04-APR-2022,Adults & Communities (P),HOPSCOTCH SOLUTIONS LTD&&SSARO2119,S/S HOMES,5502-Residential,"9,365.79"
04-APR-2022,Adults & Communities (P),HOPSCOTCH SOLUTIONS LTD&&SSARO2119,S/S HOMES,5502-Residential,"14,474.41"
04-APR-2022,Adults & Communities (P),HR CARE HOMES LTD&&SSARO1363,S/S HOMES,5502-Residential,"2,043.75"
04-APR-2022,Adults & Communities (P),HR CARE HOMES LTD&&SSARO1363,S/S HOMES,5502-Residential,"3,158.53"
04-APR-2022,Adults & Communities (P),HUNTERS LODGE RETIREMENT HOME LTD&&SSAROE40396,S/S HOMES,5502-Residential,"16,501.10"
04-APR-2022,Adults & Communities (P),HUNTERS LODGE RETIREMENT HOME LTD&&SSAROE40396,S/S HOMES,5502-Residential,"1,785.71"
04-APR-2022,Adults & Communities (P),HUNTERS LODGE RETIREMENT HOME LTD&&SSAROE40396,S/S HOMES,5502-Residential,850.00
04-APR-2022,Adults & Communities (P),HUNTERS LODGE RETIREMENT HOME LTD&&SSAROE40396,S/S HOMES,5502-Residential,"12,012.90"
04-APR-2022,Adults & Communities (P),HUNTERS LODGE RETIREMENT HOME LTD&&SSAROE40396,S/S HOMES,5502-Residential,914.28
04-APR-2022,Adults & Communities (P),HUSKARDS NEW CARE LTD&&SSARO1910,S/S HOMES,5501-Nursing,"2,833.29"
04-APR-2022,Adults & Communities (P),HUSKARDS NEW CARE LTD&&SSARO1910,S/S HOMES,5501-Nursing,666.51
04-APR-2022,Adults & Communities (P),HUSKARDS NEW CARE LTD&&SSARO1910,S/S HOMES,5501-Nursing,"4,378.71"
04-APR-2022,Adults & Communities (P),HUSKARDS NEW CARE LTD&&SSARO1910,S/S HOMES,5501-Nursing,"3,153.60"
04-APR-2022,Adults & Communities (P),HUSKARDS NEW CARE LTD&&SSARO1910,S/S HOMES,5501-Nursing,"2,376.00"
04-APR-2022,Adults & Communities (P),HUSKARDS NEW CARE LTD&&SSARO1910,S/S HOMES,5501-Nursing,"3,153.60"
04-APR-2022,Adults & Communities (P),HUSKARDS NEW CARE LTD&&SSARO1910,S/S HOMES,5501-Nursing,"3,153.60"
04-APR-2022,Adults & Communities (P),IDEAL CARE HOMES (NUMBER ONE) LTD&&SSARO2786,S/S HOMES,5502-Residential,"1,095.00"
04-APR-2022,Adults & Communities (P),IDEAL CARE HOMES (NUMBER ONE) LTD&&SSARO2786,S/S HOMES,5502-Residential,"1,800.00"
04-APR-2022,Adults & Communities (P),IDEAL CARE HOMES (NUMBER ONE) LTD&&SSARO2786,S/S HOMES,5502-Residential,"7,567.42"
04-APR-2022,Adults & Communities (P),IDEAL CARE HOMES (NUMBER ONE) LTD&&SSARO2786,S/S HOMES,5502-Residential,"4,896.58"
04-APR-2022,Adults & Communities (P),IDEAL CARE HOMES LTD MAIN ACCOUNT T/A WOODTHORPE LODGE&&SARO9362,S/S HOMES,5502-Residential,"2,957.14"
04-APR-2022,Adults & Communities (P),IDEAL CARE HOMES LTD MAIN ACCOUNT T/A WOODTHORPE LODGE&&SARO9362,S/S HOMES,5502-Residential,"2,700.57"
04-APR-2022,Adults & Communities (P),IDEAL CARE HOMES LTD MAIN ACCOUNT T/A WOODTHORPE LODGE&&SARO9362,S/S HOMES,5502-Residential,"2,000.00"
04-APR-2022,Adults & Communities (P),IDEAL CARE HOMES LTD MAIN ACCOUNT T/A WOODTHORPE LODGE&&SARO9362,S/S HOMES,5502-Residential,"1,747.43"
04-APR-2022,Adults & Communities (P),IDEAL CARE HOMES LTD MAIN ACCOUNT T/A WOODTHORPE LODGE&&SARO9362,S/S HOMES,5502-Residential,"5,092.86"
04-APR-2022,Adults & Communities (P),IDEAL CARE HOMES LTD T/AS MOUNTVIEW CARE HOME&&SSARO3374,S/S HOMES,5502-Residential,"1,964.29"
04-APR-2022,Adults & Communities (P),IDEAL CARE HOMES LTD T/AS MOUNTVIEW CARE HOME&&SSARO3374,S/S HOMES,5502-Residential,"3,035.71"
04-APR-2022,Adults & Communities (P),IDEAL CAREHOMES NUMBER 1 LTD T/A COPPICE LODGE&&SSARO3303,S/S HOMES,5502-Residential,"1,662.36"
04-APR-2022,Adults & Communities (P),IDEAL CAREHOMES NUMBER 1 LTD T/A COPPICE LODGE&&SSARO3303,S/S HOMES,5502-Residential,"1,075.64"
04-APR-2022,Adults & Communities (P),REDACTED PERSONAL DATA,S/S HOMES,5502-Residential,"28,113.33"
04-APR-2022,Adults & Communities (P),REDACTED PERSONAL DATA,S/S HOMES,5502-Residential,"3,690.00"
04-APR-2022,Adults & Communities (P),REDACTED PERSONAL DATA,S/S HOMES,5502-Residential,"43,855.10"
04-APR-2022,Adults & Communities (P),REDACTED PERSONAL DATA,S/S HOMES,8406-Residential - NHS Income,820.06
04-APR-2022,Adults & Communities (P),REDACTED PERSONAL DATA,S/S HOMES,5502-Residential,"1,048.58"
04-APR-2022,Adults & Communities (P),REDACTED PERSONAL DATA,S/S HOMES,5502-Residential,"1,620.54"
04-APR-2022,Adults & Communities (P),REDACTED PERSONAL DATA,S/S HOMES,5502-Residential,"28,258.23"
04-APR-2022,Adults & Communities (P),REDACTED PERSONAL DATA,S/S HOMES,5502-Residential,"18,284.78"
04-APR-2022,Adults & Communities (P),REDACTED PERSONAL DATA,S/S HOMES,5502-Residential,"2,655.72"
04-APR-2022,Adults & Communities (P),REDACTED PERSONAL DATA,S/S HOMES,5502-Residential,"4,509.00"
04-APR-2022,Adults & Communities (P),REDACTED PERSONAL DATA,S/S HOMES,5502-Residential,"2,860.00"
04-APR-2022,Adults & Communities (P),KAPIL CARE HOMES LTD T/A CARISBROOKE MANOR&&SSARO9314,S/S HOMES,5502-Residential,789.89
04-APR-2022,Adults & Communities (P),KAPIL CARE HOMES LTD T/A CARISBROOKE MANOR&&SSARO9314,S/S HOMES,5502-Residential,"1,220.75"
04-APR-2022,Adults & Communities (P),KEENGLEN CARE HOMES LTD&&SSARO3220,S/S HOMES,5502-Residential,"10,413.70"
04-APR-2022,Adults & Communities (P),KEENGLEN CARE HOMES LTD&&SSARO3220,S/S HOMES,5502-Residential,"6,738.30"
04-APR-2022,Adults & Communities (P),KEENGLEN CARE HOMES LTD&&SSARO3220,S/S HOMES,5502-Residential,"3,580.00"
04-APR-2022,Adults & Communities (P),KEMPS PLACE LTD&&SSARO6409,S/S HOMES,5502-Residential,660.00
04-APR-2022,Adults & Communities (P),KEMPS PLACE LTD&&SSARO6409,S/S HOMES,5502-Residential,"1,020.00"
04-APR-2022,Adults & Communities (P),KIBWORTH KNOLL LTD&&SSAROE76184,S/S HOMES,5502-Residential,514.86
04-APR-2022,Adults & Communities (P),KIBWORTH KNOLL LTD&&SSAROE76184,S/S HOMES,5502-Residential,"3,724.30"
04-APR-2022,Adults & Communities (P),KIBWORTH KNOLL LTD&&SSAROE76184,S/S HOMES,5502-Residential,"5,755.70"
04-APR-2022,Adults & Communities (P),KINGLEY PARTNERSHIP LTD T/A KINGLEY HOUSE&&SSARO1232,S/S HOMES,5502-Residential,"6,925.20"
04-APR-2022,Adults & Communities (P),KINGLEY PARTNERSHIP LTD T/A KINGLEY HOUSE&&SSARO1232,S/S HOMES,5502-Residential,"10,702.56"
04-APR-2022,Adults & Communities (P),KINGLY CARE PARTNERSHIP&&SSARO3198,S/S HOMES,5502-Residential,"2,023.88"
04-APR-2022,Adults & Communities (P),KINGLY CARE PARTNERSHIP&&SSARO3198,S/S HOMES,5502-Residential,"3,127.80"
04-APR-2022,Adults & Communities (P),KINGLY CARE PARTNERSHIP&&SSARO3232,S/S HOMES,5502-Residential,"1,381.35"
04-APR-2022,Adults & Communities (P),KINGLY CARE PARTNERSHIP&&SSARO3232,S/S HOMES,5502-Residential,"2,134.81"
04-APR-2022,Adults & Communities (P),KINGS RESIDENTIAL CARE HOMES LTD&&SSARO1726,S/S HOMES,5502-Residential,"13,862.86"
04-APR-2022,Adults & Communities (P),KINGS RESIDENTIAL CARE HOMES LTD&&SSARO1726,S/S HOMES,5502-Residential,"21,424.38"
04-APR-2022,Adults & Communities (P),KINGSWOOD LODGE&&SSAROE40284,S/S HOMES,5502-Residential,"7,861.87"
04-APR-2022,Adults & Communities (P),KINGSWOOD LODGE&&SSAROE40284,S/S HOMES,5502-Residential,"12,150.13"
04-APR-2022,Adults & Communities (P),KIRBY GRANGE LTD (KIRBY GRANGE RESIDENTIAL HOME)&&SSAROE40286,S/S HOMES,5502-Residential,"11,971.15"
04-APR-2022,Adults & Communities (P),KIRBY GRANGE LTD (KIRBY GRANGE RESIDENTIAL HOME)&&SSAROE40286,S/S HOMES,5502-Residential,"1,800.00"
04-APR-2022,Adults & Communities (P),KIRBY GRANGE LTD (KIRBY GRANGE RESIDENTIAL HOME)&&SSAROE40286,S/S HOMES,5502-Residential,678.58
04-APR-2022,Adults & Communities (P),KIRBY GRANGE LTD (KIRBY GRANGE RESIDENTIAL HOME)&&SSAROE40286,S/S HOMES,5502-Residential,"1,500.00"
04-APR-2022,Adults & Communities (P),KIRBY GRANGE LTD (KIRBY GRANGE RESIDENTIAL HOME)&&SSAROE40286,S/S HOMES,5502-Residential,"16,834.85"
04-APR-2022,Adults & Communities (P),KIRKLANDS HEALTHCARE LTD&&SSARO792,S/S HOMES,5502-Residential,"2,852.15"
04-APR-2022,Adults & Communities (P),KIRKLANDS HEALTHCARE LTD&&SSARO792,S/S HOMES,5502-Residential,"4,407.85"
04-APR-2022,Adults & Communities (P),KIRLANDS HEALTHCARE LTD&&SSARO2566,S/S HOMES,5502-Residential,988.43
04-APR-2022,Adults & Communities (P),KIRLANDS HEALTHCARE LTD&&SSARO2566,S/S HOMES,5502-Residential,"1,527.57"
04-APR-2022,Adults & Communities (P),KISIMUL GROUP LTD&&SSARO5691,S/S HOMES,5502-Residential,"3,288.38"
04-APR-2022,Adults & Communities (P),KISIMUL GROUP LTD&&SSARO5691,S/S HOMES,5502-Residential,"7,844.48"
04-APR-2022,Adults & Communities (P),KISIMUL GROUP LTD&&SSARO5691,S/S HOMES,5502-Residential,"4,003.24"
04-APR-2022,Adults & Communities (P),KISIMUL GROUP LTD&&SSARO5691,S/S HOMES,5502-Residential,"4,003.24"
04-APR-2022,Adults & Communities (P),KISIMUL GROUP LTD&&SSARO5691,S/S HOMES,5502-Residential,"4,003.24"
04-APR-2022,Adults & Communities (P),KISIMUL GROUP LTD&&SSARO5691,S/S HOMES,5502-Residential,571.89
04-APR-2022,Adults & Communities (P),KISIMUL GROUP LTD&&SSARO5691,S/S HOMES,5502-Residential,"4,003.24"
04-APR-2022,Adults & Communities (P),KISIMUL GROUP LTD&&SSARO5691,S/S HOMES,5502-Residential,"4,003.24"
04-APR-2022,Adults & Communities (P),KISIMUL GROUP LTD&&SSARO5691,S/S HOMES,5502-Residential,"5,075.84"
04-APR-2022,Adults & Communities (P),KROSS INVESTEMENT LTD T/A BELTON HOUSE&&SSAROE74367,S/S HOMES,5502-Residential,818.71
04-APR-2022,Adults & Communities (P),KROSS INVESTEMENT LTD T/A BELTON HOUSE&&SSAROE74367,S/S HOMES,5502-Residential,"1,265.29"
04-APR-2022,Adults & Communities (P),LANDERMEADS INVESTMENTS LTD&&SSAROE51305,S/S HOMES,5502-Residential,"1,354.60"
04-APR-2022,Adults & Communities (P),LANDERMEADS INVESTMENTS LTD&&SSAROE51305,S/S HOMES,5502-Residential,876.52
04-APR-2022,Adults & Communities (P),LANGDALE CARE HOMES LTD T/A ACORN HILL LTD&&SARO6312,S/S HOMES,5502-Residential,"24,110.46"
04-APR-2022,Adults & Communities (P),LANGDALE CARE HOMES LTD T/A ACORN HILL LTD&&SARO6312,S/S HOMES,5502-Residential,600.00
04-APR-2022,Adults & Communities (P),LANGDALE CARE HOMES LTD T/A ACORN HILL LTD&&SARO6312,S/S HOMES,5502-Residential,"5,421.72"
04-APR-2022,Adults & Communities (P),LANGDALE CARE HOMES LTD T/A ACORN HILL LTD&&SARO6312,S/S HOMES,5502-Residential,"2,035.71"
04-APR-2022,Adults & Communities (P),LANGDALE CARE HOMES LTD T/A ACORN HILL LTD&&SARO6312,S/S HOMES,5502-Residential,"37,261.54"
04-APR-2022,Adults & Communities (P),LANGDALE HOUSE LTD (EVERDALE GRANGE LTD)&&SSARO3390,S/S HOMES,5502-Residential,"26,880.93"
04-APR-2022,Adults & Communities (P),LANGDALE HOUSE LTD (EVERDALE GRANGE LTD)&&SSARO3390,S/S HOMES,5502-Residential,514.29
04-APR-2022,Adults & Communities (P),LANGDALE HOUSE LTD (EVERDALE GRANGE LTD)&&SSARO3390,S/S HOMES,5502-Residential,"41,543.07"
04-APR-2022,Adults & Communities (P),LANGDALE HOUSE LTD (EVERDALE GRANGE LTD)&&SSARO3390,S/S HOMES,5502-Residential,"1,445.38"
04-APR-2022,Adults & Communities (P),LANGDALE HOUSE LTD (EVERDALE GRANGE LTD)&&SSARO3390,S/S HOMES,5502-Residential,"2,700.00"
04-APR-2022,Adults & Communities (P),LANGDALE HOUSE LTD (EVERDALE GRANGE LTD)&&SSARO3390,S/S HOMES,5502-Residential,"12,044.86"
04-APR-2022,Adults & Communities (P),LANGDALE HOUSE LTD&&SSAROE40271,S/S HOMES,5502-Residential,"24,199.74"
04-APR-2022,Adults & Communities (P),LANGDALE HOUSE LTD&&SSAROE40271,S/S HOMES,5502-Residential,"37,399.50"
04-APR-2022,Adults & Communities (P),LANGDALE HOUSE LTD&&SSAROE40271,S/S HOMES,5502-Residential,"3,600.00"
04-APR-2022,Adults & Communities (P),LANGDALE HOUSE LTD&&SSAROE40271,S/S HOMES,5502-Residential,"1,800.00"
04-APR-2022,Adults & Communities (P),LANGDALE HOUSE LTD&&SSAROE40271,S/S HOMES,5502-Residential,"3,600.00"
04-APR-2022,Adults & Communities (P),LANGDALE HOUSE LTD&&SSAROE40271,S/S HOMES,5502-Residential,"3,600.00"
04-APR-2022,Adults & Communities (P),LANGDALE HOUSE LTD&&SSAROE40271,S/S HOMES,5502-Residential,"1,028.57"
04-APR-2022,Adults & Communities (P),LANGDALE HOUSE LTD&&SSAROE40271,S/S HOMES,5502-Residential,"8,368.97"
04-APR-2022,Adults & Communities (P),LARCHWOOD CARE HOMES SOUTH LTD&&SSARO6600,S/S HOMES,5502-Residential,917.76
04-APR-2022,Adults & Communities (P),LARCHWOOD CARE HOMES SOUTH LTD&&SSARO6600,S/S HOMES,5502-Residential,"1,418.36"
04-APR-2022,Adults & Communities (P),LAXTON HALL&&SSAROE58522,S/S HOMES,5502-Residential,"1,101.54"
04-APR-2022,Adults & Communities (P),LAXTON HALL&&SSAROE58522,S/S HOMES,5502-Residential,"1,702.38"
04-APR-2022,Adults & Communities (P),LEICESTERSHIRE COUNTY CARE LIMITED&&SSARO3258,S/S HOMES,5502-Residential,"1,312.94"
04-APR-2022,Adults & Communities (P),LEICESTERSHIRE COUNTY CARE LIMITED&&SSARO3258,S/S HOMES,5502-Residential,"2,029.06"
04-APR-2022,Adults & Communities (P),LEICESTERSHIRE COUNTY CARE LTD&&SSARO2541,S/S HOMES,5502-Residential,"14,622.87"
04-APR-2022,Adults & Communities (P),LEICESTERSHIRE COUNTY CARE LTD&&SSARO2541,S/S HOMES,5502-Residential,"3,400.00"
04-APR-2022,Adults & Communities (P),LEICESTERSHIRE COUNTY CARE LTD&&SSARO2541,S/S HOMES,5502-Residential,615.00
04-APR-2022,Adults & Communities (P),LEICESTERSHIRE COUNTY CARE LTD&&SSARO2541,S/S HOMES,5502-Residential,"21,480.69"
04-APR-2022,Adults & Communities (P),LEICESTERSHIRE COUNTY CARE LTD&&SSARO2541,S/S HOMES,5502-Residential,"2,108.57"
04-APR-2022,Adults & Communities (P),LEICESTERSHIRE COUNTY CARE LTD&&SSARO2541,S/S HOMES,5502-Residential,"19,592.12"
04-APR-2022,Adults & Communities (P),LEICESTERSHIRE COUNTY CARE LTD&&SSARO2541,S/S HOMES,5502-Residential,"4,232.99"
04-APR-2022,Adults & Communities (P),LEICESTERSHIRE COUNTY CARE LTD&&SSARO2541,S/S HOMES,5502-Residential,"2,739.01"
04-APR-2022,Adults & Communities (P),LEICESTERSHIRE COUNTY CARE LTD&&SSARO2541,S/S HOMES,5502-Residential,"28,759.12"
04-APR-2022,Adults & Communities (P),LEICESTERSHIRE COUNTY CARE LTD&&SSARO2541,S/S HOMES,5502-Residential,"3,602.14"
04-APR-2022,Adults & Communities (P),LEICESTERSHIRE COUNTY CARE LTD&&SSARO2541,S/S HOMES,5502-Residential,"25,730.69"
04-APR-2022,Adults & Communities (P),LEICESTERSHIRE COUNTY CARE LTD&&SSARO2541,S/S HOMES,5502-Residential,"2,939.01"
04-APR-2022,Adults & Communities (P),LEICESTERSHIRE COUNTY CARE LTD&&SSARO2541,S/S HOMES,5502-Residential,"16,649.31"
04-APR-2022,Adults & Communities (P),LEICESTERSHIRE COUNTY CARE LTD&&SSARO2541,S/S HOMES,5502-Residential,"2,380.00"
04-APR-2022,Adults & Communities (P),LEICESTERSHIRE COUNTY CARE LTD&&SSARO2541,S/S HOMES,5502-Residential,"2,460.00"
04-APR-2022,Adults & Communities (P),LEICESTERSHIRE COUNTY CARE LTD&&SSARO2541,S/S HOMES,5502-Residential,"2,284.29"
04-APR-2022,Adults & Communities (P),LEICESTERSHIRE COUNTY CARE LTD&&SSARO2541,S/S HOMES,5502-Residential,"18,608.88"
04-APR-2022,Adults & Communities (P),LEICESTERSHIRE COUNTY CARE LTD&&SSARO2541,S/S HOMES,5502-Residential,"4,877.86"
04-APR-2022,Adults & Communities (P),LEICESTERSHIRE COUNTY CARE LTD&&SSARO2541,S/S HOMES,5502-Residential,"1,600.00"
04-APR-2022,Adults & Communities (P),LEICESTERSHIRE COUNTY CARE LTD&&SSARO2541,S/S HOMES,5502-Residential,"20,662.88"
04-APR-2022,Adults & Communities (P),LEICESTERSHIRE COUNTY CARE LTD&&SSARO2541,S/S HOMES,5502-Residential,"1,100.00"
04-APR-2022,Adults & Communities (P),LEICESTERSHIRE COUNTY CARE LTD&&SSARO2541,S/S HOMES,5502-Residential,700.00
04-APR-2022,Adults & Communities (P),LEICESTERSHIRE COUNTY CARE LTD&&SSARO2541,S/S HOMES,5502-Residential,"1,230.00"
04-APR-2022,Adults & Communities (P),LEICESTERSHIRE COUNTY CARE LTD&&SSARO2541,S/S HOMES,5502-Residential,"1,230.00"
04-APR-2022,Adults & Communities (P),LEICESTERSHIRE COUNTY CARE LTD&&SSARO2541,S/S HOMES,5502-Residential,"32,755.69"
04-APR-2022,Adults & Communities (P),LEICESTERSHIRE COUNTY CARE LTD&&SSARO2541,S/S HOMES,5502-Residential,"1,731.43"
04-APR-2022,Adults & Communities (P),LEICESTERSHIRE COUNTY CARE LTD&&SSARO2541,S/S HOMES,5502-Residential,"39,126.66"
04-APR-2022,Adults & Communities (P),LEICESTERSHIRE COUNTY CARE LTD&&SSARO2541,S/S HOMES,5502-Residential,"2,812.30"
04-APR-2022,Adults & Communities (P),LEICESTERSHIRE COUNTY CARE LTD&&SSARO2541,S/S HOMES,5502-Residential,"24,855.62"
04-APR-2022,Adults & Communities (P),LEICESTERSHIRE COUNTY CARE LTD&&SSARO2541,S/S HOMES,5502-Residential,"3,400.00"
04-APR-2022,Adults & Communities (P),LEICESTERSHIRE COUNTY CARE LTD&&SSARO2541,S/S HOMES,5502-Residential,"3,400.00"
04-APR-2022,Adults & Communities (P),LEICESTERSHIRE COUNTY CARE LTD&&SSARO2541,S/S HOMES,5502-Residential,"3,400.00"
04-APR-2022,Adults & Communities (P),LEICESTERSHIRE COUNTY CARE LTD&&SSARO2541,S/S HOMES,5502-Residential,"1,600.00"
04-APR-2022,Adults & Communities (P),LEICESTERSHIRE COUNTY CARE LTD&&SSARO2541,S/S HOMES,5502-Residential,"3,400.00"
04-APR-2022,Adults & Communities (P),LEICESTERSHIRE COUNTY CARE LTD&&SSARO2541,S/S HOMES,5502-Residential,"1,600.00"
04-APR-2022,Adults & Communities (P),LEICESTERSHIRE COUNTY CARE LTD&&SSARO2541,S/S HOMES,5502-Residential,"3,400.00"
04-APR-2022,Adults & Communities (P),LEICESTERSHIRE COUNTY CARE LTD&&SSARO2541,S/S HOMES,5502-Residential,"3,400.00"
04-APR-2022,Adults & Communities (P),LEICESTERSHIRE COUNTY CARE LTD&&SSARO2541,S/S HOMES,5502-Residential,"1,863.72"
04-APR-2022,Adults & Communities (P),LEICESTERSHIRE COUNTY CARE LTD&&SSARO2541,S/S HOMES,5502-Residential,"28,377.83"
04-APR-2022,Adults & Communities (P),LEICESTERSHIRE COUNTY CARE LTD&&SSARO2541,S/S HOMES,5502-Residential,"18,186.45"
04-APR-2022,Adults & Communities (P),LEICESTERSHIRE COUNTY CARE LTD&&SSARO2541,S/S HOMES,5502-Residential,988.43
04-APR-2022,Adults & Communities (P),LEICESTERSHIRE COUNTY CARE LTD&&SSARO2541,S/S HOMES,5502-Residential,"2,880.28"
04-APR-2022,Adults & Communities (P),LEICESTERSHIRE COUNTY CARE LTD&&SSARO2541,S/S HOMES,5502-Residential,718.86
